Workbook

Sheet Cover
A8: CREF-Castalia RE Island Ranking and RE Marketplace
A9: Year Presented | B9: 2020
A10: Author | B10: Castalia
A11: Last Updated | B11: 2020-10-30
A12: Website | B12: www.castalia-advisors.com

Sheet RE Index | Ranking inputs
H4: Anguilla | I4: Antigua_Barbuda | J4: Aruba | K4: Bahamas | L4: Barbados | M4: Bermuda | N4: Belize | O4: Bonaire | P4: British_Virgin_Islands | Q4: Cayman_Islands | R4: Cuba | S4: Curacao | T4: Dominica | U4: Dominican_Republic | V4: Grenada | W4: Guadeloupe | X4: Guyana | Y4: Haiti | Z4: Jamaica | AA4: Martinique | AB4: Montserrat | AC4: Nevis | AD4: Puerto_Rico | AE4: Saint_Martin | AF4: Sint_Marteen | AG4: St_Lucia | AH4: St_Vincent_Grenadines | AI4: St_Kitts | AJ4: Suriname | AK4: Trinidad_Tobago | AL4: Turks_and_Caicos | AM4: USVI
C5: List of Indicators for the Castalia - CREF Island RE Ranking Scale: 0 to 5 (0 = Poor ; 5 = World class) | E5: Index | H5: Anguilla | I5: Antigua & Barbuda | J5: Aruba | K5: The Bahamas | L5: Barbados | M5: Bermuda | N5: Belize | O5: Bonaire | P5: British Virgin Islands | Q5: Cayman Islands | R5: Cuba | S5: Curaҫao | T5: Dominica | U5: Dominican Republic | V5: Grenada | W5: Guadeloupe | X5: Guyana | Y5: Haiti | Z5: Jamaica | AA5: Martinique | AB5: Montserrat | AC5: Nevis | AD5: Puerto Rico | AE5: Saint-Martin | AF5: Sint Maarten | AG5: St. Lucia | AH5: St. Vincent and the Grenadines | AI5: St. Kitts | AJ5: Suriname | AK5: Trinidad and Tobago | AL5: Turks and Caicos Islands | AM5: U.S. Virgin Islands
D6: Overall Score | E6: 0 to 5 | F6: =SUM(F8,F26,F34,F42,F46) -> 1 | G6: 1 | H6: =($G$8*H8)+($G$26*H26)+($G$34*H34)+($G$42*H42)+($G$46*H46) -> 0 | I6: =($G$8*I8)+($G$26*I26)+($G$34*I34)+($G$42*I42)+($G$46*I46) -> 1.740800722 | J6: =($G$8*J8)+($G$26*J26)+($G$34*J34)+($G$42*J42)+($G$46*J46) -> 0.2227612121 | K6: 1.866121883 | L6: 2.075393168 | M6: 1.654849697 | N6: 1.807980852 | O6: 0.6647727273 | P6: 1.266666667 | Q6: 0.8495842664 | R6: 0.006122017983 | S6: 1.968287879 | T6: 2.779710246 | U6: 1.690496983 | V6: 0.6222388062 | W6: 2.653365199 | X6: 0.1469558234 | Y6: 0.8830355465 | Z6: 2.550055875 | AA6: 0.105 | AB6: 1.480595238 | AC6: 1.307860693 | AD6: 1.338333333 | AE6: 0 | AF6: 0 | AG6: 0.6290357638 | AH6: 0.1952913279 | AI6: 0.3938542857 | AJ6: 0.8559391291 | AK6: 0.9166666667 | AL6: 1.099288658 | AM6: 0.209454
D7: Rank | E7: Rank of 32 | H7: =H138 -> 31 | I7: =I138 -> 8 | J7: 24 | K7: 6 | L7: 4 | M7: 10 | N7: 7 | O7: 20 | P7: 14 | Q7: 19 | R7: 29 | S7: 5 | T7: 1 | U7: 9 | V7: 22 | W7: 2 | X7: 27 | Y7: 17 | Z7: 3 | AA7: 28 | AB7: 11 | AC7: 13 | AD7: 12 | AE7: 31 | AF7: 31 | AG7: 21 | AH7: 26 | AI7: 23 | AJ7: 18 | AK7: 16 | AL7: 15 | AM7: 25
B8: 1 | D8: Enabling environment for renewable energy investments | F8: =SUM(F9,F12,F16,F22) -> 0.3 | G8: 0.3 | H8: =(+H9*$G$9)+(H12*$G$12)+($G$16*H16)+(H22*$G$22) -> 0 | I8: 3.875 | J8: 0 | K8: 3.25 | L8: 3.625 | M8: 4.125 | N8: 3.5 | O8: 0.625 | P8: 3.5 | Q8: 1.25 | R8: 0 | S8: 3.25 | T8: 5 | U8: 1.25 | V8: 1.875 | W8: 4.375 | X8: 0 | Y8: 2 | Z8: 5 | AA8: 0 | AB8: 2.125 | AC8: 2.5 | AD8: 3.25 | AE8: 0 | AF8: 0 | AG8: 1.25 | AH8: 0.625 | AI8: 1.25 | AJ8: 0.625 | AK8: 1.75 | AL8: 2.5 | AM8: 0.625
D9: Renewable Energy Strategy | E9: 0 to 5 | F9: =G9*$G$8 -> 0.075 | G9: 0.25 | H9: =COUNTIF(H10:H11,"Yes")*5/COUNT($C$10:$C$11) -> 0 | I9: =COUNTIF(I10:I11,"Yes")*5/COUNT($C$10:$C$11) -> 2.5 | J9: =COUNTIF(J10:J11,"Yes")*5/COUNT($C$10:$C$11) -> 0 | K9: =COUNTIF(K10:K11,"Yes")*5/COUNT($C$10:$C$11) -> 2.5 | L9: 2.5 | M9: 5 | N9: 5 | O9: 2.5 | P9: 5 | Q9: 5 | R9: 0 | S9: 2.5 | T9: 5 | U9: 5 | V9: 2.5 | W9: 2.5 | X9: 0 | Y9: 2.5 | Z9: 5 | AA9: 0 | AB9: 5 | AC9: 5 | AD9: 5 | AE9: 0 | AF9: 0 | AG9: 5 | AH9: 2.5 | AI9: 5 | AJ9: 2.5 | AK9: 5 | AL9: 5 | AM9: 2.5
C10: 1 | D10: Does the plan contain a specific target for renewable energy? | F10: =G10*$G$8 -> 0.0375 | G10: =$G$9/COUNT($C$10:$C$11) -> 0.125 | H10: =INDIRECT(H$4&"!D7") -> NA | I10: =INDIRECT(I$4&"!D7") -> Yes | J10: =INDIRECT(J$4&"!D7") -> NA | K10: Yes | L10: Yes | M10: Yes | N10: Yes | O10: Yes | P10: Yes | Q10: Yes | R10: NA | S10: Yes | T10: Yes | U10: Yes | V10: Yes | W10: Yes | X10: NA | Y10: Yes | Z10: Yes | AA10: NA | AB10: Yes | AC10: Yes | AD10: Yes | AE10: NA | AF10: NA | AG10: Yes | AH10: Yes | AI10: Yes | AJ10: Yes | AK10: Yes | AL10: Yes | AM10: Yes
C11: 2 | D11: Does your country have an Integrated Resource Plan (IRP) that was produced within the last three years? | F11: =G11*$G$8 -> 0.0375 | G11: =$G$9/COUNT($C$10:$C$11) -> 0.125 | H11: =INDIRECT(H$4&"!D10") -> NA | I11: =INDIRECT(I$4&"!D10") -> No | J11: NA | K11: No | L11: No | M11: Yes | N11: Yes | O11: No | P11: Yes | Q11: Yes | R11: NA | S11: No | T11: Yes | U11: Yes | V11: No | W11: No | X11: NA | Y11: No | Z11: Yes | AA11: NA | AB11: Yes | AC11: Yes | AD11: Yes | AE11: NA | AF11: NA | AG11: Yes | AH11: No | AI11: Yes | AJ11: No | AK11: Yes | AL11: Yes | AM11: No
D12: Utilities and regulatory processes | E12: 0 to 5 | F12: =G12*$G$8 -> 0.075 | G12: 0.25 | H12: =COUNTIF(H13:H15,"Yes")*5/COUNT($C$13:$C$15) -> 0 | I12: =COUNTIF(I13:I15,"Yes")*5/COUNT($C$14:$C$15) -> 5 | J12: =COUNTIF(J14:J15,"Yes")*5/COUNT($C$14:$C$15) -> 0 | K12: =COUNTIF(K14:K15,"Yes")*5/COUNT($C$14:$C$15) -> 2.5 | L12: =COUNTIF(L14:L15,"Yes")*5/COUNT($C$14:$C$15) -> 5 | M12: 5 | N12: 5 | O12: 0 | P12: 2.5 | Q12: 0 | R12: 0 | S12: 2.5 | T12: 5 | U12: 0 | V12: 0 | W12: 5 | X12: 0 | Y12: 2.5 | Z12: 5 | AA12: 0 | AB12: 2.5 | AC12: 0 | AD12: 2.5 | AE12: 0 | AF12: 0 | AG12: 0 | AH12: 0 | AI12: 0 | AJ12: 0 | AK12: 0 | AL12: 0 | AM12: 0
C13: 1 | D13: When planning generation expansion, does the utility consider RE options? | F13: 0.025 | G13: =$G$12/COUNT($C$13:$C$15) -> 0.08333333333 | H13: =INDIRECT(H$4&"!D12") -> NA | I13: =INDIRECT(I$4&"!D12") -> Yes | J13: NA | K13: Yes | L13: Yes | M13: Yes | N13: Yes | O13: NA | P13: =INDIRECT(P$4&"!D12") -> Yes | Q13: NA | R13: NA | S13: Yes | T13: Yes | U13: NA | V13: Yes | W13: Yes | X13: NA | Y13: Yes | Z13: Yes | AA13: NA | AB13: Yes | AC13: Yes | AD13: Yes | AE13: NA | AF13: NA | AG13: NA | AH13: NA | AI13: NA | AJ13: NA | AK13: No | AL13: Yes | AM13: NA
C14: 2 | D14: Can the utility safely recover RE investments through tariffs like it can recover fossil fuel costs? | F14: 0.025 | G14: =$G$12/COUNT($C$13:$C$15) -> 0.08333333333 | H14: =INDIRECT(H$4&"!D13") -> NA | I14: =INDIRECT(I$4&"!D13") -> No | J14: NA | K14: No | L14: Yes | M14: Yes | N14: Yes | O14: NA | P14: No | Q14: NA | R14: NA | S14: Yes | T14: Yes | U14: NA | V14: NA | W14: Yes | X14: NA | Y14: Yes | Z14: Yes | AA14: NA | AB14: Yes | AC14: No | AD14: Yes | AE14: NA | AF14: NA | AG14: NA | AH14: NA | AI14: NA | AJ14: NA | AK14: No | AL14: No | AM14: NA
C15: 3 | D15: Are there clear, specific planning and permitting processes and rules in place for developing RE? | F15: 0.025 | G15: 0.08333333333 | H15: =INDIRECT(H$4&"!D14") -> NA | I15: =INDIRECT(I$4&"!D14") -> Yes | J15: NA | K15: Yes | L15: Yes | M15: Yes | N15: Yes | O15: NA | P15: Yes | Q15: NA | R15: NA | S15: No | T15: Yes | U15: NA | V15: No | W15: Yes | X15: NA | Y15: No | Z15: Yes | AA15: NA | AB15: No | AC15: No | AD15: No | AE15: NA | AF15: NA | AG15: NA | AH15: NA | AI15: NA | AJ15: NA | AK15: No | AL15: No | AM15: NA
D16: IPPs | E16: 0 or 5 | F16: =G16*$G$8 -> 0.075 | G16: 0.25 | H16: =COUNTIF(H17:H21,"Yes")*5/COUNT($C$17:$C$21) -> 0 | I16: =COUNTIF(I17:I21,"Yes")*5/COUNT($C$17:$C$21) -> 3 | J16: =COUNTIF(J17:J21,"Yes")*5/COUNT($C$17:$C$21) -> 0 | K16: =COUNTIF(K17:K21,"Yes")*5/COUNT($C$17:$C$21) -> 3 | L16: =COUNTIF(L17:L21,"Yes")*5/COUNT($C$17:$C$21) -> 2 | M16: 4 | N16: 4 | O16: 0 | P16: 4 | Q16: 0 | R16: 0 | S16: 3 | T16: 5 | U16: 0 | V16: 0 | W16: 5 | X16: 0 | Y16: 3 | Z16: 5 | AA16: 0 | AB16: 1 | AC16: 5 | AD16: 3 | AE16: 0 | AF16: 0 | AG16: 0 | AH16: 0 | AI16: 0 | AJ16: 0 | AK16: 2 | AL16: 0 | AM16: 0
C17: 1 | D17: Can the utility safely recover purchases of RE from third parties, just as it recovers fossil fuel costs? | F17: =G17*$G$8 -> 0.015 | G17: =$G$12/COUNT($C$17:$C$21) -> 0.05 | H17: =INDIRECT(H$4&"!D17") -> NA | I17: =INDIRECT(I$4&"!D17") -> Yes | J17: NA | K17: No | L17: Yes | M17: Yes | N17: No | O17: NA | P17: No | Q17: NA | R17: NA | S17: Yes | T17: Yes | U17: NA | V17: NA | W17: Yes | X17: NA | Y17: Yes | Z17: Yes | AA17: NA | AB17: Yes | AC17: Yes | AD17: Yes | AE17: NA | AF17: NA | AG17: NA | AH17: NA | AI17: NA | AJ17: NA | AK17: No | AL17: No | AM17: NA
C18: =C17+1 -> 2 | D18: Are there workable precedents or rules for PPA terms and grid operation rules? | F18: =G18*$G$8 -> 0.015 | G18: =$G$12/COUNT($C$17:$C$21) -> 0.05 | H18: =INDIRECT(H$4&"!D18") -> NA | I18: =INDIRECT(I$4&"!D18") -> Yes | J18: NA | K18: Yes | L18: No | M18: Yes | N18: Yes | O18: NA | P18: Yes | Q18: NA | R18: NA | S18: No | T18: Yes | U18: NA | V18: No | W18: Yes | X18: NA | Y18: Yes | Z18: Yes | AA18: NA | AB18: No | AC18: Yes | AD18: Yes | AE18: NA | AF18: NA | AG18: NA | AH18: NA | AI18: NA | AJ18: NA | AK18: No | AL18: No | AM18: NA
C19: 3 | D19: Are there clear and effective licensing processes and requirements in place for IPPs? | F19: 0.015 | G19: =$G$12/COUNT($C$17:$C$21) -> 0.05 | H19: =INDIRECT(H$4&"!D19") -> NA | I19: =INDIRECT(I$4&"!D19") -> Yes | J19: NA | K19: Yes | L19: No | M19: Yes | N19: Yes | O19: NA | P19: Yes | Q19: NA | R19: NA | S19: Yes | T19: Yes | U19: NA | V19: No | W19: Yes | X19: NA | Y19: No | Z19: Yes | AA19: NA | AB19: No | AC19: Yes | AD19: Yes | AE19: NA | AF19: NA | AG19: NA | AH19: NA | AI19: NA | AJ19: NA | AK19: Yes | AL19: No | AM19: NA
C20: 4 | D20: Does the utility have an obligation to purchase from IPPs when it is cheaper than generating the power itself? | F20: 0.015 | G20: =$G$12/COUNT($C$17:$C$21) -> 0.05 | H20: =INDIRECT(H$4&"!D20") -> NA | I20: =INDIRECT(I$4&"!D20") -> No | J20: NA | K20: Yes | L20: Yes | M20: Yes | N20: Yes | O20: NA | P20: Yes | Q20: NA | R20: NA | S20: Yes | T20: Yes | U20: NA | V20: NA | W20: Yes | X20: NA | Y20: No | Z20: Yes | AA20: NA | AB20: No | AC20: Yes | AD20: No | AE20: NA | AF20: NA | AG20: NA | AH20: NA | AI20: NA | AJ20: NA | AK20: No | AL20: No | AM20: NA
C21: 5 | D21: Does the PPA have any take-or-pay arrangements? | F21: =G21*$G$8 -> 0.015 | G21: =$G$12/COUNT($C$17:$C$21) -> 0.05 | H21: =INDIRECT(H$4&"!D21") -> NA | I21: =INDIRECT(I$4&"!D21") -> No | J21: NA | K21: No | L21: Unknown | M21: No | N21: Yes | O21: NA | P21: Yes | Q21: NA | R21: NA | S21: No | T21: Yes | U21: NA | V21: NA | W21: Yes | X21: NA | Y21: Yes | Z21: Yes | AA21: NA | AB21: No | AC21: Yes | AD21: No | AE21: NA | AF21: NA | AG21: NA | AH21: NA | AI21: NA | AJ21: NA | AK21: Yes | AL21: No | AM21: NA
D22: Distributed generation | E22: 0 or 5 | F22: =G22*$G$8 -> 0.075 | G22: 0.25 | H22: =COUNTIF(H23:H24,"Yes")*5/COUNT($C$23:$C$24) -> 0 | I22: =COUNTIF(I23:I24,"Yes")*5/COUNT($C$23:$C$24) -> 5 | J22: 0 | K22: 5 | L22: 5 | M22: 2.5 | N22: 0 | O22: 0 | P22: 2.5 | Q22: 0 | R22: 0 | S22: 5 | T22: 5 | U22: 0 | V22: 5 | W22: 5 | X22: 0 | Y22: 0 | Z22: 5 | AA22: 0 | AB22: 0 | AC22: 0 | AD22: 2.5 | AE22: 0 | AF22: 0 | AG22: 0 | AH22: 0 | AI22: 0 | AJ22: 0 | AK22: 0 | AL22: 5 | AM22: 0
C23: 1 | D23: Do you have a registry or database of distributed generation? | F23: =G23*$G$8 -> 0.0375 | G23: =$G$22/COUNT($C$23:$C$24) -> 0.125 | H23: =INDIRECT(H$4&"!D23") -> NA | I23: =INDIRECT(I$4&"!D23") -> Yes | J23: NA | K23: Yes | L23: Yes | M23: No | N23: No | O23: NA | P23: No | Q23: NA | R23: NA | S23: Yes | T23: Yes | U23: NA | V23: Yes | W23: Yes | X23: NA | Y23: No | Z23: Yes | AA23: NA | AB23: No | AC23: No | AD23: No | AE23: NA | AF23: NA | AG23: NA | AH23: NA | AI23: NA | AJ23: NA | AK23: No | AL23: Yes | AM23: NA
C24: 2 | D24: Is there a standard arrangement in place for customers to sell electricity to the utility at a reasonable price, for a reasonable timeframe, and with a clear interconnection agreement? | F24: =G24*$G$8 -> 0.0375 | G24: =$G$22/COUNT($C$23:$C$24) -> 0.125 | H24: =INDIRECT(H$4&"!D28") -> NA | I24: =INDIRECT(I$4&"!D28") -> Yes | J24: NA | K24: Yes | L24: Yes | M24: Yes | N24: No | O24: NA | P24: Yes | Q24: NA | R24: NA | S24: Yes | T24: Yes | U24: NA | V24: Yes | W24: Yes | X24: NA | Y24: No | Z24: Yes | AA24: NA | AB24: No | AC24: No | AD24: Yes | AE24: NA | AF24: NA | AG24: NA | AH24: NA | AI24: NA | AJ24: NA | AK24: No | AL24: Yes | AM24: NA
B26: 2 | D26: Existing renewable generation | F26: =SUM(F27:F31) -> 0.3 | G26: 0.3 | H26: =H27 -> 0 | I26: =I27 -> 0.119893854 | J26: =J27 -> 0.7425373737 | K26: =K27 -> 0 | L26: 0.09581276628 | M26: 0.2800545455 | N26: 1.248825063 | O26: 1.590909091 | P26: 0 | Q26: 0.08194755451 | R26: 0.02040672661 | S26: 1.25 | T26: 1.081185484 | U26: 4.384989945 | V26: 0.03246268722 | W26: 1.100811124 | X26: 0.4898527448 | Y26: 0.9434518216 | Z26: 0.534359913 | AA26: 0.35 | AB26: 0.1571428571 | AC26: 0.7484245307 | AD26: 0.1 | AE26: 0 | AF26: 0 | AG26: 0.09678587922 | AH26: 0.02597109298 | AI26: 0.06284761905 | AJ26: 2.22813043 | AK26: 0 | AL26: 0 | AM26: 0.07318
C27: 1 | D27: Share of RE to total electricity produced to scale | F27: =$G$26*G27 -> 0.3 | G27: =1/COUNT(C27:C31) -> 1 | H27: =H28*5 -> 0 | I27: =I28*5 -> 0.119893854 | J27: =J28*5 -> 0.7425373737 | K27: =K28*5 -> 0 | L27: 0.09581276628 | M27: 0.2800545455 | N27: 1.248825063 | O27: 1.590909091 | P27: 0 | Q27: 0.08194755451 | R27: 0.02040672661 | S27: 1.25 | T27: 1.081185484 | U27: 4.384989945 | V27: 0.03246268722 | W27: 1.100811124 | X27: 0.4898527448 | Y27: 0.9434518216 | Z27: 0.534359913 | AA27: 0.35 | AB27: 0.1571428571 | AC27: 0.7484245307 | AD27: 0.1 | AE27: 0 | AF27: 0 | AG27: 0.09678587922 | AH27: 0.02597109298 | AI27: 0.06284761905 | AJ27: 2.22813043 | AK27: 0 | AL27: =AL28*5 -> 0 | AM27: 0.07318
D28: Share of RE to total electricity produced | E28: % | H28: =H31/H29 -> 0 | I28: =I31/I29 -> 0.02397877079 | J28: =J31/J29 -> 0.1485074747 | K28: 0 | L28: =L31/L29 -> 0.01916255326 | M28: 0.05601090909 | N28: 0.2497650127 | O28: 0.3181818182 | P28: 0 | Q28: 0.0163895109 | R28: 0.004081345322 | S28: 0.25 | T28: 0.2162370968 | U28: 0.876997989 | V28: 0.006492537444 | W28: 0.2201622248 | X28: 0.09797054895 | Y28: 0.1886903643 | Z28: 0.1068719826 | AA28: 0.07 | AB28: 0.03142857143 | AC28: 0.1496849061 | AD28: 0.02 | AE28: 0 | AF28: 0 | AG28: 0.01935717584 | AH28: 0.005194218597 | AI28: 0.01256952381 | AJ28: 0.445626086 | AK28: 0 | AL28: 0 | AM28: =AM31/AM29 -> 0.014636
D29: What was the total electricity generated in 2019? (MWh) | E29: MWh / year | H29: =IF(OR(INDIRECT(H$4&"!D32")=0,INDIRECT(H$4&"!D32")="NA"),VLOOKUP(H$4,'Jurisdictions | Generation'!$A$3:$I$35,5,FALSE),INDIRECT(H$4&"!D32")) -> 100446 | I29: =IF(OR(INDIRECT(I$4&"!D32")=0,INDIRECT(I$4&"!D32")="NA"),VLOOKUP(I$4,'Jurisdictions | Generation'!$A$3:$I$35,5,FALSE),INDIRECT(I$4&"!D32")) -> 375332 | J29: =IF(OR(INDIRECT(J$4&"!D32")=0,INDIRECT(J$4&"!D32")="NA"),VLOOKUP(J$4,'Jurisdictions | Generation'!$A$3:$I$35,5,FALSE),INDIRECT(J$4&"!D32")) -> 990000 | K29: =IF(OR(INDIRECT(K$4&"!D32")=0,INDIRECT(K$4&"!D32")="NA"),VLOOKUP(K$4,'Jurisdictions | Generation'!$A$3:$I$35,5,FALSE),INDIRECT(K$4&"!D32")) -> 207547.3 | L29: =IF(OR(INDIRECT(L$4&"!D32")=0,INDIRECT(L$4&"!D32")="NA"),VLOOKUP(L$4,'Jurisdictions | Generation'!$A$3:$I$35,5,FALSE),INDIRECT(L$4&"!D32")) -> 980072.162 | M29: =IF(OR(INDIRECT(M$4&"!D32")=0,INDIRECT(M$4&"!D32")="NA"),VLOOKUP(M$4,'Jurisdictions | Generation'!$A$3:$I$35,5,FALSE),INDIRECT(M$4&"!D32")) -> 550000 | N29: =IF(OR(INDIRECT(N$4&"!D32")=0,INDIRECT(N$4&"!D32")="NA"),VLOOKUP(N$4,'Jurisdictions | Generation'!$A$3:$I$35,5,FALSE),INDIRECT(N$4&"!D32")) -> 669185 | O29: =IF(OR(INDIRECT(O$4&"!D32")=0,INDIRECT(O$4&"!D32")="NA"),VLOOKUP(O$4,'Jurisdictions | Generation'!$A$3:$I$35,5,FALSE),INDIRECT(O$4&"!D32")) -> 110000 | P29: =IF(OR(INDIRECT(P$4&"!D32")=0,INDIRECT(P$4&"!D32")="NA"),VLOOKUP(P$4,'Jurisdictions | Generation'!$A$3:$I$35,5,FALSE),INDIRECT(P$4&"!D32")) -> 191629.28 | Q29: =IF(OR(INDIRECT(Q$4&"!D32")=0,INDIRECT(Q$4&"!D32")="NA"),VLOOKUP(Q$4,'Jurisdictions | Generation'!$A$3:$I$35,5,FALSE),INDIRECT(Q$4&"!D32")) -> 678800 | R29: =IF(OR(INDIRECT(R$4&"!D32")=0,INDIRECT(R$4&"!D32")="NA"),VLOOKUP(R$4,'Jurisdictions | Generation'!$A$3:$I$35,5,FALSE),INDIRECT(R$4&"!D32")) -> 20837000 | S29: =IF(OR(INDIRECT(S$4&"!D32")=0,INDIRECT(S$4&"!D32")="NA"),VLOOKUP(S$4,'Jurisdictions | Generation'!$A$3:$I$35,5,FALSE),INDIRECT(S$4&"!D32")) -> 880000 | T29: =IF(OR(INDIRECT(T$4&"!D32")=0,INDIRECT(T$4&"!D32")="NA"),VLOOKUP(T$4,'Jurisdictions | Generation'!$A$3:$I$35,5,FALSE),INDIRECT(T$4&"!D32")) -> 93194 | U29: =IF(OR(INDIRECT(U$4&"!D32")=0,INDIRECT(U$4&"!D32")="NA"),VLOOKUP(U$4,'Jurisdictions | Generation'!$A$3:$I$35,5,FALSE),INDIRECT(U$4&"!D32")) -> 19651017 | V29: =IF(OR(INDIRECT(V$4&"!D32")=0,INDIRECT(V$4&"!D32")="NA"),VLOOKUP(V$4,'Jurisdictions | Generation'!$A$3:$I$35,5,FALSE),INDIRECT(V$4&"!D32")) -> 235952.201 | W29: =IF(OR(INDIRECT(W$4&"!D32")=0,INDIRECT(W$4&"!D32")="NA"),VLOOKUP(W$4,'Jurisdictions | Generation'!$A$3:$I$35,5,FALSE),INDIRECT(W$4&"!D32")) -> 1726000 | X29: =IF(OR(INDIRECT(X$4&"!D32")=0,INDIRECT(X$4&"!D32")="NA"),VLOOKUP(X$4,'Jurisdictions | Generation'!$A$3:$I$35,5,FALSE),INDIRECT(X$4&"!D32")) -> 809411 | Y29: =IF(OR(INDIRECT(Y$4&"!D32")=0,INDIRECT(Y$4&"!D32")="NA"),VLOOKUP(Y$4,'Jurisdictions | Generation'!$A$3:$I$35,5,FALSE),INDIRECT(Y$4&"!D32")) -> 1045037.2 | Z29: =IF(OR(INDIRECT(Z$4&"!D32")=0,INDIRECT(Z$4&"!D32")="NA"),VLOOKUP(Z$4,'Jurisdictions | Generation'!$A$3:$I$35,5,FALSE),INDIRECT(Z$4&"!D32")) -> 4431479.5 | AA29: =IF(OR(INDIRECT(AA$4&"!D32")=0,INDIRECT(AA$4&"!D32")="NA"),VLOOKUP(AA$4,'Jurisdictions | Generation'!$A$3:$I$35,5,FALSE),INDIRECT(AA$4&"!D32")) -> 1560000 | AB29: =IF(OR(INDIRECT(AB$4&"!D32")=0,INDIRECT(AB$4&"!D32")="NA"),VLOOKUP(AB$4,'Jurisdictions | Generation'!$A$3:$I$35,5,FALSE),INDIRECT(AB$4&"!D32")) -> 14000 | AC29: =IF(OR(INDIRECT(AC$4&"!D32")=0,INDIRECT(AC$4&"!D32")="NA"),VLOOKUP(AC$4,'Jurisdictions | Generation'!$A$3:$I$35,5,FALSE),INDIRECT(AC$4&"!D32")) -> 59225.21 | AD29: =IF(OR(INDIRECT(AD$4&"!D32")=0,INDIRECT(AD$4&"!D32")="NA"),VLOOKUP(AD$4,'Jurisdictions | Generation'!$A$3:$I$35,5,FALSE),INDIRECT(AD$4&"!D32")) -> 357408 | AE29: =IF(OR(INDIRECT(AE$4&"!D32")=0,INDIRECT(AE$4&"!D32")="NA"),VLOOKUP(AE$4,'Jurisdictions | Generation'!$A$3:$I$35,5,FALSE),INDIRECT(AE$4&"!D32")) -> 175000 | AF29: =IF(OR(INDIRECT(AF$4&"!D32")=0,INDIRECT(AF$4&"!D32")="NA"),VLOOKUP(AF$4,'Jurisdictions | Generation'!$A$3:$I$35,5,FALSE),INDIRECT(AF$4&"!D32")) -> 372671 | AG29: =IF(OR(INDIRECT(AG$4&"!D32")=0,INDIRECT(AG$4&"!D32")="NA"),VLOOKUP(AG$4,'Jurisdictions | Generation'!$A$3:$I$35,5,FALSE),INDIRECT(AG$4&"!D32")) -> 361623 | AH29: =IF(OR(INDIRECT(AH$4&"!D32")=0,INDIRECT(AH$4&"!D32")="NA"),VLOOKUP(AH$4,'Jurisdictions | Generation'!$A$3:$I$35,5,FALSE),INDIRECT(AH$4&"!D32")) -> 149929 | AI29: =IF(OR(INDIRECT(AI$4&"!D32")=0,INDIRECT(AI$4&"!D32")="NA"),VLOOKUP(AI$4,'Jurisdictions | Generation'!$A$3:$I$35,5,FALSE),INDIRECT(AI$4&"!D32")) -> 150000 | AJ29: =IF(OR(INDIRECT(AJ$4&"!D32")=0,INDIRECT(AJ$4&"!D32")="NA"),VLOOKUP(AJ$4,'Jurisdictions | Generation'!$A$3:$I$35,5,FALSE),INDIRECT(AJ$4&"!D32")) -> 1949000 | AK29: =IF(OR(INDIRECT(AK$4&"!D32")=0,INDIRECT(AK$4&"!D32")="NA"),VLOOKUP(AK$4,'Jurisdictions | Generation'!$A$3:$I$35,5,FALSE),INDIRECT(AK$4&"!D32")) -> 11100000 | AL29: =IF(OR(INDIRECT(AL$4&"!D32")=0,INDIRECT(AL$4&"!D32")="NA"),VLOOKUP(AL$4,'Jurisdictions | Generation'!$A$3:$I$35,5,FALSE),INDIRECT(AL$4&"!D32")) -> 250700 | AM29: =IF(OR(INDIRECT(AM$4&"!D32")=0,INDIRECT(AM$4&"!D32")="NA"),VLOOKUP(AM$4,'Jurisdictions | Generation'!$A$3:$I$35,5,FALSE),INDIRECT(AM$4&"!D32")) -> 1000000
D30: Total electricity generation data source (survey or project database) | H30: =IF(OR(INDIRECT(H$4&"!D32")=0,INDIRECT(H$4&"!D32")="NA"),"Database","Survey") -> Database | I30: =IF(OR(INDIRECT(I$4&"!D32")=0,INDIRECT(I$4&"!D32")="NA"),"Database","Survey") -> Survey | J30: Database | K30: Survey | L30: Survey | M30: Survey | N30: Survey | O30: Database | P30: Survey | Q30: Database | R30: Database | S30: Survey | T30: Survey | U30: Database | V30: Survey | W30: Survey | X30: Database | Y30: Survey | Z30: Survey | AA30: Database | AB30: Survey | AC30: Survey | AD30: Survey | AE30: Database | AF30: Database | AG30: Database | AH30: Database | AI30: Database | AJ30: Database | AK30: Database | AL30: Survey | AM30: Database
D31: What was the total electricity generated from Utility Scale RE projects in 2019? (MWh) | E31: MWh / year | H31: =IF(INDIRECT(H$4&"!D33")="NA",VLOOKUP(H$4,'Jurisdictions | Generation'!$A$3:$M$35,13,FALSE),INDIRECT(H$4&"!D33")) -> 0 | I31: =IF(INDIRECT(I$4&"!D33")="NA",VLOOKUP(I$4,'Jurisdictions | Generation'!$A$3:$M$35,13,FALSE),INDIRECT(I$4&"!D33")) -> 9000 | J31: =IF(INDIRECT(J$4&"!D33")="NA",VLOOKUP(J$4,'Jurisdictions | Generation'!$A$3:$M$35,13,FALSE),INDIRECT(J$4&"!D33")) -> 147022.4 | K31: =IF(INDIRECT(K$4&"!D33")="NA",VLOOKUP(K$4,'Jurisdictions | Generation'!$A$3:$M$35,13,FALSE),INDIRECT(K$4&"!D33")) -> 0 | L31: =IF(INDIRECT(L$4&"!D33")="NA",VLOOKUP(L$4,'Jurisdictions | Generation'!$A$3:$M$35,13,FALSE),INDIRECT(L$4&"!D33")) -> 18780.685 | M31: =IF(INDIRECT(M$4&"!D33")="NA",VLOOKUP(M$4,'Jurisdictions | Generation'!$A$3:$M$35,13,FALSE),INDIRECT(M$4&"!D33")) -> 30806 | N31: =IF(INDIRECT(N$4&"!D33")="NA",VLOOKUP(N$4,'Jurisdictions | Generation'!$A$3:$M$35,13,FALSE),INDIRECT(N$4&"!D33")) -> 167139 | O31: =IF(INDIRECT(O$4&"!D33")="NA",VLOOKUP(O$4,'Jurisdictions | Generation'!$A$3:$M$35,13,FALSE),INDIRECT(O$4&"!D33")) -> 35000 | P31: =IF(INDIRECT(P$4&"!D33")="NA",VLOOKUP(P$4,'Jurisdictions | Generation'!$A$3:$M$35,13,FALSE),INDIRECT(P$4&"!D33")) -> 0 | Q31: =IF(INDIRECT(Q$4&"!D33")="NA",VLOOKUP(Q$4,'Jurisdictions | Generation'!$A$3:$M$35,13,FALSE),INDIRECT(Q$4&"!D33")) -> 11125.2 | R31: =IF(INDIRECT(R$4&"!D33")="NA",VLOOKUP(R$4,'Jurisdictions | Generation'!$A$3:$M$35,13,FALSE),INDIRECT(R$4&"!D33")) -> 85042.99248 | S31: =IF(INDIRECT(S$4&"!D33")="NA",VLOOKUP(S$4,'Jurisdictions | Generation'!$A$3:$M$35,13,FALSE),INDIRECT(S$4&"!D33")) -> 220000 | T31: =IF(INDIRECT(T$4&"!D33")="NA",VLOOKUP(T$4,'Jurisdictions | Generation'!$A$3:$M$35,13,FALSE),INDIRECT(T$4&"!D33")) -> 20152 | U31: =IF(INDIRECT(U$4&"!D33")="NA",VLOOKUP(U$4,'Jurisdictions | Generation'!$A$3:$M$35,13,FALSE),INDIRECT(U$4&"!D33")) -> 17233902.39 | V31: =IF(INDIRECT(V$4&"!D33")="NA",VLOOKUP(V$4,'Jurisdictions | Generation'!$A$3:$M$35,13,FALSE),INDIRECT(V$4&"!D33")) -> 1531.9285 | W31: =IF(INDIRECT(W$4&"!D33")="NA",VLOOKUP(W$4,'Jurisdictions | Generation'!$A$3:$M$35,13,FALSE),INDIRECT(W$4&"!D33")) -> 380000 | X31: =IF(INDIRECT(X$4&"!D33")="NA",VLOOKUP(X$4,'Jurisdictions | Generation'!$A$3:$M$35,13,FALSE),INDIRECT(X$4&"!D33")) -> 79298.44 | Y31: =IF(INDIRECT(Y$4&"!D33")="NA",VLOOKUP(Y$4,'Jurisdictions | Generation'!$A$3:$M$35,13,FALSE),INDIRECT(Y$4&"!D33")) -> 197188.45 | Z31: =IF(INDIRECT(Z$4&"!D33")="NA",VLOOKUP(Z$4,'Jurisdictions | Generation'!$A$3:$M$35,13,FALSE),INDIRECT(Z$4&"!D33")) -> 473601 | AA31: =IF(INDIRECT(AA$4&"!D33")="NA",VLOOKUP(AA$4,'Jurisdictions | Generation'!$A$3:$M$35,13,FALSE),INDIRECT(AA$4&"!D33")) -> 109200 | AB31: =IF(INDIRECT(AB$4&"!D33")="NA",VLOOKUP(AB$4,'Jurisdictions | Generation'!$A$3:$M$35,13,FALSE),INDIRECT(AB$4&"!D33")) -> 440 | AC31: =IF(INDIRECT(AC$4&"!D33")="NA",VLOOKUP(AC$4,'Jurisdictions | Generation'!$A$3:$M$35,13,FALSE),INDIRECT(AC$4&"!D33")) -> 8865.12 | AD31: =IF(INDIRECT(AD$4&"!D33")="NA",VLOOKUP(AD$4,'Jurisdictions | Generation'!$A$3:$M$35,13,FALSE),INDIRECT(AD$4&"!D33")) -> 357408 | AE31: =IF(INDIRECT(AE$4&"!D33")="NA",VLOOKUP(AE$4,'Jurisdictions | Generation'!$A$3:$M$35,13,FALSE),INDIRECT(AE$4&"!D33")) -> 0 | AF31: =IF(INDIRECT(AF$4&"!D33")="NA",VLOOKUP(AF$4,'Jurisdictions | Generation'!$A$3:$M$35,13,FALSE),INDIRECT(AF$4&"!D33")) -> 0 | AG31: =IF(INDIRECT(AG$4&"!D33")="NA",VLOOKUP(AG$4,'Jurisdictions | Generation'!$A$3:$M$35,13,FALSE),INDIRECT(AG$4&"!D33")) -> 7000 | AH31: =IF(INDIRECT(AH$4&"!D33")="NA",VLOOKUP(AH$4,'Jurisdictions | Generation'!$A$3:$M$35,13,FALSE),INDIRECT(AH$4&"!D33")) -> 778.764 | AI31: =IF(INDIRECT(AI$4&"!D33")="NA",VLOOKUP(AI$4,'Jurisdictions | Generation'!$A$3:$M$35,13,FALSE),INDIRECT(AI$4&"!D33")) -> 1885.428571 | AJ31: =IF(INDIRECT(AJ$4&"!D33")="NA",VLOOKUP(AJ$4,'Jurisdictions | Generation'!$A$3:$M$35,13,FALSE),INDIRECT(AJ$4&"!D33")) -> 868525.2417 | AK31: =IF(INDIRECT(AK$4&"!D33")="NA",VLOOKUP(AK$4,'Jurisdictions | Generation'!$A$3:$M$35,13,FALSE),INDIRECT(AK$4&"!D33")) -> 0 | AL31: =IF(INDIRECT(AL$4&"!D33")="NA",VLOOKUP(AL$4,'Jurisdictions | Generation'!$A$3:$M$35,13,FALSE),INDIRECT(AL$4&"!D33")) -> 0 | AM31: =IF(INDIRECT(AM$4&"!D33")="NA",VLOOKUP(AM$4,'Jurisdictions | Generation'!$A$3:$M$35,13,FALSE),INDIRECT(AM$4&"!D33")) -> 14636
D32: Utility RE generation data source (survey or project database) | H32: =IF(INDIRECT(H$4&"!D33")="NA","Database","Survey") -> Database | I32: =IF(INDIRECT(I$4&"!D33")="NA","Database","Survey") -> Survey | J32: Database | K32: Survey | L32: Survey | M32: Database | N32: Survey | O32: Database | P32: Survey | Q32: Database | R32: Database | S32: Survey | T32: Survey | U32: Database | V32: Survey | W32: Survey | X32: Database | Y32: Survey | Z32: Survey | AA32: Survey | AB32: Survey | AC32: Database | AD32: Survey | AE32: Database | AF32: Database | AG32: Database | AH32: Database | AI32: Database | AJ32: Database | AK32: Survey | AL32: Survey | AM32: Database
B34: 3 | D34: Planned renewable generation | F34: =SUM(F35:F40) -> 0.3 | G34: 0.3 | H34: =IF(H35="Yes",(5/COUNT($C$35:$C$40))*$G$35,0)+($G$36*H36)+IF(H40="Yes",(5/COUNT($C$35:$C$40)*$G$40),0) -> 0 | I34: =IF(I35="Yes",(5/COUNT($C$35:$C$40))*$G$35,0)+($G$36*I36)+IF(I40="Yes",(5/COUNT($C$35:$C$40)*$G$40),0) -> 1.641108553 | J34: =IF(J35="Yes",(5/COUNT($C$35:$C$40))*$G$35,0)+($G$36*J36)+IF(J40="Yes",(5/COUNT($C$35:$C$40)*$G$40),0) -> 0 | K34: =IF(K35="Yes",(5/COUNT($C$35:$C$40))*$G$35,0)+($G$36*K36)+IF(K40="Yes",(5/COUNT($C$35:$C$40)*$G$40),0) -> 2.053739611 | L34: 2.280497793 | M34: 1.111111111 | N34: 1.111111111 | O34: 0 | P34: 0.5555555556 | Q34: 0 | R34: 0 | S34: 1.144292929 | T34: =MIN(5,IF(T35="Yes",(5/COUNT($C$35:$C$40))*$G$35,0)+($G$36*T36)+IF(T40="Yes",(5/COUNT($C$35:$C$40)*$G$40),0)) -> 2.434515336 | U34: =MIN(5,IF(U35="Yes",(5/COUNT($C$35:$C$40))*$G$35,0)+($G$36*U36)+IF(U40="Yes",(5/COUNT($C$35:$C$40)*$G$40),0)) -> 0 | V34: =IF(V35="Yes",(5/COUNT($C$35:$C$40))*$G$35,0)+($G$36*V36)+IF(V40="Yes",(5/COUNT($C$35:$C$40)*$G$40),0) -> 0 | W34: 1.702072872 | X34: 0 | Y34: 0 | Z34: 1.29915967 | AA34: 0 | AB34: 1.903174603 | AC34: 1.111111111 | AD34: 1.111111111 | AE34: 0 | AF34: 0 | AG34: 0 | AH34: 0 | AI34: 0 | AJ34: 0 | AK34: 0.5555555556 | AL34: 1.164295528 | AM34: 0
C35: 1 | D35: Does your country have an estimate of planned installed capacity expected to come online from-utility scale RE projects? | F35: =$G$34*G35 -> 0.1 | G35: =1/3 -> 0.3333333333 | H35: =INDIRECT(H$4&"!D37") -> NA | I35: =INDIRECT(I$4&"!D37") -> Yes | J35: =INDIRECT(J$4&"!D37") -> NA | K35: Yes | L35: Yes | M35: Yes | N35: Yes | O35: NA | P35: Yes | Q35: NA | R35: NA | S35: Yes | T35: Yes | U35: NA | V35: No | W35: Yes | X35: NA | Y35: No | Z35: Yes | AA35: NA | AB35: Yes | AC35: Yes | AD35: Yes | AE35: NA | AF35: NA | AG35: NA | AH35: NA | AI35: NA | AJ35: NA | AK35: Yes | AL35: Yes | AM35: NA
C36: 2 | D36: Share of planned production from RE/total electricity production to scale | F36: =$G$34*G36 -> 0.1 | G36: =1/3 -> 0.3333333333 | H36: =H37*5 -> 0 | I36: =I37*5 -> 1.589992327 | J36: =J37*5 -> 0 | K36: =K37*5 -> 2.827885499 | L36: =L37*5 -> 3.508160045 | M36: 0 | N36: 0 | O36: 0 | P36: 0 | Q36: =Q37*5 -> 0 | R36: 0 | S36: 0.09954545455 | T36: 3.970212675 | U36: 0 | V36: 0 | W36: 1.772885284 | X36: 0 | Y36: 0 | Z36: 0.5641456764 | AA36: 0 | AB36: 4.042857143 | AC36: 0 | AD36: 0 | AE36: 0 | AF36: 0 | AG36: 0 | AH36: 0 | AI36: 0 | AJ36: 0 | AK36: 0 | AL36: 0.1595532509 | AM36: 0
D37: Shared of planned production from RE / total electricity production | E37: % | H37: =IFERROR((H38/H29),0) -> 0 | I37: =IFERROR((I38/I29),0) -> 0.3179984654 | J37: 0 | K37: 0.5655770998 | L37: 0.701632009 | M37: 0 | N37: 0 | O37: 0 | P37: 0 | Q37: 0 | R37: 0 | S37: 0.01990909091 | T37: 0.7940425349 | U37: 0 | V37: 0 | W37: 0.3545770568 | X37: 0 | Y37: 0 | Z37: 0.1128291353 | AA37: 0 | AB37: 0.8085714286 | AC37: 0 | AD37: 0 | AE37: 0 | AF37: 0 | AG37: 0 | AH37: 0 | AI37: 0 | AJ37: 0 | AK37: 0 | AL37: 0.03191065018 | AM37: =IFERROR((AM38/AM29),0) -> 0
D38: Total planned electricity production from RE | E38: MWh / year | H38: =IF(INDIRECT(H$4&"!E39")="NA",SUMIFS(Marketplace!$P$3:$P$435,Marketplace!$C$3:$C$435,"="&H5,Marketplace!$AI$3:$AI$435,"Confident",Marketplace!$J$3:$J$435,"Planned",Marketplace!$I$3:$I$435,"Utility/IPP")+SUMIFS(Marketplace!$P$3:$P$435,Marketplace!$C$3:$C$435,"="&H5,Marketplace!$AI$3:$AI$435,"Confident",Marketplace!$J$3:$J$435,"Under development",Marketplace!$I$3:$I$435,"Utility/IPP")+SUMIFS(Marketplace!$P$3:$P$435,Marketplace!$C$3:$C$435,"="&H5,Marketplace!$AI$3:$AI$435,"Confident",Marketplace!$J$3:$J$435,"Operational",Marketplace!$AF$3:$AF$435,"2019",Marketplace!$I$3:$I$435,"Utility/IPP"),INDIRECT(H$4&"!E39")) -> 0 | I38: =IF(INDIRECT(I$4&"!E39")="NA",SUMIFS(Marketplace!$P$3:$P$435,Marketplace!$C$3:$C$435,"="&I5,Marketplace!$AI$3:$AI$435,"Confident",Marketplace!$J$3:$J$435,"Planned",Marketplace!$I$3:$I$435,"Utility/IPP")+SUMIFS(Marketplace!$P$3:$P$435,Marketplace!$C$3:$C$435,"="&I5,Marketplace!$AI$3:$AI$435,"Confident",Marketplace!$J$3:$J$435,"Under development",Marketplace!$I$3:$I$435,"Utility/IPP")+SUMIFS(Marketplace!$P$3:$P$435,Marketplace!$C$3:$C$435,"="&I5,Marketplace!$AI$3:$AI$435,"Confident",Marketplace!$J$3:$J$435,"Operational",Marketplace!$AF$3:$AF$435,"2019",Marketplace!$I$3:$I$435,"Utility/IPP"),INDIRECT(I$4&"!E39")) -> 119355 | J38: =IF(INDIRECT(J$4&"!E39")="NA",SUMIFS(Marketplace!$P$3:$P$435,Marketplace!$C$3:$C$435,"="&J5,Marketplace!$AI$3:$AI$435,"Confident",Marketplace!$J$3:$J$435,"Planned",Marketplace!$I$3:$I$435,"Utility/IPP")+SUMIFS(Marketplace!$P$3:$P$435,Marketplace!$C$3:$C$435,"="&J5,Marketplace!$AI$3:$AI$435,"Confident",Marketplace!$J$3:$J$435,"Under development",Marketplace!$I$3:$I$435,"Utility/IPP")+SUMIFS(Marketplace!$P$3:$P$435,Marketplace!$C$3:$C$435,"="&J5,Marketplace!$AI$3:$AI$435,"Confident",Marketplace!$J$3:$J$435,"Operational",Marketplace!$AF$3:$AF$435,"2019",Marketplace!$I$3:$I$435,"Utility/IPP"),INDIRECT(J$4&"!E39")) -> 0 | K38: =IF(INDIRECT(K$4&"!E39")="NA",SUMIFS(Marketplace!$P$3:$P$435,Marketplace!$C$3:$C$435,"="&K5,Marketplace!$AI$3:$AI$435,"Confident",Marketplace!$J$3:$J$435,"Planned",Marketplace!$I$3:$I$435,"Utility/IPP")+SUMIFS(Marketplace!$P$3:$P$435,Marketplace!$C$3:$C$435,"="&K5,Marketplace!$AI$3:$AI$435,"Confident",Marketplace!$J$3:$J$435,"Under development",Marketplace!$I$3:$I$435,"Utility/IPP")+SUMIFS(Marketplace!$P$3:$P$435,Marketplace!$C$3:$C$435,"="&K5,Marketplace!$AI$3:$AI$435,"Confident",Marketplace!$J$3:$J$435,"Operational",Marketplace!$AF$3:$AF$435,"2019",Marketplace!$I$3:$I$435,"Utility/IPP"),INDIRECT(K$4&"!E39")) -> 117384 | L38: =IF(INDIRECT(L$4&"!E39")="NA",SUMIFS(Marketplace!$P$3:$P$435,Marketplace!$C$3:$C$435,"="&L5,Marketplace!$AI$3:$AI$435,"Confident",Marketplace!$J$3:$J$435,"Planned",Marketplace!$I$3:$I$435,"Utility/IPP")+SUMIFS(Marketplace!$P$3:$P$435,Marketplace!$C$3:$C$435,"="&L5,Marketplace!$AI$3:$AI$435,"Confident",Marketplace!$J$3:$J$435,"Under development",Marketplace!$I$3:$I$435,"Utility/IPP")+SUMIFS(Marketplace!$P$3:$P$435,Marketplace!$C$3:$C$435,"="&L5,Marketplace!$AI$3:$AI$435,"Confident",Marketplace!$J$3:$J$435,"Operational",Marketplace!$AF$3:$AF$435,"2019",Marketplace!$I$3:$I$435,"Utility/IPP"),INDIRECT(L$4&"!E39")) -> 687650 | M38: =IF(INDIRECT(M$4&"!E39")="NA",SUMIFS(Marketplace!$P$3:$P$435,Marketplace!$C$3:$C$435,"="&M5,Marketplace!$AI$3:$AI$435,"Confident",Marketplace!$J$3:$J$435,"Planned",Marketplace!$I$3:$I$435,"Utility/IPP")+SUMIFS(Marketplace!$P$3:$P$435,Marketplace!$C$3:$C$435,"="&M5,Marketplace!$AI$3:$AI$435,"Confident",Marketplace!$J$3:$J$435,"Under development",Marketplace!$I$3:$I$435,"Utility/IPP")+SUMIFS(Marketplace!$P$3:$P$435,Marketplace!$C$3:$C$435,"="&M5,Marketplace!$AI$3:$AI$435,"Confident",Marketplace!$J$3:$J$435,"Operational",Marketplace!$AF$3:$AF$435,"2019",Marketplace!$I$3:$I$435,"Utility/IPP"),INDIRECT(M$4&"!E39")) -> unknown | N38: =IF(INDIRECT(N$4&"!E39")="NA",SUMIFS(Marketplace!$P$3:$P$435,Marketplace!$C$3:$C$435,"="&N5,Marketplace!$AI$3:$AI$435,"Confident",Marketplace!$J$3:$J$435,"Planned",Marketplace!$I$3:$I$435,"Utility/IPP")+SUMIFS(Marketplace!$P$3:$P$435,Marketplace!$C$3:$C$435,"="&N5,Marketplace!$AI$3:$AI$435,"Confident",Marketplace!$J$3:$J$435,"Under development",Marketplace!$I$3:$I$435,"Utility/IPP")+SUMIFS(Marketplace!$P$3:$P$435,Marketplace!$C$3:$C$435,"="&N5,Marketplace!$AI$3:$AI$435,"Confident",Marketplace!$J$3:$J$435,"Operational",Marketplace!$AF$3:$AF$435,"2019",Marketplace!$I$3:$I$435,"Utility/IPP"),INDIRECT(N$4&"!E39")) -> At least 45 MW of Utility Solar | O38: =IF(INDIRECT(O$4&"!E39")="NA",SUMIFS(Marketplace!$P$3:$P$435,Marketplace!$C$3:$C$435,"="&O5,Marketplace!$AI$3:$AI$435,"Confident",Marketplace!$J$3:$J$435,"Planned",Marketplace!$I$3:$I$435,"Utility/IPP")+SUMIFS(Marketplace!$P$3:$P$435,Marketplace!$C$3:$C$435,"="&O5,Marketplace!$AI$3:$AI$435,"Confident",Marketplace!$J$3:$J$435,"Under development",Marketplace!$I$3:$I$435,"Utility/IPP")+SUMIFS(Marketplace!$P$3:$P$435,Marketplace!$C$3:$C$435,"="&O5,Marketplace!$AI$3:$AI$435,"Confident",Marketplace!$J$3:$J$435,"Operational",Marketplace!$AF$3:$AF$435,"2019",Marketplace!$I$3:$I$435,"Utility/IPP"),INDIRECT(O$4&"!E39")) -> 0 | P38: =IF(INDIRECT(P$4&"!E39")="NA",SUMIFS(Marketplace!$P$3:$P$435,Marketplace!$C$3:$C$435,"="&P5,Marketplace!$AI$3:$AI$435,"Confident",Marketplace!$J$3:$J$435,"Planned",Marketplace!$I$3:$I$435,"Utility/IPP")+SUMIFS(Marketplace!$P$3:$P$435,Marketplace!$C$3:$C$435,"="&P5,Marketplace!$AI$3:$AI$435,"Confident",Marketplace!$J$3:$J$435,"Under development",Marketplace!$I$3:$I$435,"Utility/IPP")+SUMIFS(Marketplace!$P$3:$P$435,Marketplace!$C$3:$C$435,"="&P5,Marketplace!$AI$3:$AI$435,"Confident",Marketplace!$J$3:$J$435,"Operational",Marketplace!$AF$3:$AF$435,"2019",Marketplace!$I$3:$I$435,"Utility/IPP"),INDIRECT(P$4&"!E39")) -> 7 MW | Q38: =IF(INDIRECT(Q$4&"!E39")="NA",SUMIFS(Marketplace!$P$3:$P$435,Marketplace!$C$3:$C$435,"="&Q5,Marketplace!$AI$3:$AI$435,"Confident",Marketplace!$J$3:$J$435,"Planned",Marketplace!$I$3:$I$435,"Utility/IPP")+SUMIFS(Marketplace!$P$3:$P$435,Marketplace!$C$3:$C$435,"="&Q5,Marketplace!$AI$3:$AI$435,"Confident",Marketplace!$J$3:$J$435,"Under development",Marketplace!$I$3:$I$435,"Utility/IPP")+SUMIFS(Marketplace!$P$3:$P$435,Marketplace!$C$3:$C$435,"="&Q5,Marketplace!$AI$3:$AI$435,"Confident",Marketplace!$J$3:$J$435,"Operational",Marketplace!$AF$3:$AF$435,"2019",Marketplace!$I$3:$I$435,"Utility/IPP"),INDIRECT(Q$4&"!E39")) -> 0 | R38: =IF(INDIRECT(R$4&"!E39")="NA",SUMIFS(Marketplace!$P$3:$P$435,Marketplace!$C$3:$C$435,"="&R5,Marketplace!$AI$3:$AI$435,"Confident",Marketplace!$J$3:$J$435,"Planned",Marketplace!$I$3:$I$435,"Utility/IPP")+SUMIFS(Marketplace!$P$3:$P$435,Marketplace!$C$3:$C$435,"="&R5,Marketplace!$AI$3:$AI$435,"Confident",Marketplace!$J$3:$J$435,"Under development",Marketplace!$I$3:$I$435,"Utility/IPP")+SUMIFS(Marketplace!$P$3:$P$435,Marketplace!$C$3:$C$435,"="&R5,Marketplace!$AI$3:$AI$435,"Confident",Marketplace!$J$3:$J$435,"Operational",Marketplace!$AF$3:$AF$435,"2019",Marketplace!$I$3:$I$435,"Utility/IPP"),INDIRECT(R$4&"!E39")) -> 0 | S38: =IF(INDIRECT(S$4&"!E39")="NA",SUMIFS(Marketplace!$P$3:$P$435,Marketplace!$C$3:$C$435,"="&S5,Marketplace!$AI$3:$AI$435,"Confident",Marketplace!$J$3:$J$435,"Planned",Marketplace!$I$3:$I$435,"Utility/IPP")+SUMIFS(Marketplace!$P$3:$P$435,Marketplace!$C$3:$C$435,"="&S5,Marketplace!$AI$3:$AI$435,"Confident",Marketplace!$J$3:$J$435,"Under development",Marketplace!$I$3:$I$435,"Utility/IPP")+SUMIFS(Marketplace!$P$3:$P$435,Marketplace!$C$3:$C$435,"="&S5,Marketplace!$AI$3:$AI$435,"Confident",Marketplace!$J$3:$J$435,"Operational",Marketplace!$AF$3:$AF$435,"2019",Marketplace!$I$3:$I$435,"Utility/IPP"),INDIRECT(S$4&"!E39")) -> 17520 | T38: =IF(INDIRECT(T$4&"!E39")="NA",SUMIFS(Marketplace!$P$3:$P$435,Marketplace!$C$3:$C$435,"="&T5,Marketplace!$AI$3:$AI$435,"Confident",Marketplace!$J$3:$J$435,"Planned",Marketplace!$I$3:$I$435,"Utility/IPP")+SUMIFS(Marketplace!$P$3:$P$435,Marketplace!$C$3:$C$435,"="&T5,Marketplace!$AI$3:$AI$435,"Confident",Marketplace!$J$3:$J$435,"Under development",Marketplace!$I$3:$I$435,"Utility/IPP")+SUMIFS(Marketplace!$P$3:$P$435,Marketplace!$C$3:$C$435,"="&T5,Marketplace!$AI$3:$AI$435,"Confident",Marketplace!$J$3:$J$435,"Operational",Marketplace!$AF$3:$AF$435,"2019",Marketplace!$I$3:$I$435,"Utility/IPP"),INDIRECT(T$4&"!E39")) -> 74000 | U38: =IF(INDIRECT(U$4&"!E39")="NA",SUMIFS(Marketplace!$P$3:$P$435,Marketplace!$C$3:$C$435,"="&U5,Marketplace!$AI$3:$AI$435,"Confident",Marketplace!$J$3:$J$435,"Planned",Marketplace!$I$3:$I$435,"Utility/IPP")+SUMIFS(Marketplace!$P$3:$P$435,Marketplace!$C$3:$C$435,"="&U5,Marketplace!$AI$3:$AI$435,"Confident",Marketplace!$J$3:$J$435,"Under development",Marketplace!$I$3:$I$435,"Utility/IPP")+SUMIFS(Marketplace!$P$3:$P$435,Marketplace!$C$3:$C$435,"="&U5,Marketplace!$AI$3:$AI$435,"Confident",Marketplace!$J$3:$J$435,"Operational",Marketplace!$AF$3:$AF$435,"2019",Marketplace!$I$3:$I$435,"Utility/IPP"),INDIRECT(U$4&"!E39")) -> 0 | V38: =IF(INDIRECT(V$4&"!E39")="NA",SUMIFS(Marketplace!$P$3:$P$435,Marketplace!$C$3:$C$435,"="&V5,Marketplace!$AI$3:$AI$435,"Confident",Marketplace!$J$3:$J$435,"Planned",Marketplace!$I$3:$I$435,"Utility/IPP")+SUMIFS(Marketplace!$P$3:$P$435,Marketplace!$C$3:$C$435,"="&V5,Marketplace!$AI$3:$AI$435,"Confident",Marketplace!$J$3:$J$435,"Under development",Marketplace!$I$3:$I$435,"Utility/IPP")+SUMIFS(Marketplace!$P$3:$P$435,Marketplace!$C$3:$C$435,"="&V5,Marketplace!$AI$3:$AI$435,"Confident",Marketplace!$J$3:$J$435,"Operational",Marketplace!$AF$3:$AF$435,"2019",Marketplace!$I$3:$I$435,"Utility/IPP"),INDIRECT(V$4&"!E39")) -> 0 | W38: =IF(INDIRECT(W$4&"!E39")="NA",SUMIFS(Marketplace!$P$3:$P$435,Marketplace!$C$3:$C$435,"="&W5,Marketplace!$AI$3:$AI$435,"Confident",Marketplace!$J$3:$J$435,"Planned",Marketplace!$I$3:$I$435,"Utility/IPP")+SUMIFS(Marketplace!$P$3:$P$435,Marketplace!$C$3:$C$435,"="&W5,Marketplace!$AI$3:$AI$435,"Confident",Marketplace!$J$3:$J$435,"Under development",Marketplace!$I$3:$I$435,"Utility/IPP")+SUMIFS(Marketplace!$P$3:$P$435,Marketplace!$C$3:$C$435,"="&W5,Marketplace!$AI$3:$AI$435,"Confident",Marketplace!$J$3:$J$435,"Operational",Marketplace!$AF$3:$AF$435,"2019",Marketplace!$I$3:$I$435,"Utility/IPP"),INDIRECT(W$4&"!E39")) -> 612000 | X38: =IF(INDIRECT(X$4&"!E39")="NA",SUMIFS(Marketplace!$P$3:$P$435,Marketplace!$C$3:$C$435,"="&X5,Marketplace!$AI$3:$AI$435,"Confident",Marketplace!$J$3:$J$435,"Planned",Marketplace!$I$3:$I$435,"Utility/IPP")+SUMIFS(Marketplace!$P$3:$P$435,Marketplace!$C$3:$C$435,"="&X5,Marketplace!$AI$3:$AI$435,"Confident",Marketplace!$J$3:$J$435,"Under development",Marketplace!$I$3:$I$435,"Utility/IPP")+SUMIFS(Marketplace!$P$3:$P$435,Marketplace!$C$3:$C$435,"="&X5,Marketplace!$AI$3:$AI$435,"Confident",Marketplace!$J$3:$J$435,"Operational",Marketplace!$AF$3:$AF$435,"2019",Marketplace!$I$3:$I$435,"Utility/IPP"),INDIRECT(X$4&"!E39")) -> 0 | Y38: =IF(INDIRECT(Y$4&"!E39")="NA",SUMIFS(Marketplace!$P$3:$P$435,Marketplace!$C$3:$C$435,"="&Y5,Marketplace!$AI$3:$AI$435,"Confident",Marketplace!$J$3:$J$435,"Planned",Marketplace!$I$3:$I$435,"Utility/IPP")+SUMIFS(Marketplace!$P$3:$P$435,Marketplace!$C$3:$C$435,"="&Y5,Marketplace!$AI$3:$AI$435,"Confident",Marketplace!$J$3:$J$435,"Under development",Marketplace!$I$3:$I$435,"Utility/IPP")+SUMIFS(Marketplace!$P$3:$P$435,Marketplace!$C$3:$C$435,"="&Y5,Marketplace!$AI$3:$AI$435,"Confident",Marketplace!$J$3:$J$435,"Operational",Marketplace!$AF$3:$AF$435,"2019",Marketplace!$I$3:$I$435,"Utility/IPP"),INDIRECT(Y$4&"!E39")) -> 0 | Z38: =IF(INDIRECT(Z$4&"!E39")="NA",SUMIFS(Marketplace!$P$3:$P$435,Marketplace!$C$3:$C$435,"="&Z5,Marketplace!$AI$3:$AI$435,"Confident",Marketplace!$J$3:$J$435,"Planned",Marketplace!$I$3:$I$435,"Utility/IPP")+SUMIFS(Marketplace!$P$3:$P$435,Marketplace!$C$3:$C$435,"="&Z5,Marketplace!$AI$3:$AI$435,"Confident",Marketplace!$J$3:$J$435,"Under development",Marketplace!$I$3:$I$435,"Utility/IPP")+SUMIFS(Marketplace!$P$3:$P$435,Marketplace!$C$3:$C$435,"="&Z5,Marketplace!$AI$3:$AI$435,"Confident",Marketplace!$J$3:$J$435,"Operational",Marketplace!$AF$3:$AF$435,"2019",Marketplace!$I$3:$I$435,"Utility/IPP"),INDIRECT(Z$4&"!E39")) -> 500000 | AA38: =IF(INDIRECT(AA$4&"!E39")="NA",SUMIFS(Marketplace!$P$3:$P$435,Marketplace!$C$3:$C$435,"="&AA5,Marketplace!$AI$3:$AI$435,"Confident",Marketplace!$J$3:$J$435,"Planned",Marketplace!$I$3:$I$435,"Utility/IPP")+SUMIFS(Marketplace!$P$3:$P$435,Marketplace!$C$3:$C$435,"="&AA5,Marketplace!$AI$3:$AI$435,"Confident",Marketplace!$J$3:$J$435,"Under development",Marketplace!$I$3:$I$435,"Utility/IPP")+SUMIFS(Marketplace!$P$3:$P$435,Marketplace!$C$3:$C$435,"="&AA5,Marketplace!$AI$3:$AI$435,"Confident",Marketplace!$J$3:$J$435,"Operational",Marketplace!$AF$3:$AF$435,"2019",Marketplace!$I$3:$I$435,"Utility/IPP"),INDIRECT(AA$4&"!E39")) -> 0 | AB38: =IF(INDIRECT(AB$4&"!E39")="NA",SUMIFS(Marketplace!$P$3:$P$435,Marketplace!$C$3:$C$435,"="&AB5,Marketplace!$AI$3:$AI$435,"Confident",Marketplace!$J$3:$J$435,"Planned",Marketplace!$I$3:$I$435,"Utility/IPP")+SUMIFS(Marketplace!$P$3:$P$435,Marketplace!$C$3:$C$435,"="&AB5,Marketplace!$AI$3:$AI$435,"Confident",Marketplace!$J$3:$J$435,"Under development",Marketplace!$I$3:$I$435,"Utility/IPP")+SUMIFS(Marketplace!$P$3:$P$435,Marketplace!$C$3:$C$435,"="&AB5,Marketplace!$AI$3:$AI$435,"Confident",Marketplace!$J$3:$J$435,"Operational",Marketplace!$AF$3:$AF$435,"2019",Marketplace!$I$3:$I$435,"Utility/IPP"),INDIRECT(AB$4&"!E39")) -> 11320 | AC38: =IF(INDIRECT(AC$4&"!E39")="NA",SUMIFS(Marketplace!$P$3:$P$435,Marketplace!$C$3:$C$435,"="&AC5,Marketplace!$AI$3:$AI$435,"Confident",Marketplace!$J$3:$J$435,"Planned",Marketplace!$I$3:$I$435,"Utility/IPP")+SUMIFS(Marketplace!$P$3:$P$435,Marketplace!$C$3:$C$435,"="&AC5,Marketplace!$AI$3:$AI$435,"Confident",Marketplace!$J$3:$J$435,"Under development",Marketplace!$I$3:$I$435,"Utility/IPP")+SUMIFS(Marketplace!$P$3:$P$435,Marketplace!$C$3:$C$435,"="&AC5,Marketplace!$AI$3:$AI$435,"Confident",Marketplace!$J$3:$J$435,"Operational",Marketplace!$AF$3:$AF$435,"2019",Marketplace!$I$3:$I$435,"Utility/IPP"),INDIRECT(AC$4&"!E39")) -> 0 | AD38: =IF(INDIRECT(AD$4&"!E39")="NA",SUMIFS(Marketplace!$P$3:$P$435,Marketplace!$C$3:$C$435,"="&AD5,Marketplace!$AI$3:$AI$435,"Confident",Marketplace!$J$3:$J$435,"Planned",Marketplace!$I$3:$I$435,"Utility/IPP")+SUMIFS(Marketplace!$P$3:$P$435,Marketplace!$C$3:$C$435,"="&AD5,Marketplace!$AI$3:$AI$435,"Confident",Marketplace!$J$3:$J$435,"Under development",Marketplace!$I$3:$I$435,"Utility/IPP")+SUMIFS(Marketplace!$P$3:$P$435,Marketplace!$C$3:$C$435,"="&AD5,Marketplace!$AI$3:$AI$435,"Confident",Marketplace!$J$3:$J$435,"Operational",Marketplace!$AF$3:$AF$435,"2019",Marketplace!$I$3:$I$435,"Utility/IPP"),INDIRECT(AD$4&"!E39")) -> Solar PV at least 3,500 MW and up to 3,900 MW by 2025 If 3,500 MW x 8760 x 17% = 5,212 GWh | AE38: =IF(INDIRECT(AE$4&"!E39")="NA",SUMIFS(Marketplace!$P$3:$P$435,Marketplace!$C$3:$C$435,"="&AE5,Marketplace!$AI$3:$AI$435,"Confident",Marketplace!$J$3:$J$435,"Planned",Marketplace!$I$3:$I$435,"Utility/IPP")+SUMIFS(Marketplace!$P$3:$P$435,Marketplace!$C$3:$C$435,"="&AE5,Marketplace!$AI$3:$AI$435,"Confident",Marketplace!$J$3:$J$435,"Under development",Marketplace!$I$3:$I$435,"Utility/IPP")+SUMIFS(Marketplace!$P$3:$P$435,Marketplace!$C$3:$C$435,"="&AE5,Marketplace!$AI$3:$AI$435,"Confident",Marketplace!$J$3:$J$435,"Operational",Marketplace!$AF$3:$AF$435,"2019",Marketplace!$I$3:$I$435,"Utility/IPP"),INDIRECT(AE$4&"!E39")) -> 0 | AF38: =IF(INDIRECT(AF$4&"!E39")="NA",SUMIFS(Marketplace!$P$3:$P$435,Marketplace!$C$3:$C$435,"="&AF5,Marketplace!$AI$3:$AI$435,"Confident",Marketplace!$J$3:$J$435,"Planned",Marketplace!$I$3:$I$435,"Utility/IPP")+SUMIFS(Marketplace!$P$3:$P$435,Marketplace!$C$3:$C$435,"="&AF5,Marketplace!$AI$3:$AI$435,"Confident",Marketplace!$J$3:$J$435,"Under development",Marketplace!$I$3:$I$435,"Utility/IPP")+SUMIFS(Marketplace!$P$3:$P$435,Marketplace!$C$3:$C$435,"="&AF5,Marketplace!$AI$3:$AI$435,"Confident",Marketplace!$J$3:$J$435,"Operational",Marketplace!$AF$3:$AF$435,"2019",Marketplace!$I$3:$I$435,"Utility/IPP"),INDIRECT(AF$4&"!E39")) -> 0 | AG38: =IF(INDIRECT(AG$4&"!E39")="NA",SUMIFS(Marketplace!$P$3:$P$435,Marketplace!$C$3:$C$435,"="&AG5,Marketplace!$AI$3:$AI$435,"Confident",Marketplace!$J$3:$J$435,"Planned",Marketplace!$I$3:$I$435,"Utility/IPP")+SUMIFS(Marketplace!$P$3:$P$435,Marketplace!$C$3:$C$435,"="&AG5,Marketplace!$AI$3:$AI$435,"Confident",Marketplace!$J$3:$J$435,"Under development",Marketplace!$I$3:$I$435,"Utility/IPP")+SUMIFS(Marketplace!$P$3:$P$435,Marketplace!$C$3:$C$435,"="&AG5,Marketplace!$AI$3:$AI$435,"Confident",Marketplace!$J$3:$J$435,"Operational",Marketplace!$AF$3:$AF$435,"2019",Marketplace!$I$3:$I$435,"Utility/IPP"),INDIRECT(AG$4&"!E39")) -> 0 | AH38: =IF(INDIRECT(AH$4&"!E39")="NA",SUMIFS(Marketplace!$P$3:$P$435,Marketplace!$C$3:$C$435,"="&AH5,Marketplace!$AI$3:$AI$435,"Confident",Marketplace!$J$3:$J$435,"Planned",Marketplace!$I$3:$I$435,"Utility/IPP")+SUMIFS(Marketplace!$P$3:$P$435,Marketplace!$C$3:$C$435,"="&AH5,Marketplace!$AI$3:$AI$435,"Confident",Marketplace!$J$3:$J$435,"Under development",Marketplace!$I$3:$I$435,"Utility/IPP")+SUMIFS(Marketplace!$P$3:$P$435,Marketplace!$C$3:$C$435,"="&AH5,Marketplace!$AI$3:$AI$435,"Confident",Marketplace!$J$3:$J$435,"Operational",Marketplace!$AF$3:$AF$435,"2019",Marketplace!$I$3:$I$435,"Utility/IPP"),INDIRECT(AH$4&"!E39")) -> 0 | AI38: =IF(INDIRECT(AI$4&"!E39")="NA",SUMIFS(Marketplace!$P$3:$P$435,Marketplace!$C$3:$C$435,"="&AI5,Marketplace!$AI$3:$AI$435,"Confident",Marketplace!$J$3:$J$435,"Planned",Marketplace!$I$3:$I$435,"Utility/IPP")+SUMIFS(Marketplace!$P$3:$P$435,Marketplace!$C$3:$C$435,"="&AI5,Marketplace!$AI$3:$AI$435,"Confident",Marketplace!$J$3:$J$435,"Under development",Marketplace!$I$3:$I$435,"Utility/IPP")+SUMIFS(Marketplace!$P$3:$P$435,Marketplace!$C$3:$C$435,"="&AI5,Marketplace!$AI$3:$AI$435,"Confident",Marketplace!$J$3:$J$435,"Operational",Marketplace!$AF$3:$AF$435,"2019",Marketplace!$I$3:$I$435,"Utility/IPP"),INDIRECT(AI$4&"!E39")) -> 0 | AJ38: =IF(INDIRECT(AJ$4&"!E39")="NA",SUMIFS(Marketplace!$P$3:$P$435,Marketplace!$C$3:$C$435,"="&AJ5,Marketplace!$AI$3:$AI$435,"Confident",Marketplace!$J$3:$J$435,"Planned",Marketplace!$I$3:$I$435,"Utility/IPP")+SUMIFS(Marketplace!$P$3:$P$435,Marketplace!$C$3:$C$435,"="&AJ5,Marketplace!$AI$3:$AI$435,"Confident",Marketplace!$J$3:$J$435,"Under development",Marketplace!$I$3:$I$435,"Utility/IPP")+SUMIFS(Marketplace!$P$3:$P$435,Marketplace!$C$3:$C$435,"="&AJ5,Marketplace!$AI$3:$AI$435,"Confident",Marketplace!$J$3:$J$435,"Operational",Marketplace!$AF$3:$AF$435,"2019",Marketplace!$I$3:$I$435,"Utility/IPP"),INDIRECT(AJ$4&"!E39")) -> 0 | AK38: =IF(INDIRECT(AK$4&"!E39")="NA",SUMIFS(Marketplace!$P$3:$P$435,Marketplace!$C$3:$C$435,"="&AK5,Marketplace!$AI$3:$AI$435,"Confident",Marketplace!$J$3:$J$435,"Planned",Marketplace!$I$3:$I$435,"Utility/IPP")+SUMIFS(Marketplace!$P$3:$P$435,Marketplace!$C$3:$C$435,"="&AK5,Marketplace!$AI$3:$AI$435,"Confident",Marketplace!$J$3:$J$435,"Under development",Marketplace!$I$3:$I$435,"Utility/IPP")+SUMIFS(Marketplace!$P$3:$P$435,Marketplace!$C$3:$C$435,"="&AK5,Marketplace!$AI$3:$AI$435,"Confident",Marketplace!$J$3:$J$435,"Operational",Marketplace!$AF$3:$AF$435,"2019",Marketplace!$I$3:$I$435,"Utility/IPP"),INDIRECT(AK$4&"!E39")) -> 0 | AL38: =IF(INDIRECT(AL$4&"!E39")="NA",SUMIFS(Marketplace!$P$3:$P$435,Marketplace!$C$3:$C$435,"="&AL5,Marketplace!$AI$3:$AI$435,"Confident",Marketplace!$J$3:$J$435,"Planned",Marketplace!$I$3:$I$435,"Utility/IPP")+SUMIFS(Marketplace!$P$3:$P$435,Marketplace!$C$3:$C$435,"="&AL5,Marketplace!$AI$3:$AI$435,"Confident",Marketplace!$J$3:$J$435,"Under development",Marketplace!$I$3:$I$435,"Utility/IPP")+SUMIFS(Marketplace!$P$3:$P$435,Marketplace!$C$3:$C$435,"="&AL5,Marketplace!$AI$3:$AI$435,"Confident",Marketplace!$J$3:$J$435,"Operational",Marketplace!$AF$3:$AF$435,"2019",Marketplace!$I$3:$I$435,"Utility/IPP"),INDIRECT(AL$4&"!E39")) -> 8000 | AM38: =IF(INDIRECT(AM$4&"!E39")="NA",SUMIFS(Marketplace!$P$3:$P$435,Marketplace!$C$3:$C$435,"="&AM5,Marketplace!$AI$3:$AI$435,"Confident",Marketplace!$J$3:$J$435,"Planned",Marketplace!$I$3:$I$435,"Utility/IPP")+SUMIFS(Marketplace!$P$3:$P$435,Marketplace!$C$3:$C$435,"="&AM5,Marketplace!$AI$3:$AI$435,"Confident",Marketplace!$J$3:$J$435,"Under development",Marketplace!$I$3:$I$435,"Utility/IPP")+SUMIFS(Marketplace!$P$3:$P$435,Marketplace!$C$3:$C$435,"="&AM5,Marketplace!$AI$3:$AI$435,"Confident",Marketplace!$J$3:$J$435,"Operational",Marketplace!$AF$3:$AF$435,"2019",Marketplace!$I$3:$I$435,"Utility/IPP"),INDIRECT(AM$4&"!E39")) -> 0
D39: Planned RE generation data source (survey or project database) | H39: =IF(INDIRECT(H$4&"!D39")="NA","Database","Survey") -> Database | I39: =IF(INDIRECT(I$4&"!D39")="NA","Database","Survey") -> Survey | J39: Database | K39: Survey | L39: Survey | M39: Survey | N39: Survey | O39: Database | P39: Survey | Q39: Database | R39: Database | S39: Database | T39: Survey | U39: Database | V39: Database | W39: Survey | X39: Database | Y39: Database | Z39: Survey | AA39: Database | AB39: Survey | AC39: Survey | AD39: Survey | AE39: Database | AF39: Database | AG39: Database | AH39: Database | AI39: Database | AJ39: Database | AK39: Database | AL39: Survey | AM39: Database
C40: 3 | D40: Is climate resilience incorporated in your IRP or national policy? | F40: =G40*$G$8 -> 0.1 | G40: =1/3 -> 0.3333333333 | H40: =INDIRECT(H$4&"!D40") -> NA | I40: =INDIRECT(I$4&"!D40") -> Yes | J40: NA | K40: Yes | L40: Yes | M40: Yes | N40: Yes | O40: NA | P40: No | Q40: NA | R40: NA | S40: Yes | T40: Yes | U40: NA | V40: NA | W40: Yes | X40: NA | Y40: No | Z40: Yes | AA40: NA | AB40: No | AC40: Yes | AD40: Yes | AE40: NA | AF40: NA | AG40: NA | AH40: NA | AI40: NA | AJ40: NA | AK40: No | AL40: Yes | AM40: NA
B42: 4 | D42: Electric Mobility | F42: =SUM(F43:F44) -> 0.09 | G42: 0.09 | H42: =IF(H43="Yes",5*$G$43,0) + IF(H44="Yes",5*$G$44,0) -> 0 | I42: =IF(I43="Yes",5*$G$43,0) + IF(I44="Yes",5*$G$44,0) -> 0 | J42: =IF(J43="Yes",5*$G$43,0) + IF(J44="Yes",5*$G$44,0) -> 0 | K42: =IF(K43="Yes",5*$G$43,0) + IF(K44="Yes",5*$G$44,0) -> 2.5 | L42: 2.5 | M42: 0 | N42: 0 | O42: 0 | P42: 0 | Q42: =IF(Q43="Yes",5*$G$43,0) + IF(Q44="Yes",5*$G$44,0) -> 5 | R42: =IF(R43="Yes",5*$G$43,0) + IF(R44="Yes",5*$G$44,0) -> 0 | S42: 2.5 | T42: 2.5 | U42: 0 | V42: 0 | W42: 5 | X42: 0 | Y42: 0 | Z42: 5 | AA42: 0 | AB42: 2.5 | AC42: 0 | AD42: 0 | AE42: 0 | AF42: 0 | AG42: 2.5 | AH42: 0 | AI42: 0 | AJ42: 0 | AK42: 2.5 | AL42: 0 | AM42: 0
C43: 1 | D43: Does your country have policies in place or draft legislation to promote the uptake of electric mobility? | F43: =$G$42*G43 -> 0.045 | G43: 0.5 | H43: =INDIRECT(H$4&"!D44") -> NA | I43: =INDIRECT(I$4&"!D44") -> No | J43: NA | K43: Yes | L43: Yes | M43: No | N43: No | O43: No | P43: No | Q43: Yes | R43: NA | S43: Yes | T43: Yes | U43: No | V43: No | W43: Yes | X43: NA | Y43: No | Z43: Yes | AA43: NA | AB43: Yes | AC43: No | AD43: No | AE43: NA | AF43: NA | AG43: Yes | AH43: No | AI43: No | AJ43: No | AK43: Yes | AL43: No | AM43: NA
C44: 2 | D44: Does your country have specific targets for the uptake of electric vehicles? | F44: =$G$42*G44 -> 0.045 | G44: =1/COUNT($C$43:$C$44) -> 0.5 | H44: =INDIRECT(H$4&"!D45") -> NA | I44: =INDIRECT(I$4&"!D45") -> No | J44: NA | K44: No | L44: No | M44: No | N44: No | O44: No | P44: No | Q44: Yes | R44: NA | S44: No | T44: No | U44: No | V44: No | W44: Yes | X44: NA | Y44: No | Z44: Yes | AA44: NA | AB44: No | AC44: No | AD44: No | AE44: NA | AF44: NA | AG44: No | AH44: No | AI44: No | AJ44: No | AK44: No | AL44: No | AM44: NA
B46: 5 | D46: Covid | F46: =SUM(F47:F47) -> 0.01 | G46: 0.01 | H46: =IF(H47="Yes",5*$G$47,0) -> 0 | I46: =IF(I47="Yes",5*$G$47,0) -> 5 | J46: =IF(J47="Yes",5*$G$47,0) -> 0 | K46: 5 | L46: 5 | M46: 0 | N46: 5 | O46: 0 | P46: 5 | Q46: 0 | R46: 0 | S46: 5 | T46: 0 | U46: 0 | V46: 5 | W46: 5 | X46: 0 | Y46: 0 | Z46: 5 | AA46: 0 | AB46: 0 | AC46: 0 | AD46: 0 | AE46: 0 | AF46: 0 | AG46: 0 | AH46: 0 | AI46: 0 | AJ46: 0 | AK46: 0 | AL46: 0 | AM46: 0
C47: 1 | D47: Has any measure been implemented to respond to disruptions in revenue collections from electricity services (particularly given the current circumstances during the COVID pandemic)? | F47: =$G$46*G47 -> 0.01 | G47: 1 | H47: =H81 -> NA | I47: =I81 -> Yes | J47: NA | K47: Yes | L47: Yes | M47: =M81 -> No | N47: Yes | O47: =O81 -> 0 | P47: Yes | Q47: 0 | R47: NA | S47: Yes | T47: No | U47: 0 | V47: Yes | W47: Yes | X47: NA | Y47: No | Z47: Yes | AA47: NA | AB47: No | AC47: No | AD47: No | AE47: NA | AF47: NA | AG47: 0 | AH47: 0 | AI47: 0 | AJ47: 0 | AK47: No | AL47: No | AM47: NA
D49: Descriptive CREF Index Survey
D50: Enabling Environment for Renewable Energy (RE) Investments
D51: Renewable energy strategy
D52: Which of the following renewable generation options is included in your country's strategic plan to develop renewable energy? - Solar PV - Offshore wind - Biomass - Waste to energy - Hydro -Geothermal - Other | H52: =INDIRECT(H$4&"!D53") -> NA | I52: =INDIRECT(I$4&"!D53") -> Solar PV, Onshore Wind | J52: NA | K52: Solar PV | L52: Solar PV, Onshore Wind, Biomass, Waste-to-Energy | M52: Solar PV, Offshore Wind, Other | N52: Solar PV, Biomass, Hydro | O52: 0 | P52: Solar PV | Q52: 0 | R52: NA | S52: Solar PV, Onshore Wind, Offshore Wind, Biomass, Waste-to-Energy, Other | T52: Solar PV, Geothermal | U52: 0 | V52: Solar PV, Geothermal | W52: Solar PV, Onshore Wind, Offshore Wind, Biomass, Waste-to-Energy, Hydro, Geothermal | X52: NA | Y52: Solar PV, Onshore Wind, Biomass, Hydro | Z52: Solar PV, Onshore Wind, Biomass, Waste-to-Energy, Hydro | AA52: NA | AB52: Solar PV, Onshore Wind, Geothermal | AC52: Solar PV, Waste-to-Energy, Geothermal | AD52: Solar PV | AE52: NA | AF52: NA | AG52: 0 | AH52: 0 | AI52: 0 | AJ52: 0 | AK52: Solar PV, Onshore Wind | AL52: Solar PV, Onshore Wind, Waste-to-Energy | AM52: 0
D53: What is the target and target year? | H53: =INDIRECT(H$4&"!D54") -> NA | I53: =INDIRECT(I$4&"!D54") -> 20% by 2020 | J53: NA | K53: 30% by 2033 | L53: This Barbados National Energy Policy (BNEP) 2019-2030 document is designed to achieve the 100% renewable energy and carbon neutral island- state transformational goals by 2030. These include: • Provision of reliable, safe, affordable, sustainable, modern and climate friendly energy services to all residents and visitors. • Zero domestic consumption of fossil fuels economy wide. • Export of all hydrocarbons produced both on land and offshore. • Maximizing local participation (individual and corporate) in distributed renewable energy (RE) generation and storage (democratization of energy). • Minimize the outflow of foreign exchange. • Creating a regional center of excellence in RE research and development. | M53: 85% by 2030 | N53: Ministry of Energy, Science & Technology and Public Utilities Strategic Plan 2012-2017: Strategic Element #1: Improve energy efficiency and conservation 11 by at least 30 per cent by 2033, using energy utilization and GDP generated in 2011 as the baseline. Strategic Element #2: Reduce the country’s dependence on fossil fuels 12 consumption by 50 per cent by 2020, from one million barrels to one-half million barrels by increasing the provision of modern energy carriers utilizing domestic energy resources, coupled with improving energy efficiency and conservation Strategic Element #3: To triple the amount of modern energy carriers 14 derived from Agricultural, Forestry and Fisheries production and processing, including municipal solid waste (MSW) by 2020 | O53: 0 | P53: By 2023, supply 30% of the territory’s energy by renewables means; By 2021, fossil fuel imports decrease by 20%; By 2021, 50% of consumers will use energy conservation measures and/or renewable energy technology of some kind; By 2021, reduce fossil fuel inputs to electricity by 80% on Anegada; To have 100% renewable electricity by 2035 and 100% renewable energy for all uses by 2050 | Q53: 0 | R53: NA | S53: See policy question 3 | T53: 100% renewable by 2030 (energy generation) | U53: 0 | V53: Grenada commits to reducing its Greenhouse gas emissions by 30% of 2010 by 2025, with an indicative reduction of 40% of 2010 by 2030. | W53: By 2020: 50% met by renewable energy sources BY 2030 : Energy independence | X53: NA | Y53: 47% share of RE in power generation by 2030 (INDC) - hydro 24.5%, wind 9.4%, solar 7.5%, biomass 5.6% | Z53: 20 % RE in energy mix by 2030 and 33% electricity generated by RE by 2030, and 49% by 2037. | AA53: NA | AB53: 100% Electricity Generation by 2020 | AC53: 100% Renewable by 2030 (seems unrealistic at this point) | AD53: Article 2.3 Ley 17 2019 (PS1121) Puerto Rico 2015-2022 = 20% 2023-2025 = 40% 2026-2040 = 60% 2041-2050 = 100% | AE53: NA | AF53: NA | AG53: 0 | AH53: 0 | AI53: 0 | AJ53: 0 | AK53: 10% of traditional generation capacity | AL53: 33% by 2040 | AM53: 0
D54: What is the current breakdown of your country's energy mix? | H54: =INDIRECT(H$4&"!D55") -> NA | I54: =INDIRECT(I$4&"!D55") -> Renewable energy 0.5%, Conventional/Fossil Fuel 99.5% | J54: NA | K54: <1% renewable (solar PV), >99% fossil fuel | L54: 96.4% fossil fuel, rest renewables | M54: 100MW peak power 10MW /5.5MWhr BESS 6MW utility scale PV 5MW distributed residential and commercial PV 7MW waste to energy | N54: Hydro 11.1% Co-generation 13.7% Mexican Imports (CFE) 57.3% Fossil Fuel 17.7% Solar 0.1% Total 100.0% | O54: 0 | P54: 100% fossil fuel | Q54: 0 | R54: NA | S54: 29 % renewables / 71 diesel + GT | T54: 20% Hydro, 80% diesel (electricity generation) | U54: 0 | V54: RE (Solar) 1.5%, Diesel engines 98.5% | W54: Jet fuel : 1633 GWh (17,1%) Coal : 1496 GWh (15,7%) Butane : 154 GWh (1,6%) FOD : 134 GWh (1,4%) Fuel : 2200 GWh (23,1%) Gasoline : 1202 GWh (12,6%) Diesel: 2127 GWh (22,3%) Bagasse: 47 GWh (0,5%) Geothermal: 109 GWh (1,1%) Hydro: 44 GWh (0,5%) Onshore Wind: 63 GWh (0,7%) PV : 100 GWh (1,0%) Biomass/biogas : 17 GWh(0,2%) Solar Heaters : 95 GWh (1,0%) Steam (processes) : 100 GWh (1,0%) Hot water for use in industrial processes: 10 GWh (0,1%) | X54: NA | Y54: 18% hydro - 82 Thermal (Diesel + HFO) | Z54: As of 2019, the Energy Mix is: Renewable 8%, Petroleum 90% (HFO 87%, Natural Gas 3%), Other 2% | AA54: NA | AB54: 99.5% Fossil fuel, 0.5% Solar PV 0.5% Solar PV | AC54: 3% wind, 97% diesel | AD54: Installed Capacity Natural Gas = 33% Fuel 6 = 29% Diesel = 24% Coal = 8% Solar = 3% Wind = 2% Hydro = 1% | AE54: NA | AF54: NA | AG54: 0 | AH54: 0 | AI54: 0 | AJ54: 0 | AK54: Fossil fuels | AL54: Yes | AM54: 0
D55: Utilities
D56: On average, how long does it take for the power utility to get investments in RE projects approved by the regulatory authority (or the relevant entity) for recovery through tariffs? | H56: =INDIRECT(H$4&"!D57") -> NA | I56: =INDIRECT(I$4&"!D57") -> The utility and regulatory entity is one in the same and their is not specific requirement in that regard. | J56: NA | K56: N/A | L56: The length of time is variable. | M56: Variable | N56: Rate applications which would include recovery for investments are done on a four year planning horizon in the first instance, a Full Tariff Review Proceeding, and revisited annually by means of Annual Review Proceedings. So in practice, a proposed investment can be reviewed and approved within the space of a year. | O56: 0 | P56: NA | Q56: 0 | R56: NA | U56: 0 | V56: Unknown as these bodies are not fully operational. | W56: It can take years : 5 to over 10 | X56: NA | Y56: Information not yet available. | Z56: There is no specified time for recovery, tariff schedules are specified in the utility's license. The process/timeline for recovery varies. | AA56: NA | AB56: 3-7 years ( No Regulatory exist, time line given is for project conceptualization to implementation) | AC56: 5 years | AD56: Generally the process for the approval should be expedite. | AE56: NA | AF56: NA | AG56: 0 | AH56: 0 | AI56: 0 | AJ56: 0 | AK56: 1-2 years | AL56: NA | AM56: 0
D57: Distributed Generation
D58: What is the number of existing distributed scale RE systems in 2019? | H58: =INDIRECT(H$4&"!D59") -> NA | I58: =INDIRECT(I$4&"!D59") -> 24 | J58: NA | K58: Total 192 approved installations (2KW to 750KW system size range) | L58: There were 1928 existing distributed scale RE systems as at end 2019. | M58: 5 MW | N58: This number is unknown to the utility. | O58: 0 | P58: 0 | Q58: 0 | R58: NA | S58: N/A | V58: 0 | W58: 144 MW of RE vs 431 MW of fossil centralized generation | X58: NA | Y58: More than 5. | Z58: 546 | AA58: NA | AB58: 2 | AC58: 1 | AD58: We do not have a database available | AE58: NA | AF58: NA | AG58: 0 | AH58: 0 | AI58: 0 | AJ58: 0 | AK58: NA | AL58: 10 | AM58: 0
D59: What is the total installed capacity from renewable distributed generation in your country? | H59: =INDIRECT(H$4&"!D60") -> NA | I59: =INDIRECT(I$4&"!D60") -> 2MW | J59: NA | K59: 4.3MW | L59: 26MW as at end of 2019. 34MW as at end June of 2020. | M59: 11 MW | N59: Unknown at this time. | O59: 0 | P59: 0 | Q59: 0 | R59: NA | S59: Wind 47 MW / Solar 13 MW | U59: 90-120 | V59: 3.6MW | W59: 144 MW of RE vs 431 MW of fossil centralized generation | X59: NA | Y59: NA | Z59: 9.5 MW | AA59: NA | AB59: 0.25 MW | AC59: 2.2 MW | AD59: 5 MW behind the meter for net metering | AE59: NA | AF59: NA | AG59: 0 | AH59: 0 | AI59: 0 | AJ59: 0 | AK59: 0.03 MW | AL59: 1.03MW | AM59: 0
D60: What was the total generation from existing distributed scale RE systems in 2019? | H60: =INDIRECT(H$4&"!D61") -> NA | I60: =INDIRECT(I$4&"!D61") -> 2,000 MWh | J60: NA | K60: Unknown | L60: Purchased power in 2019 - 33,673,346kWh | M60: 5 MW | N60: Unknown at this time. | O60: 0 | P60: 0 | Q60: 0 | R60: NA | S60: Approximately 28% | V60: 3,470 MWh | W60: 380 GWh from RE vs 1346 Gown from centralized fossil power generation | X60: NA | Y60: Information not available | Z60: 46,378 MWh | AA60: NA | AB60: 440 MWh | AC60: 2046.37 MWh | AD60: We do not have a database available | AE60: NA | AF60: NA | AG60: 0 | AH60: 0 | AI60: 0 | AJ60: 0 | AK60: 0 MW | AL60: 1,000 MWh | AM60: 0
D62: Existing Renewable Generation
D63: Existing Utility-Scale Renewable Energy Projects
D64: What is the number of existing utility-scale RE projects? | H64: =INDIRECT(H$4&"!D64") -> NA | I64: =INDIRECT(I$4&"!D64") -> 2 | J64: NA | K64: 1 | L64: One. The Trents 10 MW solar PV solar plant, a BLPC facility was commissioned in 2016. | M64: 1 | N64: Seven 1. BECOL - Mollejon 2. BECOL - Chalillo 3. BECOL - Vaca 4. Hydro Maya 5. BELCOGEN 6. Santander 7. JICA (UB Solar) | O64: 0 | P64: 0 | Q64: 0 | R64: NA | S64: 0 | T64: 0 | U64: 0 | V64: 2 | W64: 144 MW of RE vs 431 MW of fossil centralized generation | X64: NA | Y64: Project identification is ongoing | Z64: here are 17 a combination of wind, solar, biomass and hydro. | AA64: NA | AB64: 1 | AC64: 1 | AD64: 16 | AE64: NA | AF64: NA | AG64: 0 | AH64: 0 | AI64: 0 | AJ64: 0 | AK64: 0 | AL64: 0 | AM64: 0
D65: What was the total electricity generated in 2019 (MWh)? | H65: =INDIRECT(H$4&"!D65") -> NA | I65: =INDIRECT(I$4&"!D65") -> 375332 | J65: NA | K65: 207547.3 | L65: 980072.162 | M65: 550000 | N65: 669185 | O65: 0 | P65: 191629.28 | Q65: 0 | R65: NA | S65: 880000 | T65: 93194 | U65: 0 | V65: 230583.402 | W65: 1726000 | X65: NA | Y65: 1045037.2 | Z65: 4433128 | AA65: NA | AB65: 14000 | AC65: 59225.21 | AD65: 357408 | AE65: NA | AF65: NA | AG65: 0 | AH65: 0 | AI65: 0 | AJ65: 0 | AK65: 0 | AL65: 250700 | AM65: 0
D66: What was the total electricity generated from utility-scale RE projects in 2019 (MWh)? | H66: =INDIRECT(H$4&"!D66") -> NA | I66: =INDIRECT(I$4&"!D66") -> 9000 | J66: NA | K66: 0 | L66: 18780.685 | M66: unknown | N66: 167139 | O66: 0 | P66: 0 | Q66: 0 | R66: NA | S66: 220000 | T66: 20152 | U66: 0 | V66: 1505.857 | W66: 380000 | X66: NA | Y66: 197188.45 | Z66: 473601 | AA66: 109200 | AB66: 440 | AC66: 0 | AD66: 357408 | AE66: NA | AF66: NA | AG66: 0 | AH66: 0 | AI66: 0 | AJ66: 0 | AK66: 0 | AL66: 0 | AM66: 0
D67: Please provide as much information as possible for existing RE projects in the box below as: - Project Name - Developer - Offtaker - Renewable Energy Technology Type - Start of Commercial Operation (Year) - Estimated Capacity Factor (in %) OR Estimated Annual Production (in MWh) - Installed Capacity (MW) - Length of PPA | H67: =INDIRECT(H$4&"!D67") -> NA | I67: =INDIRECT(I$4&"!D67") -> 10 MW RE Project PV Energy APUA Solar PV 2015 105% 8.3 MW PPA N/A | J67: NA | K67: – Project Name - Ragged Island Microgrid – Developer - BPL – Offtaker - BPL – RE technology type - Solar + BESS – Start of commercial operation (year) – Estimated capacity factor (in %) OR estimated annual production (in MWh) – Installed capacity (MW) 0.4MW solar – Length of PPA - EPC | L67: Existing BLPC RE projects – Project Name – Trents Solar PV – Developer - Barbados Light & Power – Offtaker - Barbados Light & Power – RE technology type – Solar PV – Start of commercial operation (year) - 2016 – Estimated capacity factor (in %) OR estimated annual production (in MWh) – est. 18, 000 MWh p.a. – Installed capacity (MW) – 10MW – Length of PPA – N/A | M67: 0 | N67: =INDIRECT(N$4&"!D67") -> – Project Name: BECOL - Mollejon, BECOL - Chalillo, BECOL - Vaca, Hydro Maya, BELCOGEN, Santander, JICA (UB Solar) – Developer: Belize Electric Company Limited, Belize Electric Company Limited, Belize Electric Company Limited, Hydro Maya Ltd, Belize Cogeneration Energy Ltd, Santander Sugar Energy Limited, Japan International Co – Offtaker: None, None, None, None, None, None, University Of Belize – RE technology type: Hydro, Hydro, Hydro, Hydro, Co-generation/ Biomass, Co-generation/ Biomass, Solar – Start of commercial operation (year) 19 April 1991, 31 October 2005, 15 March 2007, 15 September 2003, 02 February 2007, 13 December 2016, 27 August 2012, 2019 annual production (in MWh): 40,800; 23,815; 9,954; 68,533; 23,387; 650 Three year (2017-2019) average annual production (in MWh) 124,410; 63,838; 13,198; 68,123; 21,242; 605 – Installed capacity (MW): 25.2; 7.0; 19.0; 3.3; 13.5; 8.0; 0.3 – Length of PPA (Years) 29.4; 14.9; 13.5; 17.0; 13.6; 3.7; 8.0 | O67: 0 | P67: NA | Q67: 0 | R67: NA | S67: 0 | U67: 0 | V67: Both utility scale projects were installed by Greece. 30kW on a small island (Petite Martinique) average daily load 110 kW 1,088 on Grenada. | W67: 0 | X67: NA | Y67: NA | Z67: Project Name: Request for Proposals to Supply up to Net 37 MW of Electricity Generation from Renewable Energy – Developer : EIGHT RIVERS ENERGY COMPANY LIMITED – Offtaker : Jamaica Pubic Service – RE technology type: Solar – Start of commercial operation (year): June 2019 – Estimated capacity factor (in %) OR estimated annual production (in MWh) – 25% – Installed capacity (MW) :37 – Length of PPA : 20 Years Project Name: Wigton 3 – Developer : Wigton Wind Farm – Offtaker : Jamaica Pubic Service – RE technology type : Wind – Start of commercial operation (year): 2016 – Estimated capacity factor (in %) OR estimated annual production (in MWh) : 39.2% – Installed capacity (MW) :24 – Length of PPA : 20 Years | AA67: NA | AB67: 250 kW Solar PV Project Montserrat Utilities Limited(MUL) MUL Solar PV March 2019 22% 0.25 N/A | AC67: Nevis Geothermal Project Nevis Renewable Energy International - Developer NEVLEC - offtaker Geothermal 10 MW 25 years | AD67: The next time, please allow a box to upload documents so we can share all the information required | AE67: NA | AF67: NA | AG67: 0 | AH67: 0 | AI67: 0 | AJ67: 0 | AK67: NA | AL67: Project: UORE and CORE Program Developer: FortisTCI RE technology type: Solar Start: Ongoing Est. Capacity Factor: 17% Installed capacity: 500 kW Length of PPA: Not applicable | AM67: 0
D69: Planned Renewable Generation
D70: Potential Utility-Scale Renewable Energy Projects
D71: How much installed capacity from RE is expected to come online in the next 3 years? | H71: =INDIRECT(H$4&"!D70") -> NA | I71: =INDIRECT(I$4&"!D70") -> 1.7 MW - Solar PV 4 MW - Wind | J71: NA | K71: 20 | L71: 295 | M71: 6 MW | N71: Business Plan RE Goals: 1. Increase BEL's firm capacity with in-country generation of 30 MW Solar energy from BECOL. 2. Increase BEL's firm capacity with in-country generation of 15 MW Solar energy from BAPCOL. 3. Increase BEL's firm capacity with in-country generation of Hydro energy from Southern Renewable Energy Ltd. | O71: 0 | P71: 7 MW | Q71: 0 | R71: NA | S71: 20 MW | T71: 13.5 | U71: 0 | V71: 0 | W71: 158 | X71: NA | Y71: 0 | Z71: 175 | AA71: NA | AB71: 0.75 | AC71: 0 | AD71: Solar PV at least 3,500 MW and up to 3,900 MW by 2025 | AE71: NA | AF71: NA | AG71: 0 | AH71: 0 | AI71: 0 | AJ71: 0 | AK71: NA | AL71: 5 | AM71: 0
D72: How much renewable energy generation is expected to come online in the next 3 years? | H72: =INDIRECT(H$4&"!D71") -> NA | I72: =INDIRECT(I$4&"!D71") -> 119355 | J72: NA | K72: 117384 | L72: 687650 | M72: unknown | N72: At least 45 MW of Utility Solar | O72: 0 | P72: 7 MW | Q72: 0 | R72: NA | S72: NA | T72: 74000 | U72: NA | V72: 0 | W72: 612000 | X72: NA | Y72: NA | Z72: 500000 | AA72: NA | AB72: 11320 | AC72: 0 | AD72: Solar PV at least 3,500 MW and up to 3,900 MW by 2025 If 3,500 MW x 8760 x 17% = 5,212 GWh | AE72: NA | AF72: NA | AG72: 0 | AH72: 0 | AI72: 0 | AJ72: 0 | AK72: NA | AL72: 8000 | AM72: 0
D73: Please provide as much information as possible for RE projects currently under development in the box below as: - Project Name - Developer - Offtaker - Renewable Energy Technology Type - Start of Commercial Operation (Year) - Estimated Capacity Factor (in %) OR Estimated Annual Production (in MWh) - Installed Capacity (MW) - Length of PPA | H73: =INDIRECT(H$4&"!D72") -> NA | I73: =INDIRECT(I$4&"!D72") -> 0 MW RE Project PV Energy APUA Solar PV 2015 105% 8.3 MW PPA N/A | J73: NA | K73: Info not yet available | L73: BLPC RE projects currently under development: – Project Name – Lamberts Wind Farm – Developer - Barbados Light & Power – Offtaker - Barbados Light & Power – RE technology type – Wind Energy Conversion – Start of commercial operation (year) – COD Jan 2022 – Estimated capacity factor (in %) OR estimated annual production (in MWh) – 29,100 MWh p.a. est. – Installed capacity (MW) – 10MW – Length of PPA - Currently undefined. 20 year terms anticipated. – Project Name – Lower Estate Solar PV – Developer - Barbados Light & Power – Offtaker - Barbados Light & Power – RE technology type – Solar PV – Start of commercial operation (year) – COD Oct 2021 – Estimated capacity factor (in %) OR estimated annual production (in MWh) – 15, 579 MWh p.a. est. – Installed capacity (MW) – 7MW – Length of PPA - Currently undefined. 20 year terms anticipated. While there is much IPP interest, many of the larger projects are under development and awaiting the relevant licensing regime and PPA process to be completed. Also, there are NDA's etc. in force with those entities currently being negotiated with and as such we cannot share detailed or specific information in the interest of confidentiality. | M73: 0 | N73: – Project Names: BECOL, BAPCOL , SREL – Developer: Belize Electric Company Limited, Belize Electric Company Limited, Southern Renewable Energy Ltd – Offtaker: None None None – RE technology type: Solar, Solar, Hydro – Start of commercial operation (year) In negotiations In negotiations In negotiations – Estimated capacity factor (in %) OR estimated annual production (in MWh) n/a n/a n/a – Installed capacity (MW) 30.0, 15.0, In negotiations | O73: 0 | P73: NA | Q73: 0 | R73: NA | S73: NA as yet | V73: 0 | W73: 0 | X73: NA | Y73: – Project Name : Construction and operation of two PV plants of 8 MW and 4 MW – Developer : Tender process to select the developer ongoing – Offtaker: Industrial customers and households – RE technology type: Solar PV – Start of commercial operation (year): 2021 – Estimated capacity factor (in %) OR estimated annual production (in MWh) : TBD – Installed capacity (MW): 8 MW + 4 MW – Length of PPA: TBD – Project Name : Development of private RE mini grids on multiple sites (Program PHARES) – Developer : Request for proposals ongoing to select developers – Offtaker: End users in specific towns – RE technology type: Solar PV + Storage + Back up diesel (if required) – Start of commercial operation (year): 2021 – Estimated capacity factor (in %) OR estimated annual production (in MWh) : TBD – Installed capacity (MW): Functions of sites – Length of PPA: 20 years | Z73: none | AA73: NA | AB73: 750 kW Solar PV Project Montserrat Utilities Limited(MUL) MUL Solar PV March 2021 22% 0.75 N/A | AC73: Nevis Geothermal Project Nevis Renewable Energy International - Developer NEVLEC - offtaker Geothermal 10 MW 25 years | AD73: The next time, please allow a box to upload documents so we can share all the information required | AE73: NA | AF73: NA | AG73: 0 | AH73: 0 | AI73: 0 | AJ73: 0 | AK73: NA | AL73: Project Name: 1MW Utility Scale in PNSG Developer: FortisTCI RE Tech: Solar Start: 2022 Est. CF: 17% Installed Capacity 1MW Length of PPA: Not applicable (utility-owned) | AM73: 0
D75: Electric Mobility
D76: What is the target and target year? | H76: =INDIRECT(H$4&"!D74") -> NA | I76: =INDIRECT(I$4&"!D74") -> N/A | J76: NA | K76: N/A | L76: No specific target was identified but increased use was to be promoted through the relevant policies and incentive mechanisms to be developed. There are 16 specific objectives and 24 policy measures outlined for Transportation Sector in the Government policy document and implementation plan. Please see attached files Barbados National Energy Policy and Implementation Plan Link: https://www.energy.gov.bb/web/national-energy-policy-for-barbados-2019-2030 | M76: 0 | N76: N/A | O76: 0 | P76: NA | Q76: 0 | R76: NA | S76: NA | U76: 0 | V76: In the media this week of 21st Sept there was a public notice from a government body about a meeting of interested persons ref e-mobility in Grenada. | W76: <1% | X76: NA | Y76: 0 | Z76: 12% by 2030 | AA76: NA | AB76: 0 | AC76: 0 | AD76: NA | AE76: NA | AF76: NA | AG76: 0 | AH76: 0 | AI76: 0 | AJ76: 0 | AK76: NA | AL76: None | AM76: 0
D77: How many electric cars are currently in your country? | H77: =INDIRECT(H$4&"!D75") -> NA | I77: =INDIRECT(I$4&"!D75") -> 10 | J77: NA | K77: N/A | L77: Approximately 550 cars and vans, and 33 buses to date. (hybrids are not included, only all electric vehicles) | M77: 20 - 4 cars and 16 vans | N77: 5 - 10 vehicles | O77: 0 | P77: 10 | Q77: 0 | R77: NA | S77: 60+ | U77: 0 | V77: 7 | W77: Estimated: 50 | X77: NA | Y77: Information not available | Z77: 12 | AA77: NA | AB77: 4 | AC77: 0 | AD77: No information available | AE77: NA | AF77: NA | AG77: 0 | AH77: 0 | AI77: 0 | AJ77: 0 | AK77: 50 to 75 | AL77: 5 | AM77: 0
D78: How many charging stations are in your country? | H78: =INDIRECT(H$4&"!D76") -> NA | I78: =INDIRECT(I$4&"!D76") -> 2 | J78: NA | K78: N/A | L78: 39 public charging locations Over 400 hundred private and home chargers Go to www.plugshare.com and search Barbados for a visual representation. | M78: unknown | N78: There are currently no public charging stations; however, an upcoming pilot project will create charging stations across Belize by 2021. | O78: 0 | P78: 0 | Q78: 0 | R78: NA | S78: 20+ | U78: 0 | V78: 4 that we know of. | W78: 0 | X78: NA | Y78: NA | Z78: 15 | AA78: NA | AB78: 2 | AC78: 0 | AD78: No information available | AE78: NA | AF78: NA | AG78: 0 | AH78: 0 | AI78: 0 | AJ78: 0 | AK78: 5 to 10 | AL78: 1 | AM78: 0
D80: Covid
D81: Has any measure been implemented to respond to disruptions in revenue collections from electricity services (particularly given the current circumstances during the COVID pandemic)? | H81: =INDIRECT(H$4&"!D78") -> NA | I81: =INDIRECT(I$4&"!D78") -> Yes | J81: NA | K81: Yes | L81: Yes | M81: No | N81: Yes | O81: 0 | P81: Yes | Q81: 0 | R81: NA | S81: Yes | T81: No | U81: 0 | V81: Yes | W81: Yes | X81: NA | Y81: No | Z81: Yes | AA81: NA | AB81: No | AC81: No | AD81: No | AE81: NA | AF81: NA | AG81: 0 | AH81: 0 | AI81: 0 | AJ81: 0 | AK81: No | AL81: No | AM81: NA
D82: If yes, to get a score on this kindly describe how the measure works and who is responsible for implementing it | H82: =INDIRECT(H$4&"!D79") -> NA | I82: =INDIRECT(I$4&"!D79") -> The measures taken have been to offer an incentive to customers to make payments in full in the month that the bill is due to redeem a 15% discount on electricity bills. The utility is responsible for the implementation. There has been mixed responses. Some customers capitalize on the discount and other have stopped payments altogether. | J82: NA | K82: If a customer can provide proof that they were medically impacted by COVID or were laid off directly due to COVID they were allowed to enter into a payment arrangement with respect to outstanding balances on their electricity bill. This program was implemented by the BPL, on the recommendation of the GOB. | L82: The utility has made additional arrangements to facilitate alternate revenue collection means (e.g. online payments, payment by credit cards and payment plans) to allow customers to transact business while observing the public health protocols. | M82: 0 | N82: Customer Service representatives are calling customers and encouraging them to make payments as a measure to reduce the likelihood of non-payment with COVID. Also, the Company is promoting digital means of payment through ad campaigns, and retaining cashiering services at Head Quarters in a newly constructed outdoor cashier booths to facilitate payments while keeping the staff safe. | O82: 0 | P82: Online Payment Promotion, Management Team | Q82: 0 | R82: NA | S82: Government in combination with regulator | T82: 0 | U82: 0 | V82: It was a temporary 3 month relief to the company's customers of 30% on their electricity bills that was funded jointly by the government (approx. 71%) and the utility ( approx. 29%) | W82: 0 | X82: NA | Y82: 0 | Z82: JPS has encouraged its customers to make use of the Company’s online platforms (payment website and phone application), to obtain information, pay bills and carry out other transactions. | AA82: NA | AB82: 0 | AC82: 0 | AD82: No information available | AE82: NA | AF82: NA | AG82: 0 | AH82: 0 | AI82: 0 | AJ82: 0 | AK82: NA | AL82: NA | AM82: NA
D84: Outlook sentiment
D85: How enthusiastic are you about the investment prospects in renewables, electric mobility, and resilience compared to this time last year, and why? | H85: =INDIRECT(H$4&"!D81") -> NA | I85: =INDIRECT(I$4&"!D81") -> Less | J85: NA | K85: Same | L85: More | M85: Same | N85: Same | O85: 0 | P85: Less | Q85: 0 | R85: NA | S85: More | T85: Same | U85: 0 | V85: Less/Same | W85: More | X85: NA | Y85: Same | Z85: Less | AA85: NA | AB85: Same | AC85: Less | AD85: Same | AE85: NA | AF85: NA | AG85: 0 | AH85: 0 | AI85: 0 | AJ85: 0 | AK85: Same | AL85: Same | AM85: NA
D86: Please elaborate on your reasoning for the previous response. | H86: =INDIRECT(H$4&"!D82") -> NA | I86: =INDIRECT(I$4&"!D82") -> I don't see any meaningful Government policy at this time. | J86: NA | K86: The interest remains the same and external funding options still seem available. Provide the COVID epidemic does not start to impact these elements projects should still be possible. | L86: The prevailing Government policies support the implementation of renewables, the growth of electric mobility and increased awareness of the need for climate resilience. The Integrated Resource and Resilience Plan (IRRP) exercise currently being undertaken by the Government of Barbados, with the assistance of the IADB, has resilience as a necessary objective or component identified in the plan. | M86: 0 | N86: Though the Pandemic has delayed the timeline for planned projects, the Company is still pursuing the projects to introduce electric vehicles and additional renewable energy capacity. | O86: 0 | P86: Most of the money that was allocated for renewables are now being repurposed to fight the COVID-19 Pandemic. | Q86: 0 | R86: NA | S86: There is a policy in place and government is working on new additional legislation, institutions and Instruments | T86: Policy changes and projects have been both positive and negative so on balance, same as last year | U86: 0 | V86: 1. The regulatory scene is a quagmire. 2. The government lost an arbitration case against the majority shareholder of the company and is now legally obligated to purchase the majority shareholders. However they seem unable to find the funds to purchase the company. So the company is in limbo. the majority share holder is still directing the company but with a light touch as it expects to exit at anytime. | W86: 0 | X86: NA | Y86: There is not currently a focus on electric vehicles in the country. The main focus is on increasing energy access. | Z86: The Covid pandemic has severely impacted budgets for energy projects across the world. While plans are still being developed, investments will be deferred until some major economies show signs of recovery. | AA86: NA | AB86: 0 | AC86: The progress has been extremely slow | AD86: No plans available for electric mobility | AE86: NA | AF86: NA | AG86: 0 | AH86: 0 | AI86: 0 | AJ86: 0 | AK86: While it is one of the government's target, to increase renewables and electric mobility, not much has been done in the last year and government has not mentioned much about these projects in their annual address nor budget. | AL86: Based on observation, it will be the same level but change in who will implement or will still push with the plan. In TCI, those businesses that are being affected by the current pandemic has hold off to projects e.g. changing their fleet to EVs. However, those who are just in the process of constructing their business e.g. hotel in construction has continued their plans and even benefited with stimulus provided during lockdown period e.g. discount in custom fees and other government fees. | AM86: NA
D88: Improvement Year-on-Year | H88: =H5 -> Anguilla | I88: Antigua & Barbuda | J88: Aruba | K88: The Bahamas | L88: Barbados | M88: Bermuda | N88: Belize | O88: Bonaire | P88: British Virgin Islands | Q88: Cayman Islands | R88: Cuba | S88: Curaҫao | T88: Dominica | U88: Dominican Republic | V88: Grenada | W88: Guadeloupe | X88: Guyana | Y88: Haiti | Z88: Jamaica | AA88: Martinique | AB88: Montserrat | AC88: Nevis | AD88: Puerto Rico | AE88: Saint-Martin | AF88: Sint Maarten | AG88: St. Lucia | AH88: St. Vincent and the Grenadines | AI88: St. Kitts | AJ88: Suriname | AK88: Trinidad and Tobago | AL88: Turks and Caicos Islands | AM88: U.S. Virgin Islands
D89: Overall Improvement Year-on-Year | G89: 1 | H89: =H137-H135 -> 0 | I89: =I137-I135 -> 0.396808298 | J89: -0.00595959596 | K89: 0.8344429109 | L89: 0.6680226645 | M89: -0.003106269578 | N89: -0.4099842454 | O89: -1.462831439 | P89: 1.165926667 | Q89: -1.263904262 | R89: -0.1095960428 | S89: -0.2755782981 | T89: -0.351227254 | U89: -0.8604405166 | V89: -0.7110564055 | W89: -0.107895071 | X89: -0.03235982708 | Y89: 0.4436630734 | Z89: 0.6944953463 | AA89: -0.01375769231 | AB89: 0.2246549393 | AC89: -0.3863830855 | AD89: 1.078946569 | AE89: 0 | AF89: 0 | AG89: -0.8440089459 | AH89: -0.349881687 | AI89: -0.6158575133 | AJ89: -0.8531494289 | AK89: 0.6796875 | AL89: 0.2307286521 | AM89: -0.4545715285
D90: Enabling environment for renewable energy investments | E90: Change | G90: =G8 -> 0.3 | AM90: =INDIRECT(AM$4&"!E84") -> 0
D91: 2012 Score | E91: 0 to 5 | H91: ='RE Index | Historical Results'!G6 -> 2.333333333 | I91: ='RE Index | Historical Results'!H6 -> 1.666666667 | J91: ='RE Index | Historical Results'!I6 -> 2 | K91: ='RE Index | Historical Results'!J6 -> 1 | L91: ='RE Index | Historical Results'!K6 -> 3.166666667 | M91: ='RE Index | Historical Results'!L6 -> 2.333333333 | N91: ='RE Index | Historical Results'!M6 -> 2.333333333 | O91: ='RE Index | Historical Results'!N6 -> 0 | P91: ='RE Index | Historical Results'!O6 -> 1 | Q91: ='RE Index | Historical Results'!P6 -> 3.33 | R91: ='RE Index | Historical Results'!Q6 -> 0 | S91: ='RE Index | Historical Results'!R6 -> NA | T91: ='RE Index | Historical Results'!S6 -> 2.833333333 | U91: ='RE Index | Historical Results'!T6 -> 2.333333333 | V91: ='RE Index | Historical Results'!U6 -> 2.333333333 | W91: ='RE Index | Historical Results'!V6 -> NA | X91: ='RE Index | Historical Results'!W6 -> 0 | Y91: ='RE Index | Historical Results'!X6 -> 0 | Z91: ='RE Index | Historical Results'!Y6 -> 3.666666667 | AA91: ='RE Index | Historical Results'!Z6 -> 3 | AB91: ='RE Index | Historical Results'!AA6 -> 1.67 | AC91: ='RE Index | Historical Results'!AB6 -> 2.333333333 | AD91: ='RE Index | Historical Results'!AC6 -> 0 | AE91: ='RE Index | Historical Results'!AD6 -> 0 | AF91: ='RE Index | Historical Results'!AE6 -> 0 | AG91: ='RE Index | Historical Results'!AF6 -> 2.33 | AH91: ='RE Index | Historical Results'!AG6 -> 3 | AI91: ='RE Index | Historical Results'!AH6 -> 1.67 | AJ91: ='RE Index | Historical Results'!AI6 -> 0 | AK91: ='RE Index | Historical Results'!AJ6 -> 2.33 | AL91: ='RE Index | Historical Results'!AK6 -> 2 | AM91: ='RE Index | Historical Results'!AL6 -> NA
D92: 2013 Score | E92: 0 to 5 | H92: ='RE Index | Historical Results'!G7 -> 2.333333333 | I92: ='RE Index | Historical Results'!H7 -> 1.666666667 | J92: ='RE Index | Historical Results'!I7 -> 2 | K92: ='RE Index | Historical Results'!J7 -> 1 | L92: ='RE Index | Historical Results'!K7 -> 3.166666667 | M92: ='RE Index | Historical Results'!L7 -> 3 | N92: ='RE Index | Historical Results'!M7 -> 2.333333333 | O92: ='RE Index | Historical Results'!N7 -> 2 | P92: ='RE Index | Historical Results'!O7 -> 1 | Q92: ='RE Index | Historical Results'!P7 -> 3.33 | R92: ='RE Index | Historical Results'!Q7 -> 0 | S92: ='RE Index | Historical Results'!R7 -> 3 | T92: ='RE Index | Historical Results'!S7 -> 2.833333333 | U92: ='RE Index | Historical Results'!T7 -> 2.333333333 | V92: ='RE Index | Historical Results'!U7 -> 2.333333333 | W92: ='RE Index | Historical Results'!V7 -> 4 | X92: ='RE Index | Historical Results'!W7 -> 1.666666667 | Y92: ='RE Index | Historical Results'!X7 -> 1.666666667 | Z92: ='RE Index | Historical Results'!Y7 -> 3.666666667 | AA92: ='RE Index | Historical Results'!Z7 -> 4 | AB92: ='RE Index | Historical Results'!AA7 -> 1.666666667 | AC92: ='RE Index | Historical Results'!AB7 -> 2.333333333 | AD92: ='RE Index | Historical Results'!AC7 -> 3.333333333 | AE92: ='RE Index | Historical Results'!AD7 -> 0 | AF92: ='RE Index | Historical Results'!AE7 -> 0 | AG92: ='RE Index | Historical Results'!AF7 -> 2.333333333 | AH92: ='RE Index | Historical Results'!AG7 -> 3 | AI92: ='RE Index | Historical Results'!AH7 -> 1.666666667 | AJ92: ='RE Index | Historical Results'!AI7 -> 0 | AK92: ='RE Index | Historical Results'!AJ7 -> 2.333333333 | AL92: ='RE Index | Historical Results'!AK7 -> 2 | AM92: ='RE Index | Historical Results'!AL7 -> NA
D93: 2014 Score | E93: 0 to 5 | H93: ='RE Index | Historical Results'!G8 -> 2.333333333 | I93: ='RE Index | Historical Results'!H8 -> 2 | J93: ='RE Index | Historical Results'!I8 -> 4 | K93: ='RE Index | Historical Results'!J8 -> 1 | L93: ='RE Index | Historical Results'!K8 -> 3.833333333 | M93: ='RE Index | Historical Results'!L8 -> 3 | N93: ='RE Index | Historical Results'!M8 -> 3 | O93: ='RE Index | Historical Results'!N8 -> 2 | P93: ='RE Index | Historical Results'!O8 -> 1 | Q93: ='RE Index | Historical Results'!P8 -> 3.33 | R93: ='RE Index | Historical Results'!Q8 -> 0 | S93: ='RE Index | Historical Results'!R8 -> 4 | T93: ='RE Index | Historical Results'!S8 -> 2.833333333 | U93: ='RE Index | Historical Results'!T8 -> 2.333333333 | V93: ='RE Index | Historical Results'!U8 -> 2.333333333 | W93: ='RE Index | Historical Results'!V8 -> 4.333333333 | X93: ='RE Index | Historical Results'!W8 -> 1.666666667 | Y93: ='RE Index | Historical Results'!X8 -> 1.666666667 | Z93: ='RE Index | Historical Results'!Y8 -> 3.666666667 | AA93: ='RE Index | Historical Results'!Z8 -> 4.333333333 | AB93: ='RE Index | Historical Results'!AA8 -> 1.666666667 | AC93: ='RE Index | Historical Results'!AB8 -> 2.666666667 | AD93: ='RE Index | Historical Results'!AC8 -> 2 | AE93: ='RE Index | Historical Results'!AD8 -> 0 | AF93: ='RE Index | Historical Results'!AE8 -> 0 | AG93: ='RE Index | Historical Results'!AF8 -> 2.333333333 | AH93: ='RE Index | Historical Results'!AG8 -> 3 | AI93: ='RE Index | Historical Results'!AH8 -> 2.666666667 | AJ93: ='RE Index | Historical Results'!AI8 -> 0 | AK93: ='RE Index | Historical Results'!AJ8 -> 2.333333333 | AL93: ='RE Index | Historical Results'!AK8 -> 2 | AM93: ='RE Index | Historical Results'!AL8 -> 2
D94: 2015 Score | E94: 0 to 5 | H94: ='RE Index | Historical Results'!G9 -> 2.333333333 | I94: ='RE Index | Historical Results'!H9 -> 2 | J94: ='RE Index | Historical Results'!I9 -> 4 | K94: ='RE Index | Historical Results'!J9 -> 1.333333333 | L94: ='RE Index | Historical Results'!K9 -> 3.833333333 | M94: ='RE Index | Historical Results'!L9 -> 3 | N94: ='RE Index | Historical Results'!M9 -> 3.333333333 | O94: ='RE Index | Historical Results'!N9 -> 2 | P94: ='RE Index | Historical Results'!O9 -> 2 | Q94: ='RE Index | Historical Results'!P9 -> 3.33 | R94: ='RE Index | Historical Results'!Q9 -> 1 | S94: ='RE Index | Historical Results'!R9 -> 4 | T94: ='RE Index | Historical Results'!S9 -> 2.833333333 | U94: ='RE Index | Historical Results'!T9 -> 2.333333333 | V94: ='RE Index | Historical Results'!U9 -> 2.666666667 | W94: ='RE Index | Historical Results'!V9 -> 4.333333333 | X94: ='RE Index | Historical Results'!W9 -> 1.666666667 | Y94: ='RE Index | Historical Results'!X9 -> 1.666666667 | Z94: ='RE Index | Historical Results'!Y9 -> 3.666666667 | AA94: ='RE Index | Historical Results'!Z9 -> 4.333333333 | AB94: ='RE Index | Historical Results'!AA9 -> 1.666666667 | AC94: ='RE Index | Historical Results'!AB9 -> 2.666666667 | AD94: ='RE Index | Historical Results'!AC9 -> 2 | AE94: ='RE Index | Historical Results'!AD9 -> 0 | AF94: ='RE Index | Historical Results'!AE9 -> 0 | AG94: ='RE Index | Historical Results'!AF9 -> 2.333333333 | AH94: ='RE Index | Historical Results'!AG9 -> 3 | AI94: ='RE Index | Historical Results'!AH9 -> 2.666666667 | AJ94: ='RE Index | Historical Results'!AI9 -> 0 | AK94: ='RE Index | Historical Results'!AJ9 -> 3 | AL94: ='RE Index | Historical Results'!AK9 -> 2 | AM94: ='RE Index | Historical Results'!AL9 -> 2
D95: 2016 Score | E95: 0 to 5 | H95: ='RE Index | Historical Results'!G10 -> 1.333333333 | I95: ='RE Index | Historical Results'!H10 -> 3.666666667 | J95: ='RE Index | Historical Results'!I10 -> 2.666666667 | K95: ='RE Index | Historical Results'!J10 -> 4.333333333 | L95: ='RE Index | Historical Results'!K10 -> 2.666666667 | M95: ='RE Index | Historical Results'!L10 -> 4.333333333 | N95: ='RE Index | Historical Results'!M10 -> 2.666666667 | O95: ='RE Index | Historical Results'!N10 -> 2.666666667 | P95: ='RE Index | Historical Results'!O10 -> 1.333333333 | Q95: ='RE Index | Historical Results'!P10 -> 4.33 | R95: ='RE Index | Historical Results'!Q10 -> 0 | S95: ='RE Index | Historical Results'!R10 -> 5 | T95: ='RE Index | Historical Results'!S10 -> 5 | U95: ='RE Index | Historical Results'!T10 -> 4.333333333 | V95: ='RE Index | Historical Results'!U10 -> 5 | W95: ='RE Index | Historical Results'!V10 -> 5 | X95: ='RE Index | Historical Results'!W10 -> 3.666666667 | Y95: ='RE Index | Historical Results'!X10 -> 3.666666667 | Z95: ='RE Index | Historical Results'!Y10 -> 4.333333333 | AA95: ='RE Index | Historical Results'!Z10 -> 5 | AB95: ='RE Index | Historical Results'!AA10 -> 0 | AC95: ='RE Index | Historical Results'!AB10 -> 5 | AD95: ='RE Index | Historical Results'!AC10 -> 3.666666667 | AE95: ='RE Index | Historical Results'!AD10 -> 0 | AF95: ='RE Index | Historical Results'!AE10 -> 0 | AG95: ='RE Index | Historical Results'!AF10 -> 1.333333333 | AH95: ='RE Index | Historical Results'!AG10 -> 4.333333333 | AI95: ='RE Index | Historical Results'!AH10 -> 1.333333333 | AJ95: ='RE Index | Historical Results'!AI10 -> 0 | AK95: ='RE Index | Historical Results'!AJ10 -> 1.333333333 | AL95: ='RE Index | Historical Results'!AK10 -> 1.333333333 | AM95: ='RE Index | Historical Results'!AL10 -> 3.666666667
D96: 2017 Score | E96: 0 to 5 | H96: ='RE Index | Historical Results'!G11 -> 1.875 | I96: ='RE Index | Historical Results'!H11 -> 4.0625 | J96: ='RE Index | Historical Results'!I11 -> 3.645833333 | K96: ='RE Index | Historical Results'!J11 -> 3.958333333 | L96: ='RE Index | Historical Results'!K11 -> 3.333333333 | M96: ='RE Index | Historical Results'!L11 -> 3.333333333 | N96: ='RE Index | Historical Results'!M11 -> 3.125 | O96: ='RE Index | Historical Results'!N11 -> 4.583333333 | P96: ='RE Index | Historical Results'!O11 -> 4.375 | Q96: ='RE Index | Historical Results'!P11 -> 4.69 | R96: ='RE Index | Historical Results'!Q11 -> 0 | S96: ='RE Index | Historical Results'!R11 -> 5 | T96: ='RE Index | Historical Results'!S11 -> 3.4375 | U96: ='RE Index | Historical Results'!T11 -> 4.583333333 | V96: ='RE Index | Historical Results'!U11 -> 1.875 | W96: ='RE Index | Historical Results'!V11 -> 3.958333333 | X96: ='RE Index | Historical Results'!W11 -> 0 | Y96: ='RE Index | Historical Results'!X11 -> 0 | Z96: ='RE Index | Historical Results'!Y11 -> 3.333333333 | AA96: ='RE Index | Historical Results'!Z11 -> 3.333333333 | AB96: ='RE Index | Historical Results'!AA11 -> 0 | AC96: ='RE Index | Historical Results'!AB11 -> 3.958333333 | AD96: ='RE Index | Historical Results'!AC11 -> 2.8125 | AE96: ='RE Index | Historical Results'!AD11 -> 0 | AF96: ='RE Index | Historical Results'!AE11 -> 0 | AG96: ='RE Index | Historical Results'!AF11 -> 3.125 | AH96: ='RE Index | Historical Results'!AG11 -> 3.75 | AI96: ='RE Index | Historical Results'!AH11 -> 1.666666667 | AJ96: ='RE Index | Historical Results'!AI11 -> 2.5 | AK96: ='RE Index | Historical Results'!AJ11 -> 1.5625 | AL96: ='RE Index | Historical Results'!AK11 -> 2.708333333 | AM96: ='RE Index | Historical Results'!AL11 -> 5
D97: 2018 Score | E97: 0 to 5 | H97: ='RE Index | Historical Results'!G12 -> 0 | I97: ='RE Index | Historical Results'!H12 -> 4.375 | J97: ='RE Index | Historical Results'!I12 -> 0 | K97: ='RE Index | Historical Results'!J12 -> 2.78125 | L97: ='RE Index | Historical Results'!K12 -> 3.125 | M97: ='RE Index | Historical Results'!L12 -> 4.6875 | N97: ='RE Index | Historical Results'!M12 -> 3.359375 | O97: ='RE Index | Historical Results'!N12 -> 4.453125 | P97: ='RE Index | Historical Results'!O12 -> 0 | Q97: ='RE Index | Historical Results'!P12 -> 4.609375 | R97: ='RE Index | Historical Results'!Q12 -> 0 | S97: ='RE Index | Historical Results'!R12 -> 4.6875 | T97: ='RE Index | Historical Results'!S12 -> 3.203125 | U97: ='RE Index | Historical Results'!T12 -> 2.703125 | V97: ='RE Index | Historical Results'!U12 -> 3.046875 | W97: ='RE Index | Historical Results'!V12 -> 4.765625 | X97: ='RE Index | Historical Results'!W12 -> 0 | Y97: ='RE Index | Historical Results'!X12 -> 0.65625 | Z97: ='RE Index | Historical Results'!Y12 -> 3.453125 | AA97: ='RE Index | Historical Results'!Z12 -> 0 | AB97: ='RE Index | Historical Results'!AA12 -> 0.15625 | AC97: ='RE Index | Historical Results'!AB12 -> 2.8125 | AD97: ='RE Index | Historical Results'!AC12 -> 0 | AE97: ='RE Index | Historical Results'!AD12 -> 0 | AF97: ='RE Index | Historical Results'!AE12 -> 0 | AG97: ='RE Index | Historical Results'!AF12 -> 0.390625 | AH97: ='RE Index | Historical Results'!AG12 -> 0.15625 | AI97: ='RE Index | Historical Results'!AH12 -> 1.546875 | AJ97: ='RE Index | Historical Results'!AI12 -> 2.96875 | AK97: ='RE Index | Historical Results'!AJ12 -> 0.234375 | AL97: ='RE Index | Historical Results'!AK12 -> 1.71875 | AM97: ='RE Index | Historical Results'!AL12 -> 2.046875
D98: 2019 Score | E98: 0 to 5 | H98: =H8 -> 0 | I98: 3.875 | J98: 0 | K98: 3.25 | L98: 3.625 | M98: 4.125 | N98: 3.5 | O98: 0.625 | P98: 3.5 | Q98: 1.25 | R98: 0 | S98: 3.25 | T98: 5 | U98: 1.25 | V98: 1.875 | W98: 4.375 | X98: 0 | Y98: 2 | Z98: 5 | AA98: 0 | AB98: 2.125 | AC98: 2.5 | AD98: 3.25 | AE98: 0 | AF98: 0 | AG98: 1.25 | AH98: 0.625 | AI98: 1.25 | AJ98: 0.625 | AK98: 1.75 | AL98: 2.5 | AM98: 0.625
D99: Existing renewable generation | E99: Change | G99: =G26 -> 0.3
D100: 2012 Score | E100: 0 to 5 | H100: ='RE Index | Historical Results'!G15 -> 0.01 | I100: ='RE Index | Historical Results'!H15 -> 0 | J100: ='RE Index | Historical Results'!I15 -> 0.5 | K100: ='RE Index | Historical Results'!J15 -> 0 | L100: ='RE Index | Historical Results'!K15 -> 0 | M100: ='RE Index | Historical Results'!L15 -> 0.01 | N100: ='RE Index | Historical Results'!M15 -> 2.6 | O100: ='RE Index | Historical Results'!N15 -> 0 | P100: ='RE Index | Historical Results'!O15 -> 0 | Q100: ='RE Index | Historical Results'!P15 -> 0 | R100: ='RE Index | Historical Results'!Q15 -> 0 | S100: ='RE Index | Historical Results'!R15 -> NA | T100: ='RE Index | Historical Results'!S15 -> 2.2 | U100: ='RE Index | Historical Results'!T15 -> 0.43 | V100: ='RE Index | Historical Results'!U15 -> 0.1 | W100: ='RE Index | Historical Results'!V15 -> NA | X100: ='RE Index | Historical Results'!W15 -> 0 | Y100: ='RE Index | Historical Results'!X15 -> 0 | Z100: ='RE Index | Historical Results'!Y15 -> 0.27 | AA100: ='RE Index | Historical Results'!Z15 -> 0.15 | AB100: ='RE Index | Historical Results'!AA15 -> 0 | AC100: ='RE Index | Historical Results'!AB15 -> 0.95 | AD100: ='RE Index | Historical Results'!AC15 -> 0 | AE100: ='RE Index | Historical Results'!AD15 -> 0 | AF100: ='RE Index | Historical Results'!AE15 -> 0 | AG100: ='RE Index | Historical Results'!AF15 -> 0.01 | AH100: ='RE Index | Historical Results'!AG15 -> 1.22 | AI100: ='RE Index | Historical Results'!AH15 -> 0 | AJ100: ='RE Index | Historical Results'!AI15 -> 0 | AK100: ='RE Index | Historical Results'!AJ15 -> 0 | AL100: ='RE Index | Historical Results'!AK15 -> 0 | AM100: =INDIRECT(AM$4&"!E93") -> 0
D101: 2013 Score | E101: 0 to 5 | H101: ='RE Index | Historical Results'!G16 -> 0 | I101: ='RE Index | Historical Results'!H16 -> 0 | J101: ='RE Index | Historical Results'!I16 -> 0.6554299569 | K101: ='RE Index | Historical Results'!J16 -> 0.01051051893 | L101: ='RE Index | Historical Results'!K16 -> 0.00988006576 | M101: ='RE Index | Historical Results'!L16 -> 0 | N101: ='RE Index | Historical Results'!M16 -> 2.658894418 | O101: ='RE Index | Historical Results'!N16 -> 1.390777168 | P101: ='RE Index | Historical Results'!O16 -> 0 | Q101: ='RE Index | Historical Results'!P16 -> 0.001555465944 | R101: ='RE Index | Historical Results'!Q16 -> 0.03596293251 | S101: ='RE Index | Historical Results'!R16 -> 0.612413512 | T101: ='RE Index | Historical Results'!S16 -> 1.593331003 | U101: ='RE Index | Historical Results'!T16 -> 0.6335559935 | V101: ='RE Index | Historical Results'!U16 -> 0.01066908992 | W101: ='RE Index | Historical Results'!V16 -> 0.6886440599 | X101: ='RE Index | Historical Results'!W16 -> 0.04754977029 | Y101: ='RE Index | Historical Results'!X16 -> 0.04754977029 | Z101: ='RE Index | Historical Results'!Y16 -> 0.2846569842 | AA101: ='RE Index | Historical Results'!Z16 -> 0.1446690714 | AB101: ='RE Index | Historical Results'!AA16 -> 0 | AC101: ='RE Index | Historical Results'!AB16 -> 0.3018652141 | AD101: ='RE Index | Historical Results'!AC16 -> 0.1009084384 | AE101: ='RE Index | Historical Results'!AD16 -> 0.04058643617 | AF101: ='RE Index | Historical Results'!AE16 -> 0 | AG101: ='RE Index | Historical Results'!AF16 -> 0.0006848916215 | AH101: ='RE Index | Historical Results'!AG16 -> 1.0240374 | AI101: ='RE Index | Historical Results'!AH16 -> 0 | AJ101: ='RE Index | Historical Results'!AI16 -> 2.441962025 | AK101: ='RE Index | Historical Results'!AJ16 -> 3.596190915e-06 | AL101: ='RE Index | Historical Results'!AK16 -> 0 | AM101: =INDIRECT(AM$4&"!E94") -> 0
D102: 2014 Score | E102: 0 to 5 | H102: ='RE Index | Historical Results'!G17 -> 0.08468643436 | I102: ='RE Index | Historical Results'!H17 -> 0.006991575 | J102: ='RE Index | Historical Results'!I17 -> 0.8362480417 | K102: ='RE Index | Historical Results'!J17 -> 0.01420321463 | L102: ='RE Index | Historical Results'!K17 -> 0.04232329106 | M102: ='RE Index | Historical Results'!L17 -> 0.1170702895 | N102: ='RE Index | Historical Results'!M17 -> 3.190331642 | O102: ='RE Index | Historical Results'!N17 -> 1.493199951 | P102: ='RE Index | Historical Results'!O17 -> 0.190859376 | Q102: ='RE Index | Historical Results'!P17 -> 0.0143266175 | R102: ='RE Index | Historical Results'!Q17 -> 0.04066345946 | S102: ='RE Index | Historical Results'!R17 -> 0.6896652316 | T102: ='RE Index | Historical Results'!S17 -> 1.350176791 | U102: ='RE Index | Historical Results'!T17 -> 0.7824621563 | V102: ='RE Index | Historical Results'!U17 -> 0.04032443739 | W102: ='RE Index | Historical Results'!V17 -> 0.8213333824 | X102: ='RE Index | Historical Results'!W17 -> 0.4655531864 | Y102: ='RE Index | Historical Results'!X17 -> 0.4655531864 | Z102: ='RE Index | Historical Results'!Y17 -> 0.3849808088 | AA102: ='RE Index | Historical Results'!Z17 -> 0.3373700133 | AB102: ='RE Index | Historical Results'!AA17 -> 0 | AC102: ='RE Index | Historical Results'!AB17 -> 0.5305854359 | AD102: ='RE Index | Historical Results'!AC17 -> 0.1054455938 | AE102: ='RE Index | Historical Results'!AD17 -> 0.07977320816 | AF102: ='RE Index | Historical Results'!AE17 -> 0.019109375 | AG102: ='RE Index | Historical Results'!AF17 -> 0.000946962734 | AH102: ='RE Index | Historical Results'!AG17 -> 1.108045438 | AI102: ='RE Index | Historical Results'!AH17 -> 0.109487662 | AJ102: ='RE Index | Historical Results'!AI17 -> 2.738240638 | AK102: ='RE Index | Historical Results'!AJ17 -> 2.521046512e-05 | AL102: ='RE Index | Historical Results'!AK17 -> 0.001136822341 | AM102: =INDIRECT(AM$4&"!E95") -> 0
D103: 2015 Score | E103: 0 to 5 | H103: ='RE Index | Historical Results'!G18 -> 0.06781581416 | I103: ='RE Index | Historical Results'!H18 -> 0.00560459684 | J103: ='RE Index | Historical Results'!I18 -> 0.7529445502 | K103: ='RE Index | Historical Results'!J18 -> 0.01264142634 | L103: ='RE Index | Historical Results'!K18 -> 0.03586244048 | M103: ='RE Index | Historical Results'!L18 -> 0.1056815347 | N103: ='RE Index | Historical Results'!M18 -> 2.870719008 | O103: ='RE Index | Historical Results'!N18 -> 1.343377796 | P103: ='RE Index | Historical Results'!O18 -> 0.1530347888 | Q103: ='RE Index | Historical Results'!P18 -> 0.01293696345 | R103: ='RE Index | Historical Results'!Q18 -> 0.03648660562 | S103: ='RE Index | Historical Results'!R18 -> 0.6196484204 | T103: ='RE Index | Historical Results'!S18 -> 1.208726916 | U103: ='RE Index | Historical Results'!T18 -> 0.7031745937 | V103: ='RE Index | Historical Results'!U18 -> 0.03421611041 | W103: ='RE Index | Historical Results'!V18 -> 0.7146451333 | X103: ='RE Index | Historical Results'!W18 -> 0.4189978678 | Y103: ='RE Index | Historical Results'!X18 -> 0.4189978678 | Z103: ='RE Index | Historical Results'!Y18 -> 0.3457923359 | AA103: ='RE Index | Historical Results'!Z18 -> 0.2822986606 | AB103: ='RE Index | Historical Results'!AA18 -> 0 | AC103: ='RE Index | Historical Results'!AB18 -> 0.4775268923 | AD103: ='RE Index | Historical Results'!AC18 -> 0.09314444542 | AE103: ='RE Index | Historical Results'!AD18 -> 0.07123589306 | AF103: ='RE Index | Historical Results'!AE18 -> 0.01531438172 | AG103: ='RE Index | Historical Results'!AF18 -> 0.0008107116041 | AH103: ='RE Index | Historical Results'!AG18 -> 0.9962195666 | AI103: ='RE Index | Historical Results'!AH18 -> 0.0981776052 | AJ103: ='RE Index | Historical Results'!AI18 -> 2.464416574 | AK103: ='RE Index | Historical Results'!AJ18 -> 4.797015465e-05 | AL103: ='RE Index | Historical Results'!AK18 -> 0.001023140107 | AM103: =INDIRECT(AM$4&"!E96") -> 0
D104: 2016 Score | E104: 0 to 5 | H104: ='RE Index | Historical Results'!G19 -> 0 | I104: ='RE Index | Historical Results'!H19 -> 0 | J104: ='RE Index | Historical Results'!I19 -> 0.7725378735 | K104: ='RE Index | Historical Results'!J19 -> 0 | L104: ='RE Index | Historical Results'!K19 -> 0.191726859 | M104: ='RE Index | Historical Results'!L19 -> 0.2397277725 | N104: ='RE Index | Historical Results'!M19 -> 3.926362109 | O104: ='RE Index | Historical Results'!N19 -> 1.675580276 | P104: ='RE Index | Historical Results'!O19 -> 0.1534304706 | Q104: ='RE Index | Historical Results'!P19 -> 0.05364936481 | R104: ='RE Index | Historical Results'!Q19 -> 0 | S104: ='RE Index | Historical Results'!R19 -> 0 | T104: ='RE Index | Historical Results'!S19 -> 1.091680013 | U104: ='RE Index | Historical Results'!T19 -> 0.8596655588 | V104: ='RE Index | Historical Results'!U19 -> 0.0540998187 | W104: ='RE Index | Historical Results'!V19 -> 1.646875764 | X104: ='RE Index | Historical Results'!W19 -> 0 | Y104: ='RE Index | Historical Results'!X19 -> 0 | Z104: ='RE Index | Historical Results'!Y19 -> 0.5000994119 | AA104: ='RE Index | Historical Results'!Z19 -> 0.26614456 | AB104: ='RE Index | Historical Results'!AA19 -> 0 | AC104: ='RE Index | Historical Results'!AB19 -> 0 | AD104: ='RE Index | Historical Results'!AC19 -> 0.2146890974 | AE104: ='RE Index | Historical Results'!AD19 -> 0.07398103341 | AF104: ='RE Index | Historical Results'!AE19 -> 0.01531245757 | AG104: ='RE Index | Historical Results'!AF19 -> 0 | AH104: ='RE Index | Historical Results'!AG19 -> 0 | AI104: ='RE Index | Historical Results'!AH19 -> 0.08749830154 | AJ104: ='RE Index | Historical Results'!AI19 -> 2.466911511 | AK104: ='RE Index | Historical Results'!AJ19 -> 0 | AL104: ='RE Index | Historical Results'!AK19 -> 0 | AM104: =INDIRECT(AM$4&"!E97") -> 0
D105: 2017 Score | E105: 0 to 5 | H105: ='RE Index | Historical Results'!G20 -> 0.13 | I105: ='RE Index | Historical Results'!H20 -> 0.3104274611 | J105: ='RE Index | Historical Results'!I20 -> 0.1070797576 | K105: ='RE Index | Historical Results'!J20 -> 0 | L105: ='RE Index | Historical Results'!K20 -> 0.3438046329 | M105: ='RE Index | Historical Results'!L20 -> 0.4734986343 | N105: ='RE Index | Historical Results'!M20 -> 2.544071655 | O105: ='RE Index | Historical Results'!N20 -> 2.108333333 | P105: ='RE Index | Historical Results'!O20 -> 0.25 | Q105: ='RE Index | Historical Results'!P20 -> 0.3147324906 | R105: ='RE Index | Historical Results'!Q20 -> 0 | S105: ='RE Index | Historical Results'!R20 -> 1.238743507 | T105: ='RE Index | Historical Results'!S20 -> 2.690328526 | U105: ='RE Index | Historical Results'!T20 -> 0.5727039157 | V105: ='RE Index | Historical Results'!U20 -> 0.2636306222 | W105: ='RE Index | Historical Results'!V20 -> 0.9046449638 | X105: ='RE Index | Historical Results'!W20 -> 0.15625 | Y105: ='RE Index | Historical Results'!X20 -> 0.15625 | Z105: ='RE Index | Historical Results'!Y20 -> 0.798214628 | AA105: ='RE Index | Historical Results'!Z20 -> 0.798214628 | AB105: ='RE Index | Historical Results'!AA20 -> 0 | AC105: ='RE Index | Historical Results'!AB20 -> 0.9020839751 | AD105: ='RE Index | Historical Results'!AC20 -> 0.1988446651 | AE105: ='RE Index | Historical Results'!AD20 -> 0 | AF105: ='RE Index | Historical Results'!AE20 -> 0 | AG105: ='RE Index | Historical Results'!AF20 -> 0.3381481481 | AH105: ='RE Index | Historical Results'!AG20 -> 2.206587395 | AI105: ='RE Index | Historical Results'!AH20 -> 0.317014 | AJ105: ='RE Index | Historical Results'!AI20 -> 2.58622296 | AK105: ='RE Index | Historical Results'!AJ20 -> 0.25 | AL105: ='RE Index | Historical Results'!AK20 -> 0.25 | AM105: =INDIRECT(AM$4&"!E98") -> 0
D106: 2018 Score | E106: 0 to 5 | H106: ='RE Index | Historical Results'!G21 -> 0 | I106: ='RE Index | Historical Results'!H21 -> 0.05 | J106: ='RE Index | Historical Results'!I21 -> 0.7425373737 | K106: ='RE Index | Historical Results'!J21 -> 0 | L106: ='RE Index | Historical Results'!K21 -> 0.09024481591 | M106: ='RE Index | Historical Results'!L21 -> 0.2506746616 | N106: ='RE Index | Historical Results'!M21 -> 2.709893787 | O106: ='RE Index | Historical Results'!N21 -> 2.083333333 | P106: ='RE Index | Historical Results'!O21 -> 0 | Q106: ='RE Index | Historical Results'!P21 -> 0.07189842435 | R106: ='RE Index | Historical Results'!Q21 -> 0.02078416717 | S106: ='RE Index | Historical Results'!R21 -> 1.372965968 | T106: ='RE Index | Historical Results'!S21 -> 1.4 | U106: ='RE Index | Historical Results'!T21 -> 0.8 | V106: ='RE Index | Historical Results'!U21 -> 0.03585853759 | W106: ='RE Index | Historical Results'!V21 -> 1.062206573 | X106: ='RE Index | Historical Results'!W21 -> 0.4898527448 | Y106: ='RE Index | Historical Results'!X21 -> 0.8083249102 | Z106: ='RE Index | Historical Results'!Y21 -> 0.6 | AA106: ='RE Index | Historical Results'!Z21 -> 0.35 | AB106: ='RE Index | Historical Results'!AA21 -> 0 | AC106: ='RE Index | Historical Results'!AB21 -> 0.7671576178 | AD106: ='RE Index | Historical Results'!AC21 -> 0.1 | AE106: ='RE Index | Historical Results'!AD21 -> 0 | AF106: ='RE Index | Historical Results'!AE21 -> 0 | AG106: ='RE Index | Historical Results'!AF21 -> 0.6261270287 | AH106: ='RE Index | Historical Results'!AG21 -> 0.85 | AI106: ='RE Index | Historical Results'!AH21 -> 0.06284761905 | AJ106: ='RE Index | Historical Results'!AI21 -> 2.171313104 | AK106: ='RE Index | Historical Results'!AJ21 -> 0 | AL106: ='RE Index | Historical Results'!AK21 -> 0.05 | AM106: =INDIRECT(AM$4&"!E99") -> 0
D107: 2019 Score | E107: 0 to 5 | H107: =H26 -> 0 | I107: =I26 -> 0.119893854 | J107: 0.7425373737 | K107: 0 | L107: 0.09581276628 | M107: 0.2800545455 | N107: 1.248825063 | O107: 1.590909091 | P107: 0 | Q107: 0.08194755451 | R107: 0.02040672661 | S107: 1.25 | T107: 1.081185484 | U107: 4.384989945 | V107: 0.03246268722 | W107: 1.100811124 | X107: 0.4898527448 | Y107: 0.9434518216 | Z107: 0.534359913 | AA107: 0.35 | AB107: 0.1571428571 | AC107: 0.7484245307 | AD107: 0.1 | AE107: 0 | AF107: 0 | AG107: 0.09678587922 | AH107: 0.02597109298 | AI107: 0.06284761905 | AJ107: 2.22813043 | AK107: 0 | AL107: 0 | AM107: 0.07318
D108: Planned renewable generation | E108: Change | G108: =G34 -> 0.3
D109: 2012 Score | E109: 0 to 5 | H109: ='RE Index | Historical Results'!G24 -> 0.26 | I109: ='RE Index | Historical Results'!H24 -> 0 | J109: ='RE Index | Historical Results'!I24 -> 0.05 | K109: ='RE Index | Historical Results'!J24 -> 0.21 | L109: ='RE Index | Historical Results'!K24 -> 0.6 | M109: ='RE Index | Historical Results'!L24 -> 0 | N109: ='RE Index | Historical Results'!M24 -> 0 | O109: ='RE Index | Historical Results'!N24 -> 0 | P109: ='RE Index | Historical Results'!O24 -> 0 | Q109: ='RE Index | Historical Results'!P24 -> 0.18 | R109: ='RE Index | Historical Results'!Q24 -> 0 | S109: ='RE Index | Historical Results'!R24 -> NA | T109: ='RE Index | Historical Results'!S24 -> 3.7 | U109: ='RE Index | Historical Results'!T24 -> 0.85 | V109: ='RE Index | Historical Results'!U24 -> 3.2 | W109: ='RE Index | Historical Results'!V24 -> NA | X109: ='RE Index | Historical Results'!W24 -> 0 | Y109: ='RE Index | Historical Results'!X24 -> 0 | Z109: ='RE Index | Historical Results'!Y24 -> 0.06 | AA109: ='RE Index | Historical Results'!Z24 -> 0.86 | AB109: ='RE Index | Historical Results'!AA24 -> 4.5 | AC109: ='RE Index | Historical Results'!AB24 -> 0.5 | AD109: ='RE Index | Historical Results'!AC24 -> 0 | AE109: ='RE Index | Historical Results'!AD24 -> 0 | AF109: ='RE Index | Historical Results'!AE24 -> 0 | AG109: ='RE Index | Historical Results'!AF24 -> 1.01 | AH109: ='RE Index | Historical Results'!AG24 -> 0 | AI109: ='RE Index | Historical Results'!AH24 -> 0 | AJ109: ='RE Index | Historical Results'!AI24 -> 0 | AK109: ='RE Index | Historical Results'!AJ24 -> 0 | AL109: ='RE Index | Historical Results'!AK24 -> 0 | AM109: =INDIRECT(AM$4&"!E101") -> 0
D110: 2013 Score | E110: 0 to 5 | H110: ='RE Index | Historical Results'!G25 -> 0.06381118881 | I110: ='RE Index | Historical Results'!H25 -> 0 | J110: ='RE Index | Historical Results'!I25 -> 0.1007682081 | K110: ='RE Index | Historical Results'!J25 -> 0.3017843708 | L110: ='RE Index | Historical Results'!K25 -> 0.710305361 | M110: ='RE Index | Historical Results'!L25 -> 0 | N110: ='RE Index | Historical Results'!M25 -> 0.3619857205 | O110: ='RE Index | Historical Results'!N25 -> 0 | P110: ='RE Index | Historical Results'!O25 -> 0 | Q110: ='RE Index | Historical Results'!P25 -> 0.1745733265 | R110: ='RE Index | Historical Results'!Q25 -> 0 | S110: ='RE Index | Historical Results'!R25 -> 0.3025404878 | T110: ='RE Index | Historical Results'!S25 -> 4.117443898 | U110: ='RE Index | Historical Results'!T25 -> 0.8604201529 | V110: ='RE Index | Historical Results'!U25 -> 2.938614592 | W110: ='RE Index | Historical Results'!V25 -> 0.693075923 | X110: ='RE Index | Historical Results'!W25 -> 4.005283308 | Y110: ='RE Index | Historical Results'!X25 -> 4.005283308 | Z110: ='RE Index | Historical Results'!Y25 -> 0.1941868386 | AA110: ='RE Index | Historical Results'!Z25 -> 0.8242409565 | AB110: ='RE Index | Historical Results'!AA25 -> 4.5 | AC110: ='RE Index | Historical Results'!AB25 -> 0 | AD110: ='RE Index | Historical Results'!AC25 -> 0.0607551059 | AE110: ='RE Index | Historical Results'!AD25 -> 0.0114975 | AF110: ='RE Index | Historical Results'!AE25 -> 0 | AG110: ='RE Index | Historical Results'!AF25 -> 0 | AH110: ='RE Index | Historical Results'!AG25 -> 0.7010121672 | AI110: ='RE Index | Historical Results'!AH25 -> 0.3069763099 | AJ110: ='RE Index | Historical Results'!AI25 -> 0 | AK110: ='RE Index | Historical Results'!AJ25 -> 0 | AL110: ='RE Index | Historical Results'!AK25 -> 0 | AM110: =INDIRECT(AM$4&"!E102") -> 0
D111: 2014 Score | E111: 0 to 5 | H111: ='RE Index | Historical Results'!G26 -> 0.1756111987 | I111: ='RE Index | Historical Results'!H26 -> 0 | J111: ='RE Index | Historical Results'!I26 -> 0.6533827084 | K111: ='RE Index | Historical Results'!J26 -> 0.3406416772 | L111: ='RE Index | Historical Results'!K26 -> 0.1456294066 | M111: ='RE Index | Historical Results'!L26 -> 0 | N111: ='RE Index | Historical Results'!M26 -> 0.3638523386 | O111: ='RE Index | Historical Results'!N26 -> 0 | P111: ='RE Index | Historical Results'!O26 -> 0 | Q111: ='RE Index | Historical Results'!P26 -> 0.17725907 | R111: ='RE Index | Historical Results'!Q26 -> 0.08829374465 | S111: ='RE Index | Historical Results'!R26 -> 0.4466621004 | T111: ='RE Index | Historical Results'!S26 -> 4.12213097 | U111: ='RE Index | Historical Results'!T26 -> 0.2865592685 | V111: ='RE Index | Historical Results'!U26 -> 0.09944376565 | W111: ='RE Index | Historical Results'!V26 -> 0 | X111: ='RE Index | Historical Results'!W26 -> 0.3782666977 | Y111: ='RE Index | Historical Results'!X26 -> 0.3782666977 | Z111: ='RE Index | Historical Results'!Y26 -> 0.1870152964 | AA111: ='RE Index | Historical Results'!Z26 -> 0.6133406662 | AB111: ='RE Index | Historical Results'!AA26 -> 4.5 | AC111: ='RE Index | Historical Results'!AB26 -> 0.2300462134 | AD111: ='RE Index | Historical Results'!AC26 -> 0 | AE111: ='RE Index | Historical Results'!AD26 -> 0.01990937356 | AF111: ='RE Index | Historical Results'!AE26 -> 0 | AG111: ='RE Index | Historical Results'!AF26 -> 0.05532157086 | AH111: ='RE Index | Historical Results'!AG26 -> 0.04497173084 | AI111: ='RE Index | Historical Results'!AH26 -> 0 | AJ111: ='RE Index | Historical Results'!AI26 -> 0.287647513 | AK111: ='RE Index | Historical Results'!AJ26 -> 0 | AL111: ='RE Index | Historical Results'!AK26 -> 0 | AM111: =INDIRECT(AM$4&"!E103") -> 0
D112: 2015 Score | E112: 0 to 5 | H112: ='RE Index | Historical Results'!G27 -> 0.2449137553 | I112: ='RE Index | Historical Results'!H27 -> 0 | J112: ='RE Index | Historical Results'!I27 -> 0.3064347123 | K112: ='RE Index | Historical Results'!J27 -> 0.05150103796 | L112: ='RE Index | Historical Results'!K27 -> 1.155325051 | M112: ='RE Index | Historical Results'!L27 -> 2.031726637 | N112: ='RE Index | Historical Results'!M27 -> 4.5 | O112: ='RE Index | Historical Results'!N27 -> 0 | P112: ='RE Index | Historical Results'!O27 -> 0 | Q112: ='RE Index | Historical Results'!P27 -> 0.2216694615 | R112: ='RE Index | Historical Results'!Q27 -> 0.08997792322 | S112: ='RE Index | Historical Results'!R27 -> 0.4427950597 | T112: ='RE Index | Historical Results'!S27 -> 4.128332539 | U112: ='RE Index | Historical Results'!T27 -> 0.326080521 | V112: ='RE Index | Historical Results'!U27 -> 1.616708567 | W112: ='RE Index | Historical Results'!V27 -> 0.03624874827 | X112: ='RE Index | Historical Results'!W27 -> 0.3787559202 | Y112: ='RE Index | Historical Results'!X27 -> 0.3787559202 | Z112: ='RE Index | Historical Results'!Y27 -> 0.1537613453 | AA112: ='RE Index | Historical Results'!Z27 -> 0.6133429193 | AB112: ='RE Index | Historical Results'!AA27 -> 4.5 | AC112: ='RE Index | Historical Results'!AB27 -> 3.211660734 | AD112: ='RE Index | Historical Results'!AC27 -> 0.05952168121 | AE112: ='RE Index | Historical Results'!AD27 -> 0 | AF112: ='RE Index | Historical Results'!AE27 -> 0 | AG112: ='RE Index | Historical Results'!AF27 -> 0.05558259525 | AH112: ='RE Index | Historical Results'!AG27 -> 2.155990002 | AI112: ='RE Index | Historical Results'!AH27 -> 0 | AJ112: ='RE Index | Historical Results'!AI27 -> 0 | AK112: ='RE Index | Historical Results'!AJ27 -> 0 | AL112: ='RE Index | Historical Results'!AK27 -> 0 | AM112: =INDIRECT(AM$4&"!E104") -> 0
D113: 2016 Score | E113: 0 to 5 | H113: ='RE Index | Historical Results'!G28 -> 0 | I113: ='RE Index | Historical Results'!H28 -> 0 | J113: ='RE Index | Historical Results'!I28 -> 0.06745677136 | K113: ='RE Index | Historical Results'!J28 -> 0 | L113: ='RE Index | Historical Results'!K28 -> 0 | M113: ='RE Index | Historical Results'!L28 -> 0 | N113: ='RE Index | Historical Results'!M28 -> 0.4341058603 | O113: ='RE Index | Historical Results'!N28 -> 0 | P113: ='RE Index | Historical Results'!O28 -> 0.3701962732 | Q113: ='RE Index | Historical Results'!P28 -> 0.1765317083 | R113: ='RE Index | Historical Results'!Q28 -> 0.2217340116 | S113: ='RE Index | Historical Results'!R28 -> 0 | T113: ='RE Index | Historical Results'!S28 -> 4.076507688 | U113: ='RE Index | Historical Results'!T28 -> 0.2973594116 | V113: ='RE Index | Historical Results'!U28 -> 0 | W113: ='RE Index | Historical Results'!V28 -> 0.2234949808 | X113: ='RE Index | Historical Results'!W28 -> 0 | Y113: ='RE Index | Historical Results'!X28 -> 0 | Z113: ='RE Index | Historical Results'!Y28 -> 0.07183519146 | AA113: ='RE Index | Historical Results'!Z28 -> 0.807851233 | AB113: ='RE Index | Historical Results'!AA28 -> 0 | AC113: ='RE Index | Historical Results'!AB28 -> 0 | AD113: ='RE Index | Historical Results'!AC28 -> 0 | AE113: ='RE Index | Historical Results'!AD28 -> 0 | AF113: ='RE Index | Historical Results'!AE28 -> 0 | AG113: ='RE Index | Historical Results'!AF28 -> 0 | AH113: ='RE Index | Historical Results'!AG28 -> 0 | AI113: ='RE Index | Historical Results'!AH28 -> 0 | AJ113: ='RE Index | Historical Results'!AI28 -> 0 | AK113: ='RE Index | Historical Results'!AJ28 -> 0 | AL113: ='RE Index | Historical Results'!AK28 -> 0 | AM113: =INDIRECT(AM$4&"!E105") -> 0
D114: 2017 Score | E114: 0 to 5 | H114: ='RE Index | Historical Results'!G29 -> 0 | I114: ='RE Index | Historical Results'!H29 -> 0.2383907345 | J114: ='RE Index | Historical Results'!I29 -> 0 | K114: ='RE Index | Historical Results'!J29 -> 0 | L114: ='RE Index | Historical Results'!K29 -> 0.1761188811 | M114: ='RE Index | Historical Results'!L29 -> 0.212194196 | N114: ='RE Index | Historical Results'!M29 -> 0 | O114: ='RE Index | Historical Results'!N29 -> 0 | P114: ='RE Index | Historical Results'!O29 -> 0 | Q114: ='RE Index | Historical Results'!P29 -> 0.1971916821 | R114: ='RE Index | Historical Results'!Q29 -> 0 | S114: ='RE Index | Historical Results'!R29 -> 0.278511206 | T114: ='RE Index | Historical Results'!S29 -> 2.112878466 | U114: ='RE Index | Historical Results'!T29 -> 0.334669814 | V114: ='RE Index | Historical Results'!U29 -> 2.044593333 | W114: ='RE Index | Historical Results'!V29 -> 0.3305658883 | X114: ='RE Index | Historical Results'!W29 -> 0 | Y114: ='RE Index | Historical Results'!X29 -> 0 | Z114: ='RE Index | Historical Results'!Y29 -> 0.1273165881 | AA114: ='RE Index | Historical Results'!Z29 -> 0.1273165881 | AB114: ='RE Index | Historical Results'!AA29 -> 0 | AC114: ='RE Index | Historical Results'!AB29 -> 4.061372609 | AD114: ='RE Index | Historical Results'!AC29 -> 0.07600318994 | AE114: ='RE Index | Historical Results'!AD29 -> 0 | AF114: ='RE Index | Historical Results'!AE29 -> 0 | AG114: ='RE Index | Historical Results'!AF29 -> 2.697128296 | AH114: ='RE Index | Historical Results'!AG29 -> 2.387758563 | AI114: ='RE Index | Historical Results'!AH29 -> 3.447936 | AJ114: ='RE Index | Historical Results'!AI29 -> 0 | AK114: ='RE Index | Historical Results'!AJ29 -> 0.1 | AL114: ='RE Index | Historical Results'!AK29 -> 0.1368133836 | AM114: =INDIRECT(AM$4&"!E106") -> 0
D115: 2018 Score | E115: 0 to 5 | H115: ='RE Index | Historical Results'!G30 -> 0 | I115: ='RE Index | Historical Results'!H30 -> 0.05497474747 | J115: ='RE Index | Historical Results'!I30 -> 0.01986531987 | K115: ='RE Index | Historical Results'!J30 -> 0.6576799079 | L115: ='RE Index | Historical Results'!K30 -> 0.6426568616 | M115: ='RE Index | Historical Results'!L30 -> 0.5883452269 | N115: ='RE Index | Historical Results'!M30 -> 1.323948205 | O115: ='RE Index | Historical Results'!N30 -> 0.5555555556 | P115: ='RE Index | Historical Results'!O30 -> 0.3358 | Q115: ='RE Index | Historical Results'!P30 -> 0.6970216715 | R115: ='RE Index | Historical Results'!Q30 -> 0.3649427022 | S115: ='RE Index | Historical Results'!R30 -> 1.419087955 | T115: ='RE Index | Historical Results'!S30 -> 5 | U115: ='RE Index | Historical Results'!T30 -> 5 | V115: ='RE Index | Historical Results'!U30 -> 1.361583835 | W115: ='RE Index | Historical Results'!V30 -> 1.70970266 | X115: ='RE Index | Historical Results'!W30 -> 0.1078660903 | Y115: ='RE Index | Historical Results'!X30 -> 0 | Z115: ='RE Index | Historical Results'!Y30 -> 1.298743428 | AA115: ='RE Index | Historical Results'!Z30 -> 0.04585897436 | AB115: ='RE Index | Historical Results'!AA30 -> 4.030217663 | AC115: ='RE Index | Historical Results'!AB30 -> 2.067821642 | AD115: ='RE Index | Historical Results'!AC30 -> 0.7646225486 | AE115: ='RE Index | Historical Results'!AD30 -> 0 | AF115: ='RE Index | Historical Results'!AE30 -> 0 | AG115: ='RE Index | Historical Results'!AF30 -> 3.06006367 | AH115: ='RE Index | Historical Results'!AG30 -> 0.8109933831 | AI115: ='RE Index | Historical Results'!AH30 -> 1.755983378 | AJ115: ='RE Index | Historical Results'!AI30 -> 0.5568987556 | AK115: ='RE Index | Historical Results'!AJ30 -> 0.5555555556 | AL115: ='RE Index | Historical Results'!AK30 -> 1.126450021 | AM115: =INDIRECT(AM$4&"!E107") -> 0
D116: 2019 Score | E116: 0 to 5 | H116: =H34 -> 0 | I116: =I34 -> 1.641108553 | J116: 0 | K116: 2.053739611 | L116: 2.280497793 | M116: 1.111111111 | N116: 1.111111111 | O116: 0 | P116: 0.5555555556 | Q116: 0 | R116: 0 | S116: 1.144292929 | T116: 2.434515336 | U116: 0 | V116: 0 | W116: 1.702072872 | X116: 0 | Y116: 0 | Z116: 1.29915967 | AA116: 0 | AB116: 1.903174603 | AC116: 1.111111111 | AD116: 1.111111111 | AE116: 0 | AF116: 0 | AG116: 0 | AH116: 0 | AI116: 0 | AJ116: 0 | AK116: 0.5555555556 | AL116: 1.164295528 | AM116: 0
D117: Electric Mobility | E117: Change | G117: =G42 -> 0.09
D118: 2018 Score | E118: 0 to 5 | H118: ='RE Index | Historical Results'!G33 -> 0 | I118: ='RE Index | Historical Results'!H33 -> 0 | J118: ='RE Index | Historical Results'!I33 -> 0 | K118: ='RE Index | Historical Results'!J33 -> 0 | L118: ='RE Index | Historical Results'!K33 -> 2.5 | M118: ='RE Index | Historical Results'!L33 -> 0 | N118: ='RE Index | Historical Results'!M33 -> 0 | O118: ='RE Index | Historical Results'!N33 -> 0 | P118: ='RE Index | Historical Results'!O33 -> 0 | Q118: ='RE Index | Historical Results'!P33 -> 5 | R118: ='RE Index | Historical Results'!Q33 -> 0 | S118: ='RE Index | Historical Results'!R33 -> 0 | T118: ='RE Index | Historical Results'!S33 -> 2.5 | U118: ='RE Index | Historical Results'!T33 -> 0 | V118: ='RE Index | Historical Results'!U33 -> 0 | W118: ='RE Index | Historical Results'!V33 -> 5 | X118: ='RE Index | Historical Results'!W33 -> 0 | Y118: ='RE Index | Historical Results'!X33 -> 0 | Z118: ='RE Index | Historical Results'!Y33 -> 2.5 | AA118: ='RE Index | Historical Results'!Z33 -> 0 | AB118: ='RE Index | Historical Results'!AA33 -> 0 | AC118: ='RE Index | Historical Results'!AB33 -> 0 | AD118: ='RE Index | Historical Results'!AC33 -> 0 | AE118: ='RE Index | Historical Results'!AD33 -> 0 | AF118: ='RE Index | Historical Results'!AE33 -> 0 | AG118: ='RE Index | Historical Results'!AF33 -> 2.5 | AH118: ='RE Index | Historical Results'!AG33 -> 0 | AI118: ='RE Index | Historical Results'!AH33 -> 0 | AJ118: ='RE Index | Historical Results'!AI33 -> 0 | AK118: ='RE Index | Historical Results'!AJ33 -> 0 | AL118: ='RE Index | Historical Results'!AK33 -> 0 | AM118: =INDIRECT(AM$4&"!E109") -> 0
D119: 2019 Score | E119: 0 to 5 | H119: =H42 -> 0 | I119: =I42 -> 0 | J119: 0 | K119: 2.5 | L119: 2.5 | M119: 0 | N119: 0 | O119: 0 | P119: 0 | Q119: 5 | R119: 0 | S119: 2.5 | T119: 2.5 | U119: 0 | V119: 0 | W119: 5 | X119: 0 | Y119: 0 | Z119: 5 | AA119: 0 | AB119: 2.5 | AC119: 0 | AD119: 0 | AE119: 0 | AF119: 0 | AG119: 2.5 | AH119: 0 | AI119: 0 | AJ119: 0 | AK119: 2.5 | AL119: 0 | AM119: 0
D120: Covid Response | G120: 0.01
D121: 2019 Score | E121: 0 to 5 | H121: ='RE Index | Historical Results'!G36 -> 0 | I121: ='RE Index | Historical Results'!H36 -> 5 | J121: ='RE Index | Historical Results'!I36 -> 0 | K121: ='RE Index | Historical Results'!J36 -> 5 | L121: ='RE Index | Historical Results'!K36 -> 5 | M121: ='RE Index | Historical Results'!L36 -> 0 | N121: ='RE Index | Historical Results'!M36 -> 5 | O121: ='RE Index | Historical Results'!N36 -> 0 | P121: ='RE Index | Historical Results'!O36 -> 5 | Q121: ='RE Index | Historical Results'!P36 -> 0 | R121: ='RE Index | Historical Results'!Q36 -> 0 | S121: ='RE Index | Historical Results'!R36 -> 5 | T121: ='RE Index | Historical Results'!S36 -> 0 | U121: ='RE Index | Historical Results'!T36 -> 0 | V121: ='RE Index | Historical Results'!U36 -> 5 | W121: ='RE Index | Historical Results'!V36 -> 5 | X121: ='RE Index | Historical Results'!W36 -> 0 | Y121: ='RE Index | Historical Results'!X36 -> 0 | Z121: ='RE Index | Historical Results'!Y36 -> 5 | AA121: ='RE Index | Historical Results'!Z36 -> 0 | AB121: ='RE Index | Historical Results'!AA36 -> 0 | AC121: ='RE Index | Historical Results'!AB36 -> 0 | AD121: ='RE Index | Historical Results'!AC36 -> 0 | AE121: ='RE Index | Historical Results'!AD36 -> 0 | AF121: ='RE Index | Historical Results'!AE36 -> 0 | AG121: ='RE Index | Historical Results'!AF36 -> 0 | AH121: ='RE Index | Historical Results'!AG36 -> 0 | AI121: ='RE Index | Historical Results'!AH36 -> 0 | AJ121: ='RE Index | Historical Results'!AI36 -> 0 | AK121: ='RE Index | Historical Results'!AJ36 -> 0 | AL121: ='RE Index | Historical Results'!AK36 -> 0 | AM121: ='RE Index | Historical Results'!AL36 -> 0
D122: Overall Score Year-on-Year | H122: =H137-H136 -> -31 | I122: ='RE Index | Historical Results'!H37 -> 0.396808298 | J122: ='RE Index | Historical Results'!I37 -> -0.00595959596 | K122: ='RE Index | Historical Results'!J37 -> 0.8344429109 | L122: ='RE Index | Historical Results'!K37 -> 0.6680226645 | M122: ='RE Index | Historical Results'!L37 -> -0.003106269578 | N122: ='RE Index | Historical Results'!M37 -> -0.4099842454 | O122: ='RE Index | Historical Results'!N37 -> -1.462831439 | P122: ='RE Index | Historical Results'!O37 -> 1.165926667 | Q122: ='RE Index | Historical Results'!P37 -> -1.263904262 | R122: ='RE Index | Historical Results'!Q37 -> -0.1095960428 | S122: ='RE Index | Historical Results'!R37 -> -0.2755782981 | T122: ='RE Index | Historical Results'!S37 -> -0.351227254 | U122: ='RE Index | Historical Results'!T37 -> -0.8604405166 | V122: ='RE Index | Historical Results'!U37 -> -0.7110564055 | W122: ='RE Index | Historical Results'!V37 -> -0.107895071 | X122: ='RE Index | Historical Results'!W37 -> -0.03235982708 | Y122: ='RE Index | Historical Results'!X37 -> 0.4436630734 | Z122: ='RE Index | Historical Results'!Y37 -> 0.6944953463 | AA122: ='RE Index | Historical Results'!Z37 -> -0.01375769231 | AB122: ='RE Index | Historical Results'!AA37 -> 0.2246549393 | AC122: ='RE Index | Historical Results'!AB37 -> -0.3863830855 | AD122: ='RE Index | Historical Results'!AC37 -> 1.078946569 | AE122: ='RE Index | Historical Results'!AD37 -> 0 | AF122: ='RE Index | Historical Results'!AE37 -> 0 | AG122: ='RE Index | Historical Results'!AF37 -> -0.8440089459 | AH122: ='RE Index | Historical Results'!AG37 -> -0.349881687 | AI122: ='RE Index | Historical Results'!AH37 -> -0.6158575133 | AJ122: ='RE Index | Historical Results'!AI37 -> -0.8531494289 | AK122: ='RE Index | Historical Results'!AJ37 -> 0.6796875 | AL122: ='RE Index | Historical Results'!AK37 -> 0.2307286521 | AM122: =INDIRECT(AM$4&"!E110") -> 0
D123: 2012 Overall Score | H123: ='RE Index | Historical Results'!G38 -> 0.8591 | I123: =INDIRECT(I$4&"!E111") -> 0 | J123: 0 | K123: 0 | L123: 0 | M123: 0 | N123: 0 | O123: 0 | P123: 0 | Q123: 0 | R123: 0 | S123: 0 | T123: 0 | U123: 0 | V123: 0 | W123: 0 | X123: 0 | Y123: 0 | Z123: 0 | AA123: 0 | AB123: 0 | AC123: 0 | AD123: 0 | AE123: 0 | AF123: 0 | AG123: 0 | AH123: 0 | AI123: 0 | AJ123: 0 | AK123: 0 | AL123: 0 | AM123: =INDIRECT(AM$4&"!E111") -> 0
D124: 2012 Rank | H124: ='RE Index | Historical Results'!G39 -> 13 | I124: =INDIRECT(I$4&"!E112") -> 0 | J124: 0 | K124: 0 | L124: 0 | M124: 0 | N124: 0 | O124: 0 | P124: 0 | Q124: 0 | R124: 0 | S124: 0 | T124: 0 | U124: 0 | V124: 0 | W124: 0 | X124: 0 | Y124: 0 | Z124: 0 | AA124: 0 | AB124: 0 | AC124: 0 | AD124: 0 | AE124: 0 | AF124: 0 | AG124: 0 | AH124: 0 | AI124: 0 | AJ124: 0 | AK124: 0 | AL124: 0 | AM124: =INDIRECT(AM$4&"!E112") -> 0
D125: 2013 Overall Score | H125: ='RE Index | Historical Results'!G40 -> 0.799048174 | I125: =INDIRECT(I$4&"!E113") -> 0 | J125: 0 | K125: 0 | L125: 0 | M125: 0 | N125: 0 | O125: 0 | P125: 0 | Q125: 0 | R125: 0 | S125: 0 | T125: 0 | U125: 0 | V125: 0 | W125: 0 | X125: 0 | Y125: 0 | Z125: 0 | AA125: 0 | AB125: 0 | AC125: 0 | AD125: 0 | AE125: 0 | AF125: 0 | AG125: 0 | AH125: 0 | AI125: 0 | AJ125: 0 | AK125: 0 | AL125: 0 | AM125: =INDIRECT(AM$4&"!E113") -> 0
D126: 2013 Rank | H126: ='RE Index | Historical Results'!G41 -> 21 | I126: =INDIRECT(I$4&"!E114") -> 0 | J126: 0 | K126: 0 | L126: 0 | M126: 0 | N126: 0 | O126: 0 | P126: 0 | Q126: 0 | R126: 0 | S126: 0 | T126: 0 | U126: 0 | V126: 0 | W126: 0 | X126: 0 | Y126: 0 | Z126: 0 | AA126: 0 | AB126: 0 | AC126: 0 | AD126: 0 | AE126: 0 | AF126: 0 | AG126: 0 | AH126: 0 | AI126: 0 | AJ126: 0 | AK126: 0 | AL126: 0 | AM126: =INDIRECT(AM$4&"!E114") -> 0
D127: 2014 Overall Score | H127: ='RE Index | Historical Results'!G42 -> 0.8645436555 | I127: =INDIRECT(I$4&"!E115") -> 0 | J127: 0 | K127: 0 | L127: 0 | M127: 0 | N127: 0 | O127: 0 | P127: 0 | Q127: 0 | R127: 0 | S127: 0 | T127: 0 | U127: 0 | V127: 0 | W127: 0 | X127: 0 | Y127: 0 | Z127: 0 | AA127: 0 | AB127: 0 | AC127: 0 | AD127: 0 | AE127: 0 | AF127: 0 | AG127: 0 | AH127: 0 | AI127: 0 | AJ127: 0 | AK127: 0 | AL127: 0 | AM127: =INDIRECT(AM$4&"!E115") -> 0
D128: 2014 Rank | H128: ='RE Index | Historical Results'!G43 -> 18 | I128: =INDIRECT(I$4&"!E116") -> 0 | J128: 0 | K128: 0 | L128: 0 | M128: 0 | N128: 0 | O128: 0 | P128: 0 | Q128: 0 | R128: 0 | S128: 0 | T128: 0 | U128: 0 | V128: 0 | W128: 0 | X128: 0 | Y128: 0 | Z128: 0 | AA128: 0 | AB128: 0 | AC128: 0 | AD128: 0 | AE128: 0 | AF128: 0 | AG128: 0 | AH128: 0 | AI128: 0 | AJ128: 0 | AK128: 0 | AL128: 0 | AM128: =INDIRECT(AM$4&"!E116") -> 0
D129: 2015 Overall Score | H129: ='RE Index | Historical Results'!G44 -> 0.8820209676 | I129: =INDIRECT(I$4&"!E117") -> 0 | J129: 0 | K129: 0 | L129: 0 | M129: 0 | N129: 0 | O129: 0 | P129: 0 | Q129: 0 | R129: 0 | S129: 0 | T129: 0 | U129: 0 | V129: 0 | W129: 0 | X129: 0 | Y129: 0 | Z129: 0 | AA129: 0 | AB129: 0 | AC129: 0 | AD129: 0 | AE129: 0 | AF129: 0 | AG129: 0 | AH129: 0 | AI129: 0 | AJ129: 0 | AK129: 0 | AL129: 0 | AM129: =INDIRECT(AM$4&"!E117") -> 0
D130: 2015 Rank | H130: ='RE Index | Historical Results'!G45 -> 19 | I130: =INDIRECT(I$4&"!E118") -> 0 | J130: 0 | K130: 0 | L130: 0 | M130: 0 | N130: 0 | O130: 0 | P130: 0 | Q130: 0 | R130: 0 | S130: 0 | T130: 0 | U130: 0 | V130: 0 | W130: 0 | X130: 0 | Y130: 0 | Z130: 0 | AA130: 0 | AB130: 0 | AC130: 0 | AD130: 0 | AE130: 0 | AF130: 0 | AG130: 0 | AH130: 0 | AI130: 0 | AJ130: 0 | AK130: 0 | AL130: 0 | AM130: =INDIRECT(AM$4&"!E118") -> 0
D131: 2016 Overall Score | H131: ='RE Index | Historical Results'!G46 -> 0.4444444444 | I131: =INDIRECT(I$4&"!E119") -> 0 | J131: 0 | K131: 0 | L131: 0 | M131: 0 | N131: 0 | O131: 0 | P131: 0 | Q131: 0 | R131: 0 | S131: 0 | T131: 0 | U131: 0 | V131: 0 | W131: 0 | X131: 0 | Y131: 0 | Z131: 0 | AA131: 0 | AB131: 0 | AC131: 0 | AD131: 0 | AE131: 0 | AF131: 0 | AG131: 0 | AH131: 0 | AI131: 0 | AJ131: 0 | AK131: 0 | AL131: 0 | AM131: =INDIRECT(AM$4&"!E119") -> 0
D132: 2016 Rank | H132: ='RE Index | Historical Results'!G47 -> 25 | I132: =INDIRECT(I$4&"!E120") -> 0 | J132: 0 | K132: 0 | L132: 0 | M132: 0 | N132: 0 | O132: 0 | P132: 0 | Q132: 0 | R132: 0 | S132: 0 | T132: 0 | U132: 0 | V132: 0 | W132: 0 | X132: 0 | Y132: 0 | Z132: 0 | AA132: 0 | AB132: 0 | AC132: 0 | AD132: 0 | AE132: 0 | AF132: 0 | AG132: 0 | AH132: 0 | AI132: 0 | AJ132: 0 | AK132: 0 | AL132: 0 | AM132: =INDIRECT(AM$4&"!E120") -> 0
D133: 2017 Overall Score | H133: ='RE Index | Historical Results'!G48 -> 0.6683333333 | I133: =INDIRECT(I$4&"!E121") -> 0 | J133: 0 | K133: 0 | L133: 0 | M133: 0 | N133: 0 | O133: 0 | P133: 0 | Q133: 0 | R133: 0 | S133: 0 | T133: 0 | U133: 0 | V133: 0 | W133: 0 | X133: 0 | Y133: 0 | Z133: 0 | AA133: 0 | AB133: 0 | AC133: 0 | AD133: 0 | AE133: 0 | AF133: 0 | AG133: 0 | AH133: 0 | AI133: 0 | AJ133: 0 | AK133: 0 | AL133: 0 | AM133: =INDIRECT(AM$4&"!E121") -> 0
D134: 2017 Rank | H134: ='RE Index | Historical Results'!G49 -> 25 | I134: =INDIRECT(I$4&"!E122") -> 0 | J134: 0 | K134: 0 | L134: 0 | M134: 0 | N134: 0 | O134: 0 | P134: 0 | Q134: 0 | R134: 0 | S134: 0 | T134: 0 | U134: 0 | V134: 0 | W134: 0 | X134: 0 | Y134: 0 | Z134: 0 | AA134: 0 | AB134: 0 | AC134: 0 | AD134: 0 | AE134: 0 | AF134: 0 | AG134: 0 | AH134: 0 | AI134: 0 | AJ134: 0 | AK134: 0 | AL134: 0 | AM134: =INDIRECT(AM$4&"!E122") -> 0
D135: 2018 Overall Score | H135: ='RE Index | Historical Results'!G50 -> 0 | I135: ='RE Index | Historical Results'!H50 -> 1.343992424 | J135: ='RE Index | Historical Results'!I50 -> 0.2287208081 | K135: ='RE Index | Historical Results'!J50 -> 1.031678972 | L135: ='RE Index | Historical Results'!K50 -> 1.407370503 | M135: ='RE Index | Historical Results'!L50 -> 1.657955967 | N135: ='RE Index | Historical Results'!M50 -> 2.217965098 | O135: ='RE Index | Historical Results'!N50 -> 2.127604167 | P135: ='RE Index | Historical Results'!O50 -> 0.10074 | Q135: ='RE Index | Historical Results'!P50 -> 2.113488529 | R135: ='RE Index | Historical Results'!Q50 -> 0.1157180608 | S135: ='RE Index | Historical Results'!R50 -> 2.243866177 | T135: ='RE Index | Historical Results'!S50 -> 3.1309375 | U135: ='RE Index | Historical Results'!T50 -> 2.5509375 | V135: ='RE Index | Historical Results'!U50 -> 1.333295212 | W135: ='RE Index | Historical Results'!V50 -> 2.76126027 | X135: ='RE Index | Historical Results'!W50 -> 0.1793156505 | Y135: ='RE Index | Historical Results'!X50 -> 0.4393724731 | Z135: ='RE Index | Historical Results'!Y50 -> 1.855560529 | AA135: ='RE Index | Historical Results'!Z50 -> 0.1187576923 | AB135: ='RE Index | Historical Results'!AA50 -> 1.255940299 | AC135: ='RE Index | Historical Results'!AB50 -> 1.694243778 | AD135: ='RE Index | Historical Results'!AC50 -> 0.2593867646 | AE135: ='RE Index | Historical Results'!AD50 -> 0 | AF135: ='RE Index | Historical Results'!AE50 -> 0 | AG135: ='RE Index | Historical Results'!AF50 -> 1.47304471 | AH135: ='RE Index | Historical Results'!AG50 -> 0.5451730149 | AI135: ='RE Index | Historical Results'!AH50 -> 1.009711799 | AJ135: ='RE Index | Historical Results'!AI50 -> 1.709088558 | AK135: ='RE Index | Historical Results'!AJ50 -> 0.2369791667 | AL135: ='RE Index | Historical Results'!AK50 -> 0.8685600063 | AM135: ='RE Index | Historical Results'!AL50 -> 0.6640255285
D136: 2018 Rank | H136: ='RE Index | Historical Results'!G51 -> 31 | I136: ='RE Index | Historical Results'!H51 -> 14 | J136: ='RE Index | Historical Results'!I51 -> 25 | K136: ='RE Index | Historical Results'!J51 -> 17 | L136: ='RE Index | Historical Results'!K51 -> 13 | M136: ='RE Index | Historical Results'!L51 -> 11 | N136: ='RE Index | Historical Results'!M51 -> 5 | O136: ='RE Index | Historical Results'!N51 -> 6 | P136: ='RE Index | Historical Results'!O51 -> 29 | Q136: ='RE Index | Historical Results'!P51 -> 7 | R136: ='RE Index | Historical Results'!Q51 -> 28 | S136: ='RE Index | Historical Results'!R51 -> 4 | T136: ='RE Index | Historical Results'!S51 -> 1 | U136: ='RE Index | Historical Results'!T51 -> 3 | V136: ='RE Index | Historical Results'!U51 -> 15 | W136: ='RE Index | Historical Results'!V51 -> 2 | X136: ='RE Index | Historical Results'!W51 -> 26 | Y136: ='RE Index | Historical Results'!X51 -> 22 | Z136: ='RE Index | Historical Results'!Y51 -> 8 | AA136: ='RE Index | Historical Results'!Z51 -> 27 | AB136: ='RE Index | Historical Results'!AA51 -> 16 | AC136: ='RE Index | Historical Results'!AB51 -> 10 | AD136: ='RE Index | Historical Results'!AC51 -> 23 | AE136: ='RE Index | Historical Results'!AD51 -> 31 | AF136: ='RE Index | Historical Results'!AE51 -> 31 | AG136: ='RE Index | Historical Results'!AF51 -> 12 | AH136: ='RE Index | Historical Results'!AG51 -> 21 | AI136: ='RE Index | Historical Results'!AH51 -> 18 | AJ136: ='RE Index | Historical Results'!AI51 -> 9 | AK136: ='RE Index | Historical Results'!AJ51 -> 24 | AL136: ='RE Index | Historical Results'!AK51 -> 19 | AM136: ='RE Index | Historical Results'!AL51 -> 20
D137: 2019 Overall Score | H137: =H6 -> 0 | I137: 1.740800722 | J137: 0.2227612121 | K137: 1.866121883 | L137: 2.075393168 | M137: 1.654849697 | N137: 1.807980852 | O137: 0.6647727273 | P137: 1.266666667 | Q137: 0.8495842664 | R137: 0.006122017983 | S137: 1.968287879 | T137: 2.779710246 | U137: 1.690496983 | V137: 0.6222388062 | W137: 2.653365199 | X137: 0.1469558234 | Y137: 0.8830355465 | Z137: 2.550055875 | AA137: 0.105 | AB137: 1.480595238 | AC137: 1.307860693 | AD137: 1.338333333 | AE137: 0 | AF137: 0 | AG137: 0.6290357638 | AH137: 0.1952913279 | AI137: 0.3938542857 | AJ137: 0.8559391291 | AK137: 0.9166666667 | AL137: 1.099288658 | AM137: 0.209454
D138: 2019 Rank | H138: =_xlfn.RANK.AVG(H137,$H$137:$AM$137,0) -> 31 | I138: =_xlfn.RANK.AVG(I137,$H$137:$AM$137,0) -> 8 | J138: 24 | K138: 6 | L138: 4 | M138: 10 | N138: 7 | O138: 20 | P138: 14 | Q138: 19 | R138: 29 | S138: 5 | T138: =_xlfn.RANK.AVG(T137,$H$137:$AM$137,0) -> 1 | U138: 9 | V138: 22 | W138: 2 | X138: 27 | Y138: 17 | Z138: 3 | AA138: 28 | AB138: 11 | AC138: 13 | AD138: 12 | AE138: 31 | AF138: 31 | AG138: 21 | AH138: 26 | AI138: 23 | AJ138: 18 | AK138: 16 | AL138: 15 | AM138: 25
D139: Rank change 2018 to 2019 | H139: =H138-H136 -> 0 | I139: =I138-I136 -> -6 | J139: =J138-J136 -> -1 | K139: -11 | L139: -9 | M139: -1 | N139: 2 | O139: 14 | P139: -15 | Q139: 12 | R139: 1 | S139: 1 | T139: 0 | U139: 6 | V139: 7 | W139: 0 | X139: 1 | Y139: -5 | Z139: -5 | AA139: 1 | AB139: -5 | AC139: 3 | AD139: -11 | AE139: 0 | AF139: 0 | AG139: 9 | AH139: 5 | AI139: 5 | AJ139: 9 | AK139: -8 | AL139: -4 | AM139: 5

Sheet RE Index | Results Summary
A2: Component 1 | B2: Enabling environment for renewable energy (RE) investments
A3: Component 2 | B3: Existing renewable generation
A4: Component 3 | B4: Planned renewable generation
A5: Component 4 | B5: Electric mobility
A6: Component 5 | B6: COVID
B9: Overall score
B10: Overall Score | D10: Enabling environment for RE investments | G10: Existing renewable generation | J10: Planned renewable generation | M10: Electric Mobility | P10: COVID Response
A11: Weights | B11: =SUM(D11:P11) -> 1 | C11: Rank | D11: ='RE Index | Ranking inputs'!G8 -> 0.3 | F11: Rank | G11: ='RE Index | Ranking inputs'!G26 -> 0.3 | I11: Rank | J11: ='RE Index | Ranking inputs'!F34 -> 0.3 | L11: Rank | M11: ='RE Index | Ranking inputs'!G42 -> 0.09 | O11: Rank | P11: ='RE Index | Ranking inputs'!G46 -> 0.01 | R11: Rank
A12: Dominica | B12: =IFERROR(HLOOKUP(A12,'RE Index | Ranking inputs'!$H$5:$AM$7,2,FALSE),0) -> 2.779710246 | C12: =RANK( B12, $B$12:$B$28) -> 1 | D12: =IF(ISNUMBER(E12),E12*$D$11,"") -> 1.5 | E12: =HLOOKUP(A12,'RE Index | Ranking inputs'!$H$5:$AM$8,4,FALSE) -> 5 | F12: =RANK(E12,$E$12:$E$28) -> 1 | G12: =IF(ISNUMBER(H12),H12*$G$11,"") -> 0.3243556452 | H12: =IFERROR(HLOOKUP(A12,'RE Index | Ranking inputs'!$H$5:$AM$26,22,FALSE),0) -> 1.081185484 | I12: =RANK(H12,$H$12:$H$28) -> 4 | J12: =IF(ISNUMBER(K12),K12*$J$11,"") -> 0.7303546008 | K12: =HLOOKUP(A12,'RE Index | Ranking inputs'!$H$5:$AM$34,30,FALSE) -> 2.434515336 | L12: =RANK(K12,$K$12:$K$28) -> 1 | M12: =IF(ISNUMBER(N12),N12*$M$11,"") -> 0.225 | N12: =HLOOKUP(A12,'RE Index | Ranking inputs'!$H$5:$AM$42,38,FALSE) -> 2.5 | O12: =RANK(N12,$N$12:$N$28) -> 3 | P12: =IF(ISNUMBER(Q12),Q12*$P$11,"") -> 0 | Q12: =HLOOKUP(A12,'RE Index | Ranking inputs'!$H$5:$AM$46,42,FALSE) -> 0 | R12: =RANK(Q12,$Q$12:Q28) -> 10
A13: Guadeloupe | B13: =IFERROR(HLOOKUP(A13,'RE Index | Ranking inputs'!$H$5:$AM$7,2,FALSE),0) -> 2.653365199 | C13: 2 | D13: 1.3125 | E13: =HLOOKUP(A13,'RE Index | Ranking inputs'!$H$5:$AM$8,4,FALSE) -> 4.375 | F13: =RANK( E13, $E$12:$E$28) -> 3 | G13: 0.3302433372 | H13: =IFERROR(HLOOKUP(A13,'RE Index | Ranking inputs'!$H$5:$AM$26,22,FALSE),0) -> 1.100811124 | I13: 3 | J13: 0.5106218617 | K13: =HLOOKUP(A13,'RE Index | Ranking inputs'!$H$5:$AM$34,30,FALSE) -> 1.702072872 | L13: 5 | M13: 0.45 | N13: =HLOOKUP(A13,'RE Index | Ranking inputs'!$H$5:$AM$42,38,FALSE) -> 5 | O13: 1 | P13: 0.05 | Q13: =HLOOKUP(A13,'RE Index | Ranking inputs'!$H$5:$AM$46,42,FALSE) -> 5 | R13: =RANK(Q13,$Q$12:Q29) -> 1
A14: Jamaica | B14: =IFERROR(HLOOKUP(A14,'RE Index | Ranking inputs'!$H$5:$AM$7,2,FALSE),0) -> 2.550055875 | C14: 3 | D14: 1.5 | E14: =HLOOKUP(A14,'RE Index | Ranking inputs'!$H$5:$AM$8,4,FALSE) -> 5 | F14: 1 | G14: 0.1603079739 | H14: =IFERROR(HLOOKUP(A14,'RE Index | Ranking inputs'!$H$5:$AM$26,22,FALSE),0) -> 0.534359913 | I14: 7 | J14: 0.389747901 | K14: =HLOOKUP(A14,'RE Index | Ranking inputs'!$H$5:$AM$34,30,FALSE) -> 1.29915967 | L14: 7 | M14: 0.45 | N14: =HLOOKUP(A14,'RE Index | Ranking inputs'!$H$5:$AM$42,38,FALSE) -> 5 | O14: 1 | P14: 0.05 | Q14: =HLOOKUP(A14,'RE Index | Ranking inputs'!$H$5:$AM$46,42,FALSE) -> 5 | R14: =RANK(Q14,$Q$12:Q30) -> 1
A15: Barbados | B15: =IFERROR(HLOOKUP(A15,'RE Index | Ranking inputs'!$H$5:$AM$7,2,FALSE),0) -> 2.075393168 | C15: 4 | D15: 1.0875 | E15: =HLOOKUP(A15,'RE Index | Ranking inputs'!$H$5:$AM$8,4,FALSE) -> 3.625 | F15: 6 | G15: 0.02874382989 | H15: =IFERROR(HLOOKUP(A15,'RE Index | Ranking inputs'!$H$5:$AM$26,22,FALSE),0) -> 0.09581276628 | I15: 12 | J15: 0.6841493378 | K15: =HLOOKUP(A15,'RE Index | Ranking inputs'!$H$5:$AM$34,30,FALSE) -> 2.280497793 | L15: 2 | M15: 0.225 | N15: =HLOOKUP(A15,'RE Index | Ranking inputs'!$H$5:$AM$42,38,FALSE) -> 2.5 | O15: 3 | P15: 0.05 | Q15: =HLOOKUP(A15,'RE Index | Ranking inputs'!$H$5:$AM$46,42,FALSE) -> 5 | R15: =RANK(Q15,$Q$12:Q31) -> 1
A16: Curaҫao | B16: =IFERROR(HLOOKUP(A16,'RE Index | Ranking inputs'!$H$5:$AM$7,2,FALSE),0) -> 1.968287879 | C16: 5 | D16: 0.975 | E16: =HLOOKUP(A16,'RE Index | Ranking inputs'!$H$5:$AM$8,4,FALSE) -> 3.25 | F16: 9 | G16: 0.375 | H16: =IFERROR(HLOOKUP(A16,'RE Index | Ranking inputs'!$H$5:$AM$26,22,FALSE),0) -> 1.25 | I16: 1 | J16: 0.3432878788 | K16: =HLOOKUP(A16,'RE Index | Ranking inputs'!$H$5:$AM$34,30,FALSE) -> 1.144292929 | L16: 9 | M16: 0.225 | N16: =HLOOKUP(A16,'RE Index | Ranking inputs'!$H$5:$AM$42,38,FALSE) -> 2.5 | O16: 3 | P16: 0.05 | Q16: =HLOOKUP(A16,'RE Index | Ranking inputs'!$H$5:$AM$46,42,FALSE) -> 5 | R16: =RANK(Q16,$Q$12:Q32) -> 1
A17: The Bahamas | B17: =IFERROR(HLOOKUP(A17,'RE Index | Ranking inputs'!$H$5:$AM$7,2,FALSE),0) -> 1.866121883 | C17: 6 | D17: 0.975 | E17: =HLOOKUP(A17,'RE Index | Ranking inputs'!$H$5:$AM$8,4,FALSE) -> 3.25 | F17: 9 | G17: 0 | H17: =IFERROR(HLOOKUP(A17,'RE Index | Ranking inputs'!$H$5:$AM$26,22,FALSE),0) -> 0 | I17: 14 | J17: 0.6161218832 | K17: =HLOOKUP(A17,'RE Index | Ranking inputs'!$H$5:$AM$34,30,FALSE) -> 2.053739611 | L17: 3 | M17: 0.225 | N17: =HLOOKUP(A17,'RE Index | Ranking inputs'!$H$5:$AM$42,38,FALSE) -> 2.5 | O17: 3 | P17: 0.05 | Q17: =HLOOKUP(A17,'RE Index | Ranking inputs'!$H$5:$AM$46,42,FALSE) -> 5 | R17: =RANK(Q17,$Q$12:Q33) -> 1
A18: Belize | B18: =IFERROR(HLOOKUP(A18,'RE Index | Ranking inputs'!$H$5:$AM$7,2,FALSE),0) -> 1.807980852 | C18: 7 | D18: 1.05 | E18: =HLOOKUP(A18,'RE Index | Ranking inputs'!$H$5:$AM$8,4,FALSE) -> 3.5 | F18: 7 | G18: 0.374647519 | H18: =IFERROR(HLOOKUP(A18,'RE Index | Ranking inputs'!$H$5:$AM$26,22,FALSE),0) -> 1.248825063 | I18: 2 | J18: 0.3333333333 | K18: =HLOOKUP(A18,'RE Index | Ranking inputs'!$H$5:$AM$34,30,FALSE) -> 1.111111111 | L18: 10 | M18: 0 | N18: =HLOOKUP(A18,'RE Index | Ranking inputs'!$H$5:$AM$42,38,FALSE) -> 0 | O18: 9 | P18: 0.05 | Q18: =HLOOKUP(A18,'RE Index | Ranking inputs'!$H$5:$AM$46,42,FALSE) -> 5 | R18: =RANK(Q18,$Q$12:Q34) -> 1
A19: Antigua & Barbuda | B19: =IFERROR(HLOOKUP(A19,'RE Index | Ranking inputs'!$H$5:$AM$7,2,FALSE),0) -> 1.740800722 | C19: 8 | D19: 1.1625 | E19: =HLOOKUP(A19,'RE Index | Ranking inputs'!$H$5:$AM$8,4,FALSE) -> 3.875 | F19: 5 | G19: 0.03596815619 | H19: =IFERROR(HLOOKUP(A19,'RE Index | Ranking inputs'!$H$5:$AM$26,22,FALSE),0) -> 0.119893854 | I19: 10 | J19: 0.492332566 | K19: =HLOOKUP(A19,'RE Index | Ranking inputs'!$H$5:$AM$34,30,FALSE) -> 1.641108553 | L19: 6 | M19: 0 | N19: =HLOOKUP(A19,'RE Index | Ranking inputs'!$H$5:$AM$42,38,FALSE) -> 0 | O19: 9 | P19: 0.05 | Q19: =HLOOKUP(A19,'RE Index | Ranking inputs'!$H$5:$AM$46,42,FALSE) -> 5 | R19: =RANK(Q19,$Q$12:Q35) -> 1
A20: Bermuda | B20: =IFERROR(HLOOKUP(A20,'RE Index | Ranking inputs'!$H$5:$AM$7,2,FALSE),0) -> 1.654849697 | C20: 9 | D20: 1.2375 | E20: =HLOOKUP(A20,'RE Index | Ranking inputs'!$H$5:$AM$8,4,FALSE) -> 4.125 | F20: 4 | G20: 0.08401636364 | H20: =IFERROR(HLOOKUP(A20,'RE Index | Ranking inputs'!$H$5:$AM$26,22,FALSE),0) -> 0.2800545455 | I20: 8 | J20: 0.3333333333 | K20: =HLOOKUP(A20,'RE Index | Ranking inputs'!$H$5:$AM$34,30,FALSE) -> 1.111111111 | L20: 10 | M20: 0 | N20: =HLOOKUP(A20,'RE Index | Ranking inputs'!$H$5:$AM$42,38,FALSE) -> 0 | O20: 9 | P20: 0 | Q20: =HLOOKUP(A20,'RE Index | Ranking inputs'!$H$5:$AM$46,42,FALSE) -> 0 | R20: =RANK(Q20,$Q$12:Q36) -> 10
A21: Montserrat | B21: =IFERROR(HLOOKUP(A21,'RE Index | Ranking inputs'!$H$5:$AM$7,2,FALSE),0) -> 1.480595238 | C21: 10 | D21: 0.6375 | E21: =HLOOKUP(A21,'RE Index | Ranking inputs'!$H$5:$AM$8,4,FALSE) -> 2.125 | F21: 14 | G21: 0.04714285714 | H21: =IFERROR(HLOOKUP(A21,'RE Index | Ranking inputs'!$H$5:$AM$26,22,FALSE),0) -> 0.1571428571 | I21: 9 | J21: 0.570952381 | K21: =HLOOKUP(A21,'RE Index | Ranking inputs'!$H$5:$AM$34,30,FALSE) -> 1.903174603 | L21: 4 | M21: 0.225 | N21: =HLOOKUP(A21,'RE Index | Ranking inputs'!$H$5:$AM$42,38,FALSE) -> 2.5 | O21: 3 | P21: 0 | Q21: =HLOOKUP(A21,'RE Index | Ranking inputs'!$H$5:$AM$46,42,FALSE) -> 0 | R21: =RANK(Q21,$Q$12:Q37) -> 10
A22: Puerto Rico | B22: =IFERROR(HLOOKUP(A22,'RE Index | Ranking inputs'!$H$5:$AM$7,2,FALSE),0) -> 1.338333333 | C22: 11 | D22: 0.975 | E22: =HLOOKUP(A22,'RE Index | Ranking inputs'!$H$5:$AM$8,4,FALSE) -> 3.25 | F22: 9 | G22: 0.03 | H22: =IFERROR(HLOOKUP(A22,'RE Index | Ranking inputs'!$H$5:$AM$26,22,FALSE),0) -> 0.1 | I22: 11 | J22: 0.3333333333 | K22: =HLOOKUP(A22,'RE Index | Ranking inputs'!$H$5:$AM$34,30,FALSE) -> 1.111111111 | L22: 10 | M22: 0 | N22: =HLOOKUP(A22,'RE Index | Ranking inputs'!$H$5:$AM$42,38,FALSE) -> 0 | O22: 9 | P22: 0 | Q22: =HLOOKUP(A22,'RE Index | Ranking inputs'!$H$5:$AM$46,42,FALSE) -> 0 | R22: =RANK(Q22,$Q$12:Q38) -> 10
A23: Nevis | B23: =IFERROR(HLOOKUP(A23,'RE Index | Ranking inputs'!$H$5:$AM$7,2,FALSE),0) -> 1.307860693 | C23: 12 | D23: 0.75 | E23: =HLOOKUP(A23,'RE Index | Ranking inputs'!$H$5:$AM$8,4,FALSE) -> 2.5 | F23: 12 | G23: 0.2245273592 | H23: =IFERROR(HLOOKUP(A23,'RE Index | Ranking inputs'!$H$5:$AM$26,22,FALSE),0) -> 0.7484245307 | I23: 6 | J23: 0.3333333333 | K23: =HLOOKUP(A23,'RE Index | Ranking inputs'!$H$5:$AM$34,30,FALSE) -> 1.111111111 | L23: 10 | M23: 0 | N23: =HLOOKUP(A23,'RE Index | Ranking inputs'!$H$5:$AM$42,38,FALSE) -> 0 | O23: 9 | P23: 0 | Q23: =HLOOKUP(A23,'RE Index | Ranking inputs'!$H$5:$AM$46,42,FALSE) -> 0 | R23: =RANK(Q23,$Q$12:Q39) -> 10
A24: British Virgin Islands | B24: =IFERROR(HLOOKUP(A24,'RE Index | Ranking inputs'!$H$5:$AM$7,2,FALSE),0) -> 1.266666667 | C24: 13 | D24: 1.05 | E24: =HLOOKUP(A24,'RE Index | Ranking inputs'!$H$5:$AM$8,4,FALSE) -> 3.5 | F24: 7 | G24: 0 | H24: =IFERROR(HLOOKUP(A24,'RE Index | Ranking inputs'!$H$5:$AM$26,22,FALSE),0) -> 0 | I24: 14 | J24: 0.1666666667 | K24: =HLOOKUP(A24,'RE Index | Ranking inputs'!$H$5:$AM$34,30,FALSE) -> 0.5555555556 | L24: 14 | M24: 0 | N24: =HLOOKUP(A24,'RE Index | Ranking inputs'!$H$5:$AM$42,38,FALSE) -> 0 | O24: 9 | P24: 0.05 | Q24: =HLOOKUP(A24,'RE Index | Ranking inputs'!$H$5:$AM$46,42,FALSE) -> 5 | R24: =RANK(Q24,$Q$12:Q40) -> 1
A25: Turks and Caicos Islands | B25: =IFERROR(HLOOKUP(A25,'RE Index | Ranking inputs'!$H$5:$AM$7,2,FALSE),0) -> 1.099288658 | C25: 14 | D25: 0.75 | E25: =HLOOKUP(A25,'RE Index | Ranking inputs'!$H$5:$AM$8,4,FALSE) -> 2.5 | F25: 12 | G25: 0 | H25: =IFERROR(HLOOKUP(A25,'RE Index | Ranking inputs'!$H$5:$AM$26,22,FALSE),0) -> 0 | I25: 14 | J25: 0.3492886584 | K25: =HLOOKUP(A25,'RE Index | Ranking inputs'!$H$5:$AM$34,30,FALSE) -> 1.164295528 | L25: 8 | M25: 0 | N25: =HLOOKUP(A25,'RE Index | Ranking inputs'!$H$5:$AM$42,38,FALSE) -> 0 | O25: 9 | P25: 0 | Q25: =HLOOKUP(A25,'RE Index | Ranking inputs'!$H$5:$AM$46,42,FALSE) -> 0 | R25: =RANK(Q25,$Q$12:Q41) -> 10
A26: Trinidad and Tobago | B26: =IFERROR(HLOOKUP(A26,'RE Index | Ranking inputs'!$H$5:$AM$7,2,FALSE),0) -> 0.9166666667 | C26: 15 | D26: 0.525 | E26: =HLOOKUP(A26,'RE Index | Ranking inputs'!$H$5:$AM$8,4,FALSE) -> 1.75 | F26: 17 | G26: 0 | H26: =IFERROR(HLOOKUP(A26,'RE Index | Ranking inputs'!$H$5:$AM$26,22,FALSE),0) -> 0 | I26: 14 | J26: 0.1666666667 | K26: =HLOOKUP(A26,'RE Index | Ranking inputs'!$H$5:$AM$34,30,FALSE) -> 0.5555555556 | L26: 14 | M26: 0.225 | N26: =HLOOKUP(A26,'RE Index | Ranking inputs'!$H$5:$AM$42,38,FALSE) -> 2.5 | O26: 3 | P26: 0 | Q26: =HLOOKUP(A26,'RE Index | Ranking inputs'!$H$5:$AM$46,42,FALSE) -> 0 | R26: =RANK(Q26,$Q$12:Q42) -> 10
A27: Haiti | B27: =IFERROR(HLOOKUP(A27,'RE Index | Ranking inputs'!$H$5:$AM$7,2,FALSE),0) -> 0.8830355465 | C27: 16 | D27: 0.6 | E27: =HLOOKUP(A27,'RE Index | Ranking inputs'!$H$5:$AM$8,4,FALSE) -> 2 | F27: 15 | G27: 0.2830355465 | H27: =IFERROR(HLOOKUP(A27,'RE Index | Ranking inputs'!$H$5:$AM$26,22,FALSE),0) -> 0.9434518216 | I27: 5 | J27: 0 | K27: =HLOOKUP(A27,'RE Index | Ranking inputs'!$H$5:$AM$34,30,FALSE) -> 0 | L27: 16 | M27: 0 | N27: =HLOOKUP(A27,'RE Index | Ranking inputs'!$H$5:$AM$42,38,FALSE) -> 0 | O27: 9 | P27: 0 | Q27: =HLOOKUP(A27,'RE Index | Ranking inputs'!$H$5:$AM$46,42,FALSE) -> 0 | R27: =RANK(Q27,$Q$12:Q43) -> 10
A28: Grenada | B28: =IFERROR(HLOOKUP(A28,'RE Index | Ranking inputs'!$H$5:$AM$7,2,FALSE),0) -> 0.6222388062 | C28: 17 | D28: 0.5625 | E28: =HLOOKUP(A28,'RE Index | Ranking inputs'!$H$5:$AM$8,4,FALSE) -> 1.875 | F28: 16 | G28: 0.009738806166 | H28: =IFERROR(HLOOKUP(A28,'RE Index | Ranking inputs'!$H$5:$AM$26,22,FALSE),0) -> 0.03246268722 | I28: 13 | J28: 0 | K28: =HLOOKUP(A28,'RE Index | Ranking inputs'!$H$5:$AM$34,30,FALSE) -> 0 | L28: 16 | M28: 0 | N28: =HLOOKUP(A28,'RE Index | Ranking inputs'!$H$5:$AM$42,38,FALSE) -> 0 | O28: 9 | P28: 0.05 | Q28: =HLOOKUP(A28,'RE Index | Ranking inputs'!$H$5:$AM$46,42,FALSE) -> 5 | R28: =RANK(Q28,$Q$12:Q44) -> 1
A31: =A12 -> Dominica
A32: =A13 -> Guadeloupe
A33: Jamaica
A34: Barbados
A35: Curaҫao
A36: The Bahamas
A37: Belize
A38: Antigua & Barbuda
A39: Bermuda
A40: Montserrat
A41: Puerto Rico
A42: Nevis
A43: British Virgin Islands
A44: Turks & Caicos
A45: Trinidad & Tobago
A46: Haiti
A47: =A28 -> Grenada
AC50: Legal & Regulatory Framework
AC51: Strategic plan for RE
AC52: Specific target for RE
AC53: IRP within the last 3 years
AC54: ≥ 6 months to secure O-T-A
AC55: # of Utility Scale RE Projects
AC56: Capacity (KW)
AC57: Investment (M USD)

Sheet 2020 Developments
B2: Project Name | C2: Jurisdiction | D2: Technology | E2: Status Change in 2020 | F2: Capacity (MW) | G2: Expected COD (year) | H2: Notes | I2: Source
B3: Grid Interactive Solar PV Systems for Schools and Clinics (GISS) | C3: Antigua and Barbuda | D3: Solar PV | E3: Became operational | F3: Unknown | G3: 2020 | H3: The Ottos Comprehensive Secondary is one of eighteen school recipients to commission their Solar PV System as part of a US $825,000 grant funded project to equip schools and clinics around the country with Solar PV systems. | I3: https://www.environment.gov.ag/news-events#news/article/90
B4: Green Barbuda | C4: Antigua and Barbuda | D4: Solar/Storage/Diesel | E4: Construction started | F4: 800kW diesel power plant; 720kWh hybrid solar power plant; 863kWh battery system | G4: 2020 | H4: Funded by the UAE-Caribbean Renewable Energy Fund | I4: https://www.energyglobal.com/other-renewables/02102020/construction-begins-on-clean-energy-power-plant-in-antigua-and-barbuda/
B5: Vaucluse WTE plant | C5: Barbados | D5: Waste-to-Energy/Biomass | E5: New project (in planning) | F5: 25 | G5: Unknown | H5: Government announced plan to build a $320 million, 25 megawatt waste-to-energy plant at Vaucluse, St Thomas | I5: https://www.stabroeknews.com/2020/07/26/news/regional/barbados/waste-to-energy-plant-on-the-way-in-barbados/
B6: Anegada Hybrid Renewable Energy and Battery Storage System | C6: British Virgin Islands | D6: Solar PV + BESS | E6: New project (in planning) | F6: 2.1MW PV; 930kW/3, 720kWh | G6: 2021 | H6: 5 companies have submitted bids; includes Micro-Grid Master Controller which will control the PV, Battery Storage System (BESS) and a backup diesel generator which is currently the sole source of electricity for Anegada. | I6: http://www.virginislandsnewsonline.com/en/news/5-companies-bid-for-anegada-hybrid-renewable-energy-project
B7: Ciro Redondo Biomass Sugar Mill Plant | C7: Cuba | D7: Biomass | E7: Became operational | F7: 60 | G7: 2020 | H7: $180 million from an association between the British company Havana Energy and the Cuban company Zerus | I7: https://www.powermag.com/cubas-first-biomass-fired-power-plant-inaugurated/
B8: Los Guzmancito Wind Park | C8: Dominican Republic | D8: Wind | E8: Became operational | F8: 48 | G8: 2019 | H8: Subsequent phases expected to bring it to a total of 100MW | I8: https://www.evwind.com/2019/12/25/energia-eolica-en-rd-puesta-en-marcha-del-parque-eolico-los-guzmancito/
B9: Canoa Solar Park | C9: Dominican Republic | D9: Solar PV | E9: Became operational | F9: 25 | G9: 2020 | H9: Investment of US$45 million; plans to increase capacity to 50MW | I9: https://revistaconstruir.com/inauguran-parque-solar-canoa-republica-dominicana/
B10: Bayahonda Solar Park | C10: Dominican Republic | D10: Solar PV | E10: New project (in planning) | F10: 50 | G10: Unknown | H10: Concession approved, construction approved. Local company Parque Eolico Beata SRL will invest roughly USD 60 million | I10: https://renewablesnow.com/news/dominican-republic-okays-100-mw-of-renewable-energy-projects-702783/
B11: San Pedro de Macoris WTE | C11: Dominican Republic | D11: Waste-to-Energy | E11: New project (in planning) | F11: 50 | G11: Unknown | H11: Concession approved, construction approved. Streamline Integrated Energy Corp (SIE) is the company behind the development. | I11: https://renewablesnow.com/news/dominican-republic-okays-100-mw-of-renewable-energy-projects-702783/
B12: Jasper Wind Farm | C12: Dominican Republic | D12: Wind | E12: New project (in planning) | F12: 50 | G12: Unknown | H12: Investment of approximately US $ 107.3 MM | I12: https://www.evwind.es/2019/12/26/wind-energy-advances-in-dominican-republic/72758
B13: Girasol Solar Park | C13: Dominican Republic | D13: Solar PV | E13: New project (in planning) | F13: 120 | G13: Unknown | H13: Will be largest solar park in the country. Spanish infrastructure, energy and telecommunications group Elecnor has been awarded the turnkey construction for the Haina Electricity Generating Company (EGE Haina) | I13: https://www.archyde.com/elecnor-will-build-a-120-mw-solar-park-in-the-dominican-republic/
B14: CARICOM Headquarters Solar Project | C14: Guyana | D14: Solar PV | E14: New project (in planning) | F14: 0.4 | G14: 2020 | H14: Financed by JICA; CARICOM Secretariat expected to meet close to all its energy needs through solar | I14: https://www.stabroeknews.com/2020/01/21/news/guyana/caricom-secretariat-should-be-running-on-solar-power-by-september/
B15: Couva Solar Power Project | C15: Trinidad and Tobago | D15: Solar PV | E15: New project (in planning) | F15: 92 | G15: Unknown | H15: Government recently secured two bidders through a competitive procurement process; power generated is expected to be delivered to the grid; Lightsource BP, Shell Trinidad and Tobago Limited and BP Alternative Energy Trinidad and Tobago Limited proposal was accepted (as consortium) | I15: https://www.loopcayman.com/content/imbert-tt-solar-project-will-be-largest-caribbean-0
B16: Trincity Solar Power Project | C16: Trinidad and Tobago | D16: Solar PV | E16: New project (in planning) | F16: 20 | G16: Unknown | H16: Government recently secured two bidders through a competitive procurement process; power generated is expected to be delivered to the grid; Lightsource BP, Shell Trinidad and Tobago Limited and BP Alternative Energy Trinidad and Tobago Limited proposal was accepted (as consortium) | I16: https://www.guardian.co.tt/business/major-projects-to-provide-cleaner-electricity-6.2.1143486.f1baf778a6
B17: Lightsource BP/Shell Solar PV | C17: Trinidad and Tobago | D17: Solar PV | E17: New project (in planning) | F17: 150 | G17: Unknown | H17: Government recently signed agreement with Lightsource BP and Shell; expected to increase RE generation capacity to 10% of country's total power generation capacity | I17: https://www.looptt.com/content/khan-bp-renewables-push-tt-still-comfortable-short-term / https://www.guardian.co.tt/business/major-projects-to-provide-cleaner-electricity-6.2.1143486.f1baf778a6
B18: Piarco Airport Solar Park | C18: Trinidad and Tobago | D18: Solar PV | E18: New project (in planning) | F18: Minimum annual generation capacity of 1,445MWh | G18: 2021 | H18: Expected to provide a minimum annual generation capacity of 1,443,830 kWh; feasibility study conducted by Airport Authority, the International Civil Aviation Organization (ICAO) and European Union; | I18: https://trinidadexpress.com/business/local/solar-park-coming-soon-to-piarco-airport/article_55c9250c-b03b-11ea-96fb-a7b7bec688f7.html
B19: Ritz Carlton Solar PV | C19: Turks and Caicos Islands | D19: Solar PV | E19: New project (in planning) | F19: 0.2 | G19: 2021 | H19: Ritz Carlton signed on to participate in the government's Utility Owned Renewable Energy (UORE) Programme; 210.6kW rooftop solar PV system will be installed on casino and restaurant rooftop; will generate 310MWh annually; resort currently under construction and set to open in 2021 | I19: https://tcweeklynews.com/ritzcarlton-partners-with-fortistci-for-sustainable-energy-p10764-107.htm

Sheet RE Index | Historical Results
C3: Improvement Year-on-Year | G3: ='RE Index | Ranking inputs'!H5 -> Anguilla | H3: ='RE Index | Ranking inputs'!I5 -> Antigua & Barbuda | I3: ='RE Index | Ranking inputs'!J5 -> Aruba | J3: ='RE Index | Ranking inputs'!K5 -> The Bahamas | K3: ='RE Index | Ranking inputs'!L5 -> Barbados | L3: ='RE Index | Ranking inputs'!M5 -> Bermuda | M3: ='RE Index | Ranking inputs'!N5 -> Belize | N3: ='RE Index | Ranking inputs'!O5 -> Bonaire | O3: ='RE Index | Ranking inputs'!P5 -> British Virgin Islands | P3: ='RE Index | Ranking inputs'!Q5 -> Cayman Islands | Q3: ='RE Index | Ranking inputs'!R5 -> Cuba | R3: ='RE Index | Ranking inputs'!S5 -> Curaҫao | S3: ='RE Index | Ranking inputs'!T5 -> Dominica | T3: ='RE Index | Ranking inputs'!U5 -> Dominican Republic | U3: ='RE Index | Ranking inputs'!V5 -> Grenada | V3: ='RE Index | Ranking inputs'!W5 -> Guadeloupe | W3: ='RE Index | Ranking inputs'!X5 -> Guyana | X3: ='RE Index | Ranking inputs'!Y5 -> Haiti | Y3: ='RE Index | Ranking inputs'!Z5 -> Jamaica | Z3: ='RE Index | Ranking inputs'!AA5 -> Martinique | AA3: ='RE Index | Ranking inputs'!AB5 -> Montserrat | AB3: ='RE Index | Ranking inputs'!AC5 -> Nevis | AC3: ='RE Index | Ranking inputs'!AD5 -> Puerto Rico | AD3: ='RE Index | Ranking inputs'!AE5 -> Saint-Martin | AE3: ='RE Index | Ranking inputs'!AF5 -> Sint Maarten | AF3: ='RE Index | Ranking inputs'!AG5 -> St. Lucia | AG3: ='RE Index | Ranking inputs'!AH5 -> St. Vincent and the Grenadines | AH3: ='RE Index | Ranking inputs'!AI5 -> St. Kitts | AI3: ='RE Index | Ranking inputs'!AJ5 -> Suriname | AJ3: ='RE Index | Ranking inputs'!AK5 -> Trinidad and Tobago | AK3: Turks and Caicos Islands | AL3: U.S. Virgin Islands
F4: =SUM(F5,F14,F23,F32,F35) -> 1
C5: Enabling Environment for RE Investments | D5: Change from previous year | F5: 0.3 | G5: =IF(ISERR(G13-G12),"",G13-G12) -> 0 | H5: =IF(ISERR(H13-H12),"",H13-H12) -> -0.5 | I5: 0 | J5: 0.46875 | K5: 0.5 | L5: -0.5625 | M5: 0.140625 | N5: -3.828125 | O5: 3.5 | P5: -3.359375 | Q5: 0 | R5: -1.4375 | S5: 1.796875 | T5: -1.453125 | U5: -1.171875 | V5: -0.390625 | W5: 0 | X5: 1.34375 | Y5: 1.546875 | Z5: 0 | AA5: 1.96875 | AB5: -0.3125 | AC5: 3.25 | AD5: 0 | AE5: 0 | AF5: 0.859375 | AG5: 0.46875 | AH5: -0.296875 | AI5: -2.34375 | AJ5: 1.515625 | AK5: 0.78125 | AL5: -1.421875
C6: 2012 Score | D6: 0 to 5 | G6: 2.333333333 | H6: 1.666666667 | I6: 2 | J6: 1 | K6: 3.166666667 | L6: 2.333333333 | M6: 2.333333333 | N6: 0 | O6: 1 | P6: 3.33 | Q6: 0 | R6: NA | S6: 2.833333333 | T6: 2.333333333 | U6: 2.333333333 | V6: NA | W6: 0 | X6: 0 | Y6: 3.666666667 | Z6: 3 | AA6: 1.67 | AB6: 2.333333333 | AC6: 0 | AD6: 0 | AE6: 0 | AF6: 2.33 | AG6: 3 | AH6: 1.67 | AI6: 0 | AJ6: 2.33 | AK6: 2 | AL6: NA
C7: 2013 Score | D7: 0 to 5 | G7: 2.333333333 | H7: 1.666666667 | I7: 2 | J7: 1 | K7: 3.166666667 | L7: 3 | M7: 2.333333333 | N7: 2 | O7: 1 | P7: 3.33 | Q7: 0 | R7: 3 | S7: 2.833333333 | T7: 2.333333333 | U7: 2.333333333 | V7: 4 | W7: 1.666666667 | X7: 1.666666667 | Y7: 3.666666667 | Z7: 4 | AA7: 1.666666667 | AB7: 2.333333333 | AC7: 3.333333333 | AD7: 0 | AE7: 0 | AF7: 2.333333333 | AG7: 3 | AH7: 1.666666667 | AI7: 0 | AJ7: 2.333333333 | AK7: 2 | AL7: NA
C8: 2014 Score | D8: 0 to 5 | G8: 2.333333333 | H8: 2 | I8: 4 | J8: 1 | K8: 3.833333333 | L8: 3 | M8: 3 | N8: 2 | O8: 1 | P8: 3.33 | Q8: 0 | R8: 4 | S8: 2.833333333 | T8: 2.333333333 | U8: 2.333333333 | V8: 4.333333333 | W8: 1.666666667 | X8: 1.666666667 | Y8: 3.666666667 | Z8: 4.333333333 | AA8: 1.666666667 | AB8: 2.666666667 | AC8: 2 | AD8: 0 | AE8: 0 | AF8: 2.333333333 | AG8: 3 | AH8: 2.666666667 | AI8: 0 | AJ8: 2.333333333 | AK8: 2 | AL8: 2
C9: 2015 Score | D9: 0 to 5 | G9: 2.333333333 | H9: 2 | I9: 4 | J9: 1.333333333 | K9: 3.833333333 | L9: 3 | M9: 3.333333333 | N9: 2 | O9: 2 | P9: 3.33 | Q9: 1 | R9: 4 | S9: 2.833333333 | T9: 2.333333333 | U9: 2.666666667 | V9: 4.333333333 | W9: 1.666666667 | X9: 1.666666667 | Y9: 3.666666667 | Z9: 4.333333333 | AA9: 1.666666667 | AB9: 2.666666667 | AC9: 2 | AD9: 0 | AE9: 0 | AF9: 2.333333333 | AG9: 3 | AH9: 2.666666667 | AI9: 0 | AJ9: 3 | AK9: 2 | AL9: 2
C10: 2016 Score | D10: 0 to 5 | G10: 1.333333333 | H10: 3.666666667 | I10: 2.666666667 | J10: 4.333333333 | K10: 2.666666667 | L10: 4.333333333 | M10: 2.666666667 | N10: 2.666666667 | O10: 1.333333333 | P10: 4.33 | Q10: 0 | R10: 5 | S10: 5 | T10: 4.333333333 | U10: 5 | V10: 5 | W10: 3.666666667 | X10: 3.666666667 | Y10: 4.333333333 | Z10: 5 | AA10: 0 | AB10: 5 | AC10: 3.666666667 | AD10: 0 | AE10: 0 | AF10: 1.333333333 | AG10: 4.333333333 | AH10: 1.333333333 | AI10: 0 | AJ10: 1.333333333 | AK10: 1.333333333 | AL10: 3.666666667
C11: 2017 Score | D11: 0 to 5 | G11: 1.875 | H11: 4.0625 | I11: 3.645833333 | J11: 3.958333333 | K11: 3.333333333 | L11: 3.333333333 | M11: 3.125 | N11: 4.583333333 | O11: 4.375 | P11: 4.69 | Q11: 0 | R11: 5 | S11: 3.4375 | T11: 4.583333333 | U11: 1.875 | V11: 3.958333333 | W11: 0 | X11: 0 | Y11: 3.333333333 | Z11: 3.333333333 | AA11: 0 | AB11: 3.958333333 | AC11: 2.8125 | AD11: 0 | AE11: 0 | AF11: 3.125 | AG11: 3.75 | AH11: 1.666666667 | AI11: 2.5 | AJ11: 1.5625 | AK11: 2.708333333 | AL11: 5
C12: 2018 Score | D12: 0 to 5 | G12: 0 | H12: 4.375 | I12: 0 | J12: 2.78125 | K12: 3.125 | L12: 4.6875 | M12: 3.359375 | N12: 4.453125 | O12: 0 | P12: 4.609375 | Q12: 0 | R12: 4.6875 | S12: 3.203125 | T12: 2.703125 | U12: 3.046875 | V12: 4.765625 | W12: 0 | X12: 0.65625 | Y12: 3.453125 | Z12: 0 | AA12: 0.15625 | AB12: 2.8125 | AC12: 0 | AD12: 0 | AE12: 0 | AF12: 0.390625 | AG12: 0.15625 | AH12: 1.546875 | AI12: 2.96875 | AJ12: 0.234375 | AK12: 1.71875 | AL12: 2.046875
C13: 2019 Score | D13: 0 to 5 | G13: ='RE Index | Ranking inputs'!H8 -> 0 | H13: ='RE Index | Ranking inputs'!I8 -> 3.875 | I13: ='RE Index | Ranking inputs'!J8 -> 0 | J13: ='RE Index | Ranking inputs'!K8 -> 3.25 | K13: ='RE Index | Ranking inputs'!L8 -> 3.625 | L13: ='RE Index | Ranking inputs'!M8 -> 4.125 | M13: ='RE Index | Ranking inputs'!N8 -> 3.5 | N13: ='RE Index | Ranking inputs'!O8 -> 0.625 | O13: ='RE Index | Ranking inputs'!P8 -> 3.5 | P13: ='RE Index | Ranking inputs'!Q8 -> 1.25 | Q13: ='RE Index | Ranking inputs'!R8 -> 0 | R13: ='RE Index | Ranking inputs'!S8 -> 3.25 | S13: ='RE Index | Ranking inputs'!T8 -> 5 | T13: ='RE Index | Ranking inputs'!U8 -> 1.25 | U13: ='RE Index | Ranking inputs'!V8 -> 1.875 | V13: ='RE Index | Ranking inputs'!W8 -> 4.375 | W13: ='RE Index | Ranking inputs'!X8 -> 0 | X13: ='RE Index | Ranking inputs'!Y8 -> 2 | Y13: ='RE Index | Ranking inputs'!Z8 -> 5 | Z13: ='RE Index | Ranking inputs'!AA8 -> 0 | AA13: ='RE Index | Ranking inputs'!AB8 -> 2.125 | AB13: ='RE Index | Ranking inputs'!AC8 -> 2.5 | AC13: ='RE Index | Ranking inputs'!AD8 -> 3.25 | AD13: ='RE Index | Ranking inputs'!AE8 -> 0 | AE13: ='RE Index | Ranking inputs'!AF8 -> 0 | AF13: ='RE Index | Ranking inputs'!AG8 -> 1.25 | AG13: ='RE Index | Ranking inputs'!AH8 -> 0.625 | AH13: ='RE Index | Ranking inputs'!AI8 -> 1.25 | AI13: ='RE Index | Ranking inputs'!AJ8 -> 0.625 | AJ13: ='RE Index | Ranking inputs'!AK8 -> 1.75 | AK13: ='RE Index | Ranking inputs'!AL8 -> 2.5 | AL13: ='RE Index | Ranking inputs'!AM8 -> 0.625
C14: Existing Renewable Generation | D14: Change from previous year | F14: 0.3 | G14: =IF(ISERR(G22-G21),"",G22-G21) -> 0 | H14: =IF(ISERR(H22-H21),"",H22-H21) -> 0.06989385397 | I14: =IF(ISERR(I22-I21),"",I22-I21) -> 0 | J14: =IF(ISERR(J22-J21),"",J22-J21) -> 0 | K14: 0.005567950375 | L14: 0.02937988389 | M14: -1.461068724 | N14: -0.4924242424 | O14: 0 | P14: 0.01004913015 | Q14: -0.0003774405555 | R14: -0.1229659679 | S14: -0.318814516 | T14: 3.584989945 | U14: -0.00339585037 | V14: 0.03860455122 | W14: 0 | X14: 0.1351269114 | Y14: -0.06564008702 | Z14: 0 | AA14: 0.1571428571 | AB14: -0.01873308712 | AC14: 0 | AD14: 0 | AE14: 0 | AF14: -0.5293411494 | AG14: -0.824028907 | AH14: 0 | AI14: 0.05681732597 | AJ14: 0 | AK14: -0.05 | AL14: -0.04097931136
C15: 2012 Score | D15: 0 to 5 | G15: 0.01 | H15: 0 | I15: 0.5 | J15: 0 | K15: 0 | L15: 0.01 | M15: 2.6 | N15: 0 | O15: 0 | P15: 0 | Q15: 0 | R15: NA | S15: 2.2 | T15: 0.43 | U15: 0.1 | V15: NA | W15: 0 | X15: 0 | Y15: 0.27 | Z15: 0.15 | AA15: 0 | AB15: 0.95 | AC15: 0 | AD15: 0 | AE15: 0 | AF15: 0.01 | AG15: 1.22 | AH15: 0 | AI15: 0 | AJ15: 0 | AK15: 0 | AL15: NA
C16: 2013 Score | D16: 0 to 5 | G16: 0 | H16: 0 | I16: 0.6554299569 | J16: 0.01051051893 | K16: 0.00988006576 | L16: 0 | M16: 2.658894418 | N16: 1.390777168 | O16: 0 | P16: 0.001555465944 | Q16: 0.03596293251 | R16: 0.612413512 | S16: 1.593331003 | T16: 0.6335559935 | U16: 0.01066908992 | V16: 0.6886440599 | W16: 0.04754977029 | X16: 0.04754977029 | Y16: 0.2846569842 | Z16: 0.1446690714 | AA16: 0 | AB16: 0.3018652141 | AC16: 0.1009084384 | AD16: 0.04058643617 | AE16: 0 | AF16: 0.0006848916215 | AG16: 1.0240374 | AH16: 0 | AI16: 2.441962025 | AJ16: 3.596190915e-06 | AK16: 0 | AL16: NA
C17: 2014 Score | D17: 0 to 5 | G17: 0.08468643436 | H17: 0.006991575 | I17: 0.8362480417 | J17: 0.01420321463 | K17: 0.04232329106 | L17: 0.1170702895 | M17: 3.190331642 | N17: 1.493199951 | O17: 0.190859376 | P17: 0.0143266175 | Q17: 0.04066345946 | R17: 0.6896652316 | S17: 1.350176791 | T17: 0.7824621563 | U17: 0.04032443739 | V17: 0.8213333824 | W17: 0.4655531864 | X17: 0.4655531864 | Y17: 0.3849808088 | Z17: 0.3373700133 | AA17: 0 | AB17: 0.5305854359 | AC17: 0.1054455938 | AD17: 0.07977320816 | AE17: 0.019109375 | AF17: 0.000946962734 | AG17: 1.108045438 | AH17: 0.109487662 | AI17: 2.738240638 | AJ17: 2.521046512e-05 | AK17: 0.001136822341 | AL17: 0.1923122518
C18: 2015 Score | D18: 0 to 5 | G18: 0.06781581416 | H18: 0.00560459684 | I18: 0.7529445502 | J18: 0.01264142634 | K18: 0.03586244048 | L18: 0.1056815347 | M18: 2.870719008 | N18: 1.343377796 | O18: 0.1530347888 | P18: 0.01293696345 | Q18: 0.03648660562 | R18: 0.6196484204 | S18: 1.208726916 | T18: 0.7031745937 | U18: 0.03421611041 | V18: 0.7146451333 | W18: 0.4189978678 | X18: 0.4189978678 | Y18: 0.3457923359 | Z18: 0.2822986606 | AA18: 0 | AB18: 0.4775268923 | AC18: 0.09314444542 | AD18: 0.07123589306 | AE18: 0.01531438172 | AF18: 0.0008107116041 | AG18: 0.9962195666 | AH18: 0.0981776052 | AI18: 2.464416574 | AJ18: 4.797015465e-05 | AK18: 0.001023140107 | AL18: 0.1679561366
C19: 2016 Score | D19: 0 to 5 | G19: 0 | H19: 0 | I19: 0.7725378735 | J19: 0 | K19: 0.191726859 | L19: 0.2397277725 | M19: 3.926362109 | N19: 1.675580276 | O19: 0.1534304706 | P19: 0.05364936481 | Q19: 0 | R19: 0 | S19: 1.091680013 | T19: 0.8596655588 | U19: 0.0540998187 | V19: 1.646875764 | W19: 0 | X19: 0 | Y19: 0.5000994119 | Z19: 0.26614456 | AA19: 0 | AB19: 0 | AC19: 0.2146890974 | AD19: 0.07398103341 | AE19: 0.01531245757 | AF19: 0 | AG19: 0 | AH19: 0.08749830154 | AI19: 2.466911511 | AJ19: 0 | AK19: 0 | AL19: 0.2260880772
C20: 2017 Score | D20: 0 to 5 | G20: 0.13 | H20: 0.3104274611 | I20: 0.1070797576 | J20: 0 | K20: 0.3438046329 | L20: 0.4734986343 | M20: 2.544071655 | N20: 2.108333333 | O20: 0.25 | P20: 0.3147324906 | Q20: 0 | R20: 1.238743507 | S20: 2.690328526 | T20: 0.5727039157 | U20: 0.2636306222 | V20: 0.9046449638 | W20: 0.15625 | X20: 0.15625 | Y20: 0.798214628 | Z20: 0.798214628 | AA20: 0 | AB20: 0.9020839751 | AC20: 0.1988446651 | AD20: 0 | AE20: 0 | AF20: 0.3381481481 | AG20: 2.206587395 | AH20: 0.317014 | AI20: 2.58622296 | AJ20: 0.25 | AK20: 0.25 | AL20: 0.3020354147
C21: 2018 Score | D21: 0 to 5 | G21: 0 | H21: 0.05 | I21: 0.7425373737 | J21: 0 | K21: 0.09024481591 | L21: 0.2506746616 | M21: 2.709893787 | N21: 2.083333333 | O21: 0 | P21: 0.07189842435 | Q21: 0.02078416717 | R21: 1.372965968 | S21: 1.4 | T21: 0.8 | U21: 0.03585853759 | V21: 1.062206573 | W21: 0.4898527448 | X21: 0.8083249102 | Y21: 0.6 | Z21: 0.35 | AA21: 0 | AB21: 0.7671576178 | AC21: 0.1 | AD21: 0 | AE21: 0 | AF21: 0.6261270287 | AG21: 0.85 | AH21: 0.06284761905 | AI21: 2.171313104 | AJ21: 0 | AK21: 0.05 | AL21: 0.1141593114
C22: 2019 Score | D22: 0 to 5 | G22: ='RE Index | Ranking inputs'!H26 -> 0 | H22: ='RE Index | Ranking inputs'!I26 -> 0.119893854 | I22: ='RE Index | Ranking inputs'!J26 -> 0.7425373737 | J22: ='RE Index | Ranking inputs'!K26 -> 0 | K22: ='RE Index | Ranking inputs'!L26 -> 0.09581276628 | L22: ='RE Index | Ranking inputs'!M26 -> 0.2800545455 | M22: ='RE Index | Ranking inputs'!N26 -> 1.248825063 | N22: ='RE Index | Ranking inputs'!O26 -> 1.590909091 | O22: ='RE Index | Ranking inputs'!P26 -> 0 | P22: ='RE Index | Ranking inputs'!Q26 -> 0.08194755451 | Q22: ='RE Index | Ranking inputs'!R26 -> 0.02040672661 | R22: ='RE Index | Ranking inputs'!S26 -> 1.25 | S22: ='RE Index | Ranking inputs'!T26 -> 1.081185484 | T22: ='RE Index | Ranking inputs'!U26 -> 4.384989945 | U22: ='RE Index | Ranking inputs'!V26 -> 0.03246268722 | V22: ='RE Index | Ranking inputs'!W26 -> 1.100811124 | W22: ='RE Index | Ranking inputs'!X26 -> 0.4898527448 | X22: ='RE Index | Ranking inputs'!Y26 -> 0.9434518216 | Y22: ='RE Index | Ranking inputs'!Z26 -> 0.534359913 | Z22: ='RE Index | Ranking inputs'!AA26 -> 0.35 | AA22: ='RE Index | Ranking inputs'!AB26 -> 0.1571428571 | AB22: ='RE Index | Ranking inputs'!AC26 -> 0.7484245307 | AC22: ='RE Index | Ranking inputs'!AD26 -> 0.1 | AD22: ='RE Index | Ranking inputs'!AE26 -> 0 | AE22: ='RE Index | Ranking inputs'!AF26 -> 0 | AF22: ='RE Index | Ranking inputs'!AG26 -> 0.09678587922 | AG22: ='RE Index | Ranking inputs'!AH26 -> 0.02597109298 | AH22: ='RE Index | Ranking inputs'!AI26 -> 0.06284761905 | AI22: ='RE Index | Ranking inputs'!AJ26 -> 2.22813043 | AJ22: ='RE Index | Ranking inputs'!AK26 -> 0 | AK22: ='RE Index | Ranking inputs'!AL26 -> 0 | AL22: ='RE Index | Ranking inputs'!AM26 -> 0.07318
C23: Planned Renewable Generation | D23: Change from previous year | F23: 0.3 | G23: =IF(ISERR(G31-G30),"",G31-G30) -> 0 | H23: =IF(ISERR(H31-H30),"",H31-H30) -> 1.586133806 | I23: -0.01986531987 | J23: 1.396059703 | K23: 1.637840931 | L23: =IF(ISERR(L31-L30),"",L31-L30) -> 0.5227658842 | M23: -0.2128370937 | N23: -0.5555555556 | O23: 0.2197555556 | P23: -0.6970216715 | Q23: -0.3649427022 | R23: -0.2747950259 | S23: -2.565484664 | T23: -5 | U23: -1.361583835 | V23: -0.007629787998 | W23: -0.1078660903 | X23: 0 | Y23: 0.0004162414857 | Z23: -0.04585897436 | AA23: -2.12704306 | AB23: -0.9567105311 | AC23: 0.3464885625 | AD23: 0 | AE23: 0 | AF23: -3.06006367 | AG23: -0.8109933831 | AH23: -1.755983378 | AI23: -0.5568987556 | AJ23: 0 | AK23: 0.03784550713 | AL23: -0.05238411691
C24: 2012 Score | D24: 0 to 5 | G24: 0.26 | H24: 0 | I24: 0.05 | J24: 0.21 | K24: 0.6 | L24: 0 | M24: 0 | N24: 0 | O24: 0 | P24: 0.18 | Q24: 0 | R24: NA | S24: 3.7 | T24: 0.85 | U24: 3.2 | V24: NA | W24: 0 | X24: 0 | Y24: 0.06 | Z24: 0.86 | AA24: 4.5 | AB24: 0.5 | AC24: 0 | AD24: 0 | AE24: 0 | AF24: 1.01 | AG24: 0 | AH24: 0 | AI24: 0 | AJ24: 0 | AK24: 0 | AL24: NA
C25: 2013 Score | D25: 0 to 5 | G25: 0.06381118881 | H25: 0 | I25: 0.1007682081 | J25: 0.3017843708 | K25: 0.710305361 | L25: 0 | M25: 0.3619857205 | N25: 0 | O25: 0 | P25: 0.1745733265 | Q25: 0 | R25: 0.3025404878 | S25: 4.117443898 | T25: 0.8604201529 | U25: 2.938614592 | V25: 0.693075923 | W25: 4.005283308 | X25: 4.005283308 | Y25: 0.1941868386 | Z25: 0.8242409565 | AA25: 4.5 | AB25: 0 | AC25: 0.0607551059 | AD25: 0.0114975 | AE25: 0 | AF25: 0 | AG25: 0.7010121672 | AH25: 0.3069763099 | AI25: 0 | AJ25: 0 | AK25: 0 | AL25: NA
C26: 2014 Score | D26: 0 to 5 | G26: 0.1756111987 | H26: 0 | I26: 0.6533827084 | J26: 0.3406416772 | K26: 0.1456294066 | L26: 0 | M26: 0.3638523386 | N26: 0 | O26: 0 | P26: 0.17725907 | Q26: 0.08829374465 | R26: 0.4466621004 | S26: 4.12213097 | T26: 0.2865592685 | U26: 0.09944376565 | V26: 0 | W26: 0.3782666977 | X26: 0.3782666977 | Y26: 0.1870152964 | Z26: 0.6133406662 | AA26: 4.5 | AB26: 0.2300462134 | AC26: 0 | AD26: 0.01990937356 | AE26: 0 | AF26: 0.05532157086 | AG26: 0.04497173084 | AH26: 0 | AI26: 0.287647513 | AJ26: 0 | AK26: 0 | AL26: 0.4394004672
C27: 2015 Score | D27: 0 to 5 | G27: 0.2449137553 | H27: 0 | I27: 0.3064347123 | J27: 0.05150103796 | K27: 1.155325051 | L27: 2.031726637 | M27: 4.5 | N27: 0 | O27: 0 | P27: 0.2216694615 | Q27: 0.08997792322 | R27: 0.4427950597 | S27: 4.128332539 | T27: 0.326080521 | U27: 1.616708567 | V27: 0.03624874827 | W27: 0.3787559202 | X27: 0.3787559202 | Y27: 0.1537613453 | Z27: 0.6133429193 | AA27: 4.5 | AB27: 3.211660734 | AC27: 0.05952168121 | AD27: 0 | AE27: 0 | AF27: 0.05558259525 | AG27: 2.155990002 | AH27: 0 | AI27: 0 | AJ27: 0 | AK27: 0 | AL27: 0.1682406861
C28: 2016 Score | D28: 0 to 5 | G28: 0 | H28: 0 | I28: 0.06745677136 | J28: 0 | K28: 0 | L28: 0 | M28: 0.4341058603 | N28: 0 | O28: 0.3701962732 | P28: 0.1765317083 | Q28: 0.2217340116 | R28: 0 | S28: 4.076507688 | T28: 0.2973594116 | U28: 0 | V28: 0.2234949808 | W28: 0 | X28: 0 | Y28: 0.07183519146 | Z28: 0.807851233 | AA28: 0 | AB28: 0 | AC28: 0 | AD28: 0 | AE28: 0 | AF28: 0 | AG28: 0 | AH28: 0 | AI28: 0 | AJ28: 0 | AK28: 0 | AL28: 0
C29: 2017 Score | D29: 0 to 5 | G29: 0 | H29: 0.2383907345 | I29: 0 | J29: 0 | K29: 0.1761188811 | L29: 0.212194196 | M29: 0 | N29: 0 | O29: 0 | P29: 0.1971916821 | Q29: 0 | R29: 0.278511206 | S29: 2.112878466 | T29: 0.334669814 | U29: 2.044593333 | V29: 0.3305658883 | W29: 0 | X29: 0 | Y29: 0.1273165881 | Z29: 0.1273165881 | AA29: 0 | AB29: 4.061372609 | AC29: 0.07600318994 | AD29: 0 | AE29: 0 | AF29: 2.697128296 | AG29: 2.387758563 | AH29: 3.447936 | AI29: 0 | AJ29: 0.1 | AK29: 0.1368133836 | AL29: 0.2348546255
C30: 2018 Score | D30: 0 to 5 | G30: 0 | H30: 0.05497474747 | I30: 0.01986531987 | J30: 0.6576799079 | K30: 0.6426568616 | L30: 0.5883452269 | M30: 1.323948205 | N30: 0.5555555556 | O30: 0.3358 | P30: 0.6970216715 | Q30: 0.3649427022 | R30: 1.419087955 | S30: 5 | T30: 5 | U30: 1.361583835 | V30: 1.70970266 | W30: 0.1078660903 | X30: 0 | Y30: 1.298743428 | Z30: 0.04585897436 | AA30: 4.030217663 | AB30: 2.067821642 | AC30: 0.7646225486 | AD30: 0 | AE30: 0 | AF30: 3.06006367 | AG30: 0.8109933831 | AH30: 1.755983378 | AI30: 0.5568987556 | AJ30: 0.5555555556 | AK30: 1.126450021 | AL30: 0.05238411691
C31: 2019 Score | D31: 0 to 5 | G31: ='RE Index | Ranking inputs'!H34 -> 0 | H31: ='RE Index | Ranking inputs'!I34 -> 1.641108553 | I31: ='RE Index | Ranking inputs'!J34 -> 0 | J31: ='RE Index | Ranking inputs'!K34 -> 2.053739611 | K31: ='RE Index | Ranking inputs'!L34 -> 2.280497793 | L31: ='RE Index | Ranking inputs'!M34 -> 1.111111111 | M31: ='RE Index | Ranking inputs'!N34 -> 1.111111111 | N31: ='RE Index | Ranking inputs'!O34 -> 0 | O31: ='RE Index | Ranking inputs'!P34 -> 0.5555555556 | P31: ='RE Index | Ranking inputs'!Q34 -> 0 | Q31: ='RE Index | Ranking inputs'!R34 -> 0 | R31: ='RE Index | Ranking inputs'!S34 -> 1.144292929 | S31: ='RE Index | Ranking inputs'!T34 -> 2.434515336 | T31: ='RE Index | Ranking inputs'!U34 -> 0 | U31: ='RE Index | Ranking inputs'!V34 -> 0 | V31: ='RE Index | Ranking inputs'!W34 -> 1.702072872 | W31: ='RE Index | Ranking inputs'!X34 -> 0 | X31: ='RE Index | Ranking inputs'!Y34 -> 0 | Y31: ='RE Index | Ranking inputs'!Z34 -> 1.29915967 | Z31: ='RE Index | Ranking inputs'!AA34 -> 0 | AA31: ='RE Index | Ranking inputs'!AB34 -> 1.903174603 | AB31: ='RE Index | Ranking inputs'!AC34 -> 1.111111111 | AC31: ='RE Index | Ranking inputs'!AD34 -> 1.111111111 | AD31: ='RE Index | Ranking inputs'!AE34 -> 0 | AE31: ='RE Index | Ranking inputs'!AF34 -> 0 | AF31: ='RE Index | Ranking inputs'!AG34 -> 0 | AG31: ='RE Index | Ranking inputs'!AH34 -> 0 | AH31: ='RE Index | Ranking inputs'!AI34 -> 0 | AI31: ='RE Index | Ranking inputs'!AJ34 -> 0 | AJ31: ='RE Index | Ranking inputs'!AK34 -> 0.5555555556 | AK31: ='RE Index | Ranking inputs'!AL34 -> 1.164295528 | AL31: ='RE Index | Ranking inputs'!AM34 -> 0
C32: Electric Mobility | D32: Change from previous year | F32: 0.09 | G32: =IF(ISERR(G34-G33),"",G34-G33) -> 0 | H32: =IF(ISERR(H34-H33),"",H34-H33) -> 0 | I32: 0 | J32: 2.5 | K32: 0 | L32: 0 | M32: 0 | N32: 0 | O32: 0 | P32: 0 | Q32: 0 | R32: 2.5 | S32: 0 | T32: 0 | U32: 0 | V32: 0 | W32: 0 | X32: 0 | Y32: 2.5 | Z32: 0 | AA32: 2.5 | AB32: 0 | AC32: 0 | AD32: 0 | AE32: 0 | AF32: 0 | AG32: 0 | AH32: 0 | AI32: 0 | AJ32: 2.5 | AK32: 0 | AL32: 0
C33: 2018 Score | D33: 0 to 5 | G33: 0 | H33: 0 | I33: 0 | J33: 0 | K33: 2.5 | L33: 0 | M33: 0 | N33: 0 | O33: 0 | P33: 5 | Q33: 0 | R33: 0 | S33: 2.5 | T33: 0 | U33: 0 | V33: 5 | W33: 0 | X33: 0 | Y33: 2.5 | Z33: 0 | AA33: 0 | AB33: 0 | AC33: 0 | AD33: 0 | AE33: 0 | AF33: 2.5 | AG33: 0 | AH33: 0 | AI33: 0 | AJ33: 0 | AK33: 0 | AL33: 0
C34: 2019 Score | D34: 0 to 5 | G34: ='RE Index | Ranking inputs'!H42 -> 0 | H34: ='RE Index | Ranking inputs'!I42 -> 0 | I34: ='RE Index | Ranking inputs'!J42 -> 0 | J34: ='RE Index | Ranking inputs'!K42 -> 2.5 | K34: ='RE Index | Ranking inputs'!L42 -> 2.5 | L34: ='RE Index | Ranking inputs'!M42 -> 0 | M34: ='RE Index | Ranking inputs'!N42 -> 0 | N34: ='RE Index | Ranking inputs'!O42 -> 0 | O34: ='RE Index | Ranking inputs'!P42 -> 0 | P34: ='RE Index | Ranking inputs'!Q42 -> 5 | Q34: ='RE Index | Ranking inputs'!R42 -> 0 | R34: ='RE Index | Ranking inputs'!S42 -> 2.5 | S34: ='RE Index | Ranking inputs'!T42 -> 2.5 | T34: ='RE Index | Ranking inputs'!U42 -> 0 | U34: ='RE Index | Ranking inputs'!V42 -> 0 | V34: ='RE Index | Ranking inputs'!W42 -> 5 | W34: ='RE Index | Ranking inputs'!X42 -> 0 | X34: ='RE Index | Ranking inputs'!Y42 -> 0 | Y34: ='RE Index | Ranking inputs'!Z42 -> 5 | Z34: ='RE Index | Ranking inputs'!AA42 -> 0 | AA34: ='RE Index | Ranking inputs'!AB42 -> 2.5 | AB34: ='RE Index | Ranking inputs'!AC42 -> 0 | AC34: ='RE Index | Ranking inputs'!AD42 -> 0 | AD34: ='RE Index | Ranking inputs'!AE42 -> 0 | AE34: ='RE Index | Ranking inputs'!AF42 -> 0 | AF34: ='RE Index | Ranking inputs'!AG42 -> 2.5 | AG34: ='RE Index | Ranking inputs'!AH42 -> 0 | AH34: ='RE Index | Ranking inputs'!AI42 -> 0 | AI34: ='RE Index | Ranking inputs'!AJ42 -> 0 | AJ34: ='RE Index | Ranking inputs'!AK42 -> 2.5 | AK34: ='RE Index | Ranking inputs'!AL42 -> 0
C35: Covid Response | F35: 0.01
C36: 2019 Score | D36: 0 to 5 | G36: ='RE Index | Ranking inputs'!H46 -> 0 | H36: ='RE Index | Ranking inputs'!I46 -> 5 | I36: ='RE Index | Ranking inputs'!J46 -> 0 | J36: ='RE Index | Ranking inputs'!K46 -> 5 | K36: ='RE Index | Ranking inputs'!L46 -> 5 | L36: ='RE Index | Ranking inputs'!M46 -> 0 | M36: ='RE Index | Ranking inputs'!N46 -> 5 | N36: ='RE Index | Ranking inputs'!O46 -> 0 | O36: ='RE Index | Ranking inputs'!P46 -> 5 | P36: ='RE Index | Ranking inputs'!Q46 -> 0 | Q36: ='RE Index | Ranking inputs'!R46 -> 0 | R36: ='RE Index | Ranking inputs'!S46 -> 5 | S36: ='RE Index | Ranking inputs'!T46 -> 0 | T36: ='RE Index | Ranking inputs'!U46 -> 0 | U36: ='RE Index | Ranking inputs'!V46 -> 5 | V36: ='RE Index | Ranking inputs'!W46 -> 5 | W36: ='RE Index | Ranking inputs'!X46 -> 0 | X36: ='RE Index | Ranking inputs'!Y46 -> 0 | Y36: ='RE Index | Ranking inputs'!Z46 -> 5 | Z36: ='RE Index | Ranking inputs'!AA46 -> 0 | AA36: ='RE Index | Ranking inputs'!AB46 -> 0 | AB36: ='RE Index | Ranking inputs'!AC46 -> 0 | AC36: ='RE Index | Ranking inputs'!AD46 -> 0 | AD36: ='RE Index | Ranking inputs'!AE46 -> 0 | AE36: ='RE Index | Ranking inputs'!AF46 -> 0 | AF36: ='RE Index | Ranking inputs'!AG46 -> 0 | AG36: ='RE Index | Ranking inputs'!AH46 -> 0 | AH36: ='RE Index | Ranking inputs'!AI46 -> 0 | AI36: ='RE Index | Ranking inputs'!AJ46 -> 0 | AJ36: ='RE Index | Ranking inputs'!AK46 -> 0 | AK36: ='RE Index | Ranking inputs'!AL46 -> 0 | AL36: ='RE Index | Ranking inputs'!AM46 -> 0
C37: Overall Score Year-on-Year | G37: =G52-G50 -> 0 | H37: =H52-H50 -> 0.396808298 | I37: -0.00595959596 | J37: 0.8344429109 | K37: 0.6680226645 | L37: -0.003106269578 | M37: -0.4099842454 | N37: -1.462831439 | O37: 1.165926667 | P37: -1.263904262 | Q37: -0.1095960428 | R37: -0.2755782981 | S37: -0.351227254 | T37: -0.8604405166 | U37: -0.7110564055 | V37: -0.107895071 | W37: -0.03235982708 | X37: 0.4436630734 | Y37: 0.6944953463 | Z37: -0.01375769231 | AA37: 0.2246549393 | AB37: -0.3863830855 | AC37: 1.078946569 | AD37: 0 | AE37: 0 | AF37: -0.8440089459 | AG37: -0.349881687 | AH37: -0.6158575133 | AI37: -0.8531494289 | AJ37: 0.6796875 | AK37: 0.2307286521 | AL37: -0.4545715285
C38: 2012 Overall Score | G38: 0.8591 | H38: 0.55 | I38: 0.8415 | J38: 0.3993 | K38: 1.243 | L38: 0.7733 | M38: 1.628 | N38: 0 | O38: 0.33 | P38: 1.1594 | Q38: 0 | R38: 0 | S38: 2.882 | T38: 1.1924 | U38: 1.859 | V38: 0 | W38: 0 | X38: 0 | Y38: 1.3189 | Z38: 1.3233 | AA38: 2.0361 | AB38: 1.2485 | AC38: 0 | AD38: 0 | AE38: 0 | AF38: 1.1055 | AG38: 1.3926 | AH38: 0.5511 | AI38: 0 | AJ38: 0.7689 | AK38: 0.66 | AL38: 0
C39: 2012 Rank | G39: 13 | H39: 19 | I39: 14 | J39: 20 | K39: 9 | L39: 15 | M39: 4 | N39: 22 | O39: 21 | P39: 11 | Q39: 22 | R39: 22 | S39: 1 | T39: 10 | U39: 3 | V39: 22 | W39: 22 | X39: 22 | Y39: 7 | Z39: 6 | AA39: 2 | AB39: 8 | AC39: 22 | AD39: 22 | AE39: 22 | AF39: 12 | AG39: 5 | AH39: 18 | AI39: 22 | AJ39: 16 | AK39: 17 | AL39: 22
C40: 2013 Overall Score | G40: 0.799048174 | H40: 0.5555555556 | I40: 0.9187327217 | J40: 0.4374316299 | K40: 1.295617364 | L40: 1 | M40: 1.784737824 | N40: 1.130259056 | O40: 0.3333333333 | P40: 1.169820709 | Q40: 0.01198764417 | R40: 1.304984667 | S40: 2.848036078 | T40: 1.275769827 | U40: 1.760872338 | V40: 1.793906661 | W40: 1.906499915 | X40: 1.906499915 | Y40: 1.38183683 | Z40: 1.656303343 | AA40: 2.055555556 | AB40: 0.8783995158 | AC40: 1.164998959 | AD40: 0.01736131206 | AE40: 0 | AF40: 0.778006075 | AG40: 1.575016522 | AH40: 0.6578809922 | AI40: 0.8139873418 | AJ40: 0.7777789765 | AK40: 0.6666666667 | AL40: 0
C41: 2013 Rank | G41: 21 | H41: 26 | I41: 18 | J41: 27 | K41: 12 | L41: 17 | M41: 6 | N41: 16 | O41: 28 | P41: 14 | Q41: 30 | R41: 11 | S41: 1 | T41: 13 | U41: 7 | V41: 5 | W41: 3 | X41: 3 | Y41: 10 | Z41: 8 | AA41: 2 | AB41: 19 | AC41: 15 | AD41: 29 | AE41: 31 | AF41: 22 | AG41: 9 | AH41: 25 | AI41: 20 | AJ41: 23 | AK41: 24 | AL41: 31
C42: 2014 Overall Score | G42: 0.8645436555 | H42: 0.6689971917 | I42: 1.829876917 | J42: 0.451614964 | K42: 1.340428677 | L42: 1.03902343 | M42: 2.184727993 | N42: 1.164399984 | O42: 0.3969531253 | P42: 1.174973007 | Q42: 0.0429857347 | R42: 1.712109111 | S42: 2.768547031 | T42: 1.134118253 | U42: 0.8243671788 | V42: 1.718222239 | W42: 0.8368288503 | X42: 0.8368288503 | Y42: 1.412887591 | Z42: 1.761348004 | AA42: 2.055555556 | AB42: 1.142432772 | AC42: 0.7018151979 | AD42: 0.03322752724 | AE42: 0.006369791667 | AF42: 0.7965339556 | AG42: 1.384339056 | AH42: 0.9253847762 | AI42: 1.008629384 | AJ42: 0.7777861813 | AK42: 0.6670456074 | AL42: 0.877237573
C43: 2014 Rank | G43: 18 | H43: 25 | I43: 4 | J43: 27 | K43: 10 | L43: 15 | M43: 2 | N43: 12 | O43: 28 | P43: 11 | Q43: 29 | R43: 7 | S43: 1 | T43: 14 | U43: 21 | V43: 6 | W43: 19 | X43: 19 | Y43: 8 | Z43: 5 | AA43: 3 | AB43: 13 | AC43: 24 | AD43: 30 | AE43: 31 | AF43: 22 | AG43: 9 | AH43: 17 | AI43: 16 | AJ43: 23 | AK43: 26 | AL43: 18
C44: 2015 Overall Score | G44: 0.8820209676 | H44: 0.6685348656 | I44: 1.686459754 | J44: 0.4658252659 | K44: 1.674840275 | L44: 1.712469391 | M44: 3.568017447 | N44: 1.114459265 | O44: 0.7176782629 | P44: 1.189313253 | Q44: 0.3754881763 | R44: 1.68748116 | S44: 2.723464263 | T44: 1.120862816 | U44: 1.439197115 | V44: 1.694742405 | W44: 0.8214734849 | X44: 0.8214734849 | Y44: 1.388740116 | Z44: 1.742991638 | AA44: 2.055555556 | AB44: 2.118618098 | AC44: 0.7175553755 | AD44: 0.02374529769 | AE44: 0.005104793907 | AF44: 0.7965755467 | AG44: 2.050736523 | AH44: 0.9216147573 | AI44: 0.8214721915 | AJ44: 1.00001599 | AK44: 0.6670077134 | AL44: 0.7787322743
C45: 2015 Rank | G45: 19 | H45: 27 | I45: 10 | J45: 29 | K45: 11 | L45: 7 | M45: 1 | N45: 16 | O45: 25 | P45: 14 | Q45: 30 | R45: 9 | S45: 2 | T45: 15 | U45: 12 | V45: 8 | W45: 20 | X45: 20 | Y45: 13 | Z45: 6 | AA45: 4 | AB45: 3 | AC45: 26 | AD45: 31 | AE45: 32 | AF45: 23 | AG45: 5 | AH45: 18 | AI45: 22 | AJ45: 17 | AK45: 28 | AL45: 24
C46: 2016 Overall Score | G46: 0.4444444444 | H46: 1.222222222 | I46: 1.168887104 | J46: 1.444444444 | K46: 0.9527978419 | L46: 1.524353702 | M46: 2.342378212 | N46: 1.447415648 | O46: 0.6189866924 | P46: 1.743393691 | Q46: 0.07391133721 | R46: 1.666666667 | S46: 3.389395901 | T46: 1.830119435 | U46: 1.68469994 | V46: 2.290123582 | W46: 1.222222222 | X46: 1.222222222 | Y46: 1.635089312 | Z46: 2.024665264 | AA46: 0 | AB46: 1.666666667 | AC46: 1.293785255 | AD46: 0.02466034447 | AE46: 0.005104152524 | AF46: 0.4444444444 | AG46: 1.444444444 | AH46: 0.473610545 | AI46: 0.822303837 | AJ46: 0.4444444444 | AK46: 0.4444444444 | AL46: 1.297584915
C47: 2016 Rank | G47: 25 | H47: 17 | I47: 20 | J47: 13 | K47: 21 | L47: 11 | M47: 2 | N47: 12 | O47: 23 | P47: 6 | Q47: 29 | R47: 8 | S47: 1 | T47: 5 | U47: 7 | V47: 3 | W47: 17 | X47: 17 | Y47: 10 | Z47: 4 | AA47: 32 | AB47: 8 | AC47: 16 | AD47: 30 | AE47: 31 | AF47: 25 | AG47: 13 | AH47: 24 | AI47: 22 | AJ47: 25 | AK47: 25 | AL47: 15
C48: 2017 Overall Score | G48: 0.6683333333 | H48: 1.537106065 | I48: 1.25097103 | J48: 1.319444444 | K48: 1.284418949 | L48: 1.339675388 | M48: 1.889690552 | N48: 2.230555556 | O48: 1.541666667 | P48: 1.733141391 | Q48: 0 | R48: 2.172418238 | S48: 2.746902331 | T48: 1.830235688 | U48: 1.394407985 | V48: 1.731181395 | W48: 0.05208333333 | X48: 0.05208333333 | Y48: 1.419621516 | Z48: 1.419621516 | AA48: 0 | AB48: 2.973929973 | AC48: 1.029115952 | AD48: 0 | AE48: 0 | AF48: 2.053425481 | AG48: 2.781448653 | AH48: 1.810538889 | AI48: 1.695407653 | AJ48: 0.6375 | AK48: 1.031715572 | AL48: 1.845630013
C49: 2017 Rank | G49: 25 | H49: 14 | I49: 21 | J49: 19 | K49: 20 | L49: 18 | M49: 7 | N49: 4 | O49: 13 | P49: 10 | Q49: 28 | R49: 5 | S49: 3 | T49: 8 | U49: 17 | V49: 11 | W49: 26 | X49: 26 | Y49: 15 | Z49: 15 | AA49: 28 | AB49: 1 | AC49: 23 | AD49: 28 | AE49: 28 | AF49: 6 | AG49: 2 | AH49: 9 | AI49: 12 | AJ49: 25 | AK49: 22 | AL49: 8
C50: 2018 Overall Score | G50: 0 | H50: 1.343992424 | I50: 0.2287208081 | J50: 1.031678972 | K50: 1.407370503 | L50: 1.657955967 | M50: 2.217965098 | N50: 2.127604167 | O50: 0.10074 | P50: 2.113488529 | Q50: 0.1157180608 | R50: 2.243866177 | S50: 3.1309375 | T50: 2.5509375 | U50: 1.333295212 | V50: 2.76126027 | W50: 0.1793156505 | X50: 0.4393724731 | Y50: 1.855560529 | Z50: 0.1187576923 | AA50: 1.255940299 | AB50: 1.694243778 | AC50: 0.2593867646 | AD50: 0 | AE50: 0 | AF50: 1.47304471 | AG50: 0.5451730149 | AH50: 1.009711799 | AI50: 1.709088558 | AJ50: 0.2369791667 | AK50: 0.8685600063 | AL50: 0.6640255285
C51: 2018 Rank | G51: 31 | H51: 14 | I51: 25 | J51: 17 | K51: 13 | L51: 11 | M51: 5 | N51: 6 | O51: 29 | P51: 7 | Q51: 28 | R51: 4 | S51: 1 | T51: 3 | U51: 15 | V51: 2 | W51: 26 | X51: 22 | Y51: 8 | Z51: 27 | AA51: 16 | AB51: 10 | AC51: 23 | AD51: 31 | AE51: 31 | AF51: 12 | AG51: 21 | AH51: 18 | AI51: 9 | AJ51: 24 | AK51: 19 | AL51: 20
C52: 2019 Overall Score | G52: ='RE Index | Ranking inputs'!H6 -> 0 | H52: ='RE Index | Ranking inputs'!I6 -> 1.740800722 | I52: ='RE Index | Ranking inputs'!J6 -> 0.2227612121 | J52: ='RE Index | Ranking inputs'!K6 -> 1.866121883 | K52: ='RE Index | Ranking inputs'!L6 -> 2.075393168 | L52: ='RE Index | Ranking inputs'!M6 -> 1.654849697 | M52: ='RE Index | Ranking inputs'!N6 -> 1.807980852 | N52: ='RE Index | Ranking inputs'!O6 -> 0.6647727273 | O52: ='RE Index | Ranking inputs'!P6 -> 1.266666667 | P52: ='RE Index | Ranking inputs'!Q6 -> 0.8495842664 | Q52: ='RE Index | Ranking inputs'!R6 -> 0.006122017983 | R52: ='RE Index | Ranking inputs'!S6 -> 1.968287879 | S52: ='RE Index | Ranking inputs'!T6 -> 2.779710246 | T52: ='RE Index | Ranking inputs'!U6 -> 1.690496983 | U52: ='RE Index | Ranking inputs'!V6 -> 0.6222388062 | V52: ='RE Index | Ranking inputs'!W6 -> 2.653365199 | W52: ='RE Index | Ranking inputs'!X6 -> 0.1469558234 | X52: ='RE Index | Ranking inputs'!Y6 -> 0.8830355465 | Y52: ='RE Index | Ranking inputs'!Z6 -> 2.550055875 | Z52: ='RE Index | Ranking inputs'!AA6 -> 0.105 | AA52: ='RE Index | Ranking inputs'!AB6 -> 1.480595238 | AB52: ='RE Index | Ranking inputs'!AC6 -> 1.307860693 | AC52: ='RE Index | Ranking inputs'!AD6 -> 1.338333333 | AD52: ='RE Index | Ranking inputs'!AE6 -> 0 | AE52: ='RE Index | Ranking inputs'!AF6 -> 0 | AF52: ='RE Index | Ranking inputs'!AG6 -> 0.6290357638 | AG52: ='RE Index | Ranking inputs'!AH6 -> 0.1952913279 | AH52: ='RE Index | Ranking inputs'!AI6 -> 0.3938542857 | AI52: ='RE Index | Ranking inputs'!AJ6 -> 0.8559391291 | AJ52: ='RE Index | Ranking inputs'!AK6 -> 0.9166666667 | AK52: ='RE Index | Ranking inputs'!AL6 -> 1.099288658 | AL52: ='RE Index | Ranking inputs'!AM6 -> 0.209454
C53: 2019 Rank | G53: ='RE Index | Ranking inputs'!H7 -> 31 | H53: ='RE Index | Ranking inputs'!I7 -> 8 | I53: ='RE Index | Ranking inputs'!J7 -> 24 | J53: ='RE Index | Ranking inputs'!K7 -> 6 | K53: ='RE Index | Ranking inputs'!L7 -> 4 | L53: ='RE Index | Ranking inputs'!M7 -> 10 | M53: ='RE Index | Ranking inputs'!N7 -> 7 | N53: ='RE Index | Ranking inputs'!O7 -> 20 | O53: ='RE Index | Ranking inputs'!P7 -> 14 | P53: ='RE Index | Ranking inputs'!Q7 -> 19 | Q53: ='RE Index | Ranking inputs'!R7 -> 29 | R53: ='RE Index | Ranking inputs'!S7 -> 5 | S53: ='RE Index | Ranking inputs'!T7 -> 1 | T53: ='RE Index | Ranking inputs'!U7 -> 9 | U53: ='RE Index | Ranking inputs'!V7 -> 22 | V53: ='RE Index | Ranking inputs'!W7 -> 2 | W53: ='RE Index | Ranking inputs'!X7 -> 27 | X53: ='RE Index | Ranking inputs'!Y7 -> 17 | Y53: ='RE Index | Ranking inputs'!Z7 -> 3 | Z53: ='RE Index | Ranking inputs'!AA7 -> 28 | AA53: ='RE Index | Ranking inputs'!AB7 -> 11 | AB53: ='RE Index | Ranking inputs'!AC7 -> 13 | AC53: ='RE Index | Ranking inputs'!AD7 -> 12 | AD53: ='RE Index | Ranking inputs'!AE7 -> 31 | AE53: ='RE Index | Ranking inputs'!AF7 -> 31 | AF53: ='RE Index | Ranking inputs'!AG7 -> 21 | AG53: ='RE Index | Ranking inputs'!AH7 -> 26 | AH53: ='RE Index | Ranking inputs'!AI7 -> 23 | AI53: ='RE Index | Ranking inputs'!AJ7 -> 18 | AJ53: ='RE Index | Ranking inputs'!AK7 -> 16 | AK53: ='RE Index | Ranking inputs'!AL7 -> 15 | AL53: ='RE Index | Ranking inputs'!AM7 -> 25
C54: Rank change 2018 to 2019 | G54: =G51-G53 -> 0 | H54: =H51-H53 -> 6 | I54: =I51-I53 -> 1 | J54: 11 | K54: 9 | L54: 1 | M54: -2 | N54: -14 | O54: 15 | P54: -12 | Q54: -1 | R54: -1 | S54: 0 | T54: -6 | U54: -7 | V54: 0 | W54: -1 | X54: 5 | Y54: 5 | Z54: -1 | AA54: 5 | AB54: -3 | AC54: 11 | AD54: 0 | AE54: 0 | AF54: -9 | AG54: -5 | AH54: -5 | AI54: -9 | AJ54: 8 | AK54: 4 | AL54: -5

Sheet Antigua_Barbuda
B1: Antigua & Barbuda
C2: Overall Indicator
C3: Enabling Environment for Renewable Energy (RE) Investments | D3: Consolidated Survey Response | E3: Winston Whyte - APUA
C4: Government - Renewable Energy Strategy | D4: Y/N
B5: 1 | C5: Does your country have a strategic plan to develop renewable energy?
C6: Which of the following renewable generation options is included in you country's strategic plan to develop renewable energy? | D6: =IF(B6<>0,IF(ISBLANK(E6),"NA",E6)," ") ->  | E6: Solar PV, Onshore Wind
B7: 2 | C7: Does your country have a specific target for renewable energy? | D7: =IF(B7<>0,IF(ISBLANK(E7),"NA",E7)," ") -> Yes | E7: Yes
C8: If yes, what is the target and target year? | D8: =IF(B8<>0,IF(ISBLANK(E8),"NA",E8)," ") ->  | E8: 20% by 2020
C9: What is the current breakdown of your country's energy mix? | D9: =IF(B9<>0,IF(ISBLANK(E9),"NA",E9)," ") ->  | E9: Renewable energy 0.5%, Conventional/Fossil Fuel 99.5%
B10: 3 | C10: Does your country have an Integrated Resource Plan (IRP) that was produced within the last three years? | D10: =IF(B10<>0,IF(ISBLANK(E10),"NA",E10)," ") -> No | E10: No
C11: Utilities | D11: Y/N
B12: 1 | C12: When planning generation expansion, does the utility consider RE options? | D12: =IF(B12<>0,IF(ISBLANK(E12),"NA",E12)," ") -> Yes | E12: Yes
B13: 2 | C13: Can the utility safely recover RE investments through tariffs like it can recover fossil fuel costs? | D13: =IF(B13<>0,IF(ISBLANK(E13),"NA",E13)," ") -> No | E13: No
B14: 3 | C14: Are there clear, specific planning and permitting processes and rules in place for developing RE? | D14: =IF(B14<>0,IF(ISBLANK(E14),"NA",E14)," ") -> Yes | E14: Yes
C15: On average, how long does it take for the power utility to get investments in RE projects approved by the regulatory authority (or relevant entity) for recovery through tariffs? | D15: =IF(B15<>0,IF(ISBLANK(E15),"NA",E15)," ") ->  | E15: The utility and regulatory entity is one in the same and their is not specific requirement in that regard.
C16: IPPs | D16: Y/N
B17: 1 | C17: Can the utility safely recover purchases of RE from third parties, just as it recovers fossil fuel costs? | D17: =IF(B17<>0,IF(ISBLANK(E17),"NA",E17)," ") -> Yes | E17: Yes
B18: 2 | C18: Are there workable precedents or rules for PPA terms and grid operation rules? | D18: =IF(B18<>0,IF(ISBLANK(E18),"NA",E18)," ") -> Yes | E18: Yes
B19: 3 | C19: Are there clear and effective licensing processes and requirements in place for IPPs? | D19: =IF(B19<>0,IF(ISBLANK(E19),"NA",E19)," ") -> Yes | E19: Yes
B20: 4 | C20: Does the utility have an obligation to purchase from IPPs when it is cheaper than generating the power itself? | D20: =IF(B20<>0,IF(ISBLANK(E20),"NA",E20)," ") -> No | E20: No
B21: 5 | C21: Does the PPA have any take-or-pay arrangements? | D21: =IF(B21<>0,IF(ISBLANK(E21),"NA",E21)," ") -> No | E21: No
C22: Distributed generation | D22: Y/N
B23: 1 | C23: Do you have a registry or database of distributed generation? | D23: =IF(B23<>0,IF(ISBLANK(E23),"NA",E23)," ") -> Yes | E23: Yes
C24: What was the number of existing distributed scale RE systems in 2019? | E24: 24
C25: Is there an aggregate maximum capacity for distributed generation? | E25: Yes
C26: What is the total installed capacity from renewable distributed generation in your country? | E26: 2 MW
C27: What was the total generation from existing distributed scale RE systems in 2019? | E27: 2,000 MWh
B28: 2 | C28: Is there a standard arrangement in place for customers to sell electricity to the utility at a reasonable price, for a reasonable timeframe, and with a clear interconnection agreement? | D28: Yes | E28: Yes
A30: 2 | C30: Existing renewable generation
C31: What is the number of existing Utility-Scale RE projects? | D31: =IF(B31<>0,IF(ISBLANK(E31),"NA",E31)," ") ->  | E31: 2
B32: 1 | C32: What was the total electricity generated in 2019? (MWh) | D32: =IF(B32<>0,IF(ISBLANK(E32),"NA",E32)," ") -> 375332 | E32: 375332
B33: 1 | C33: What was the total electricity generated from Utility Scale RE projects in 2019? (MWh) | D33: =IF(B33<>0,IF(ISBLANK(E33),"NA",E33)," ") -> 9000 | E33: 9000
C34: Please provide as much information as possible for existing RE projects in the box below as: - Project Name - Developer - Offtaker - Renewable Energy Technology Type - Start of Commercial Operation (Year) - Estimated Capacity Factor (in %) OR Estimated Annual Production (in MWh) - Installed Capacity (MW) - Length of PPA | D34: =IF(B34<>0,IF(ISBLANK(E34),"NA",E34)," ") ->  | E34: 10 MW RE Project PV Energy APUA Solar PV 2015 105% 8.3 MW PPA N/A
A36: 3 | C36: Planned Utility-Scale Renewable Energy Projects
B37: 1 | C37: Does your country have an estimate of planned installed capacity expected to come online from-utility scale RE projects? | D37: =IF(B37<>0,IF(ISBLANK(E37),"NA",E37)," ") -> Yes | E37: Yes
C38: How much installed capacity from RE is expected to come online in the next 3 years? (MW) | D38: =IF(B38<>0,IF(ISBLANK(E38),"NA",E38)," ") ->  | E38: 1.7 MW - Solar PV 4 MW - Wind
B39: 2 | C39: How much renewable energy generation is expected to come online in the next 3 years? (MWh) | D39: =IF(B39<>0,IF(ISBLANK(E39),"NA",E39)," ") -> 119355 | E39: =3723+115632 -> 119355
B40: 3 | C40: Is climate resilience incorporated in your IRP or national policy? | D40: =IF(B40<>0,IF(ISBLANK(E40),"NA",E40)," ") -> Yes | E40: Yes
C41: Please provide as much information as possible for RE projects currently under development in the box below as: - Project Name - Developer - Offtaker - Renewable Energy Technology Type - Start of Commercial Operation (Year) - Estimated Capacity Factor (in %) OR Estimated Annual Production (in MWh) - Installed Capacity (MW) - Length of PPA | D41: =IF(B41<>0,IF(ISBLANK(E41),"NA",E41)," ") ->  | E41: 0 MW RE Project PV Energy APUA Solar PV 2015 105% 8.3 MW PPA N/A
A43: 4 | C43: Electric Mobility
B44: 1 | C44: Does your country have policies in place or draft legislation to promote the uptake of electric mobility? | D44: =IF(B44<>0,IF(ISBLANK(E44),"NA",E44)," ") -> No | E44: No
B45: 2 | C45: Does your country have specific targets for the uptake of electric vehicles? | D45: =IF(B45<>0,IF(ISBLANK(E45),"NA",E45)," ") -> No | E45: No
C46: What is the target and target year? | D46: =IF(B46<>0,IF(ISBLANK(E46),"NA",E46)," ") ->  | E46: N/A
C47: How many electric cars are currently in your country? | D47: =IF(B47<>0,IF(ISBLANK(E47),"NA",E47)," ") ->  | E47: 10
C48: How many charging stations are in your country? | D48: =IF(B48<>0,IF(ISBLANK(E48),"NA",E48)," ") ->  | E48: 2
C50: Descriptive CREF Index Survey
C51: Enabling Environment for Renewable Energy (RE) Investments
C52: Renewable energy strategy
C53: Which of the following renewable generation options is included in your country's strategic plan to develop renewable energy? - Solar PV - Offshore wind - Biomass - Waste to energy - Hydro -Geothermal - Other | D53: =E53 -> Solar PV, Onshore Wind | E53: =E6 -> Solar PV, Onshore Wind
C54: What is the target and target year? | D54: =E54 -> 20% by 2020 | E54: =E8 -> 20% by 2020
C55: What is the current breakdown of your country's energy mix? | D55: =E55 -> Renewable energy 0.5%, Conventional/Fossil Fuel 99.5% | E55: =E9 -> Renewable energy 0.5%, Conventional/Fossil Fuel 99.5%
C56: Utilities
C57: On average, how long does it take for the power utility to get investments in RE projects approved by the regulatory authority or the relevant entity) for recovery through tariffs? | D57: =E57 -> The utility and regulatory entity is one in the same and their is not specific requirement in that regard. | E57: =E15 -> The utility and regulatory entity is one in the same and their is not specific requirement in that regard.
C58: Distributed Generation
C59: What is the number of existing distributed scale RE systems in 2019? | D59: =E59 -> 24 | E59: =E24 -> 24
C60: What is the total installed capacity from renewable distributed generation in your country? | D60: =E60 -> 2MW | E60: 2MW
C61: What was the total generation from existing distributed scale RE systems in 2019? | D61: =E61 -> 2,000 MWh | E61: =E27 -> 2,000 MWh
C62: Existing renewable generation
C63: Existing Utility-Scale Renewable Energy Projects
C64: What is the number of existing utility-scale RE projects? | D64: =E64 -> 2 | E64: =E31 -> 2
C65: What was the total electricity generated in 2019 (MWh)? | D65: =E65 -> 375332 | E65: 375332
C66: What was the total electricity generated from utility-scale RE projects in 2019 (MWh)? | D66: 9000 | E66: 9000
C67: Please provide as much information as possible for existing RE projects in the box below as: - Project Name - Developer - Offtaker - Renewable Energy Technology Type - Start of Commercial Operation (Year) - Estimated Capacity Factor (in %) OR Estimated Annual Production (in MWh) - Installed Capacity (MW) - Length of PPA | D67: =E67 -> 10 MW RE Project PV Energy APUA Solar PV 2015 105% 8.3 MW PPA N/A | E67: 10 MW RE Project PV Energy APUA Solar PV 2015 105% 8.3 MW PPA N/A
C68: Planned renewable generation
C69: Potential Utility-Scale Renewable Energy Projects
C70: How much installed capacity from RE is expected to come online in the next 3 years? | D70: =E70 -> 1.7 MW - Solar PV 4 MW - Wind | E70: =E38 -> 1.7 MW - Solar PV 4 MW - Wind
C71: How much renewable energy generation is expected to come online in the next 3 years? | D71: =E71 -> 119355 | E71: =E39 -> 119355
C72: Please provide as much information as possible for RE projects currently under development in the box below as: - Project Name - Developer - Offtaker - Renewable Energy Technology Type - Start of Commercial Operation (Year) - Estimated Capacity Factor (in %) OR Estimated Annual Production (in MWh) - Installed Capacity (MW) - Length of PPA | D72: 0 MW RE Project PV Energy APUA Solar PV 2015 105% 8.3 MW PPA N/A | E72: =E41 -> 0 MW RE Project PV Energy APUA Solar PV 2015 105% 8.3 MW PPA N/A
C73: Electric Mobility
C74: What is the target and target year? | D74: =E74 -> N/A | E74: =E46 -> N/A
C75: How many electric cars are currently in your country? | D75: =E75 -> 10 | E75: =E47 -> 10
C76: How many charging stations are in your country? | D76: 2 | E76: 2
C77: Covid
C78: Has any measure been implemented to respond to disruptions in revenue collections from electricity services (particularly given the current circumstances during the COVID pandemic)? | D78: =E78 -> Yes | E78: Yes
C79: If yes, to get a score on this kindly describe how the measure works and who is responsible for implementing it | D79: =E79 -> The measures taken have been to offer an incentive to customers to make payments in full in the month that the bill is due to redeem a 15% discount on electricity bills. The utility is responsible for the implementation. There has been mixed responses. Some customers capitalize on the discount and other have stopped payments altogether. | E79: The measures taken have been to offer an incentive to customers to make payments in full in the month that the bill is due to redeem a 15% discount on electricity bills. The utility is responsible for the implementation. There has been mixed responses. Some customers capitalize on the discount and other have stopped payments altogether.
C80: Outlook sentiment
C81: How enthusiastic are you about the investment prospects in renewables, electric mobility, and resilience compared to this time last year, and why? | D81: =E81 -> Less | E81: Less
C82: Please elaborate on your reasoning for the previous response. | D82: =E82 -> I don't see any meaningful Government policy at this time. | E82: I don't see any meaningful Government policy at this time.

Sheet Bahamas
B1: The Bahamas
C2: Overall Indicator | E2: Burlington Strachan - BPL | F2: Jonathan Hudson - Utilities Regulation & Competition Authority
A3: 1 | C3: Enabling Environment for Renewable Energy (RE) Investments | D3: Consolidated Survey Response | E3: Respondent #12 | F3: Respondent #15
C4: Government - Renewable Energy Strategy | E4: Y/N | F4: Y/N
B5: 1 | C5: Does your country have a strategic plan to develop renewable energy? | D5: =IF(B5<>0,IF(ISBLANK(E5),"NA",E5)," ") -> NA
C6: Which of the following renewable generation options is included in you country's strategic plan to develop renewable energy? | D6: =F6 -> Solar PV, Onshore Wind, Waste-to-Energy | E6: Solar PV | F6: Solar PV, Onshore Wind, Waste-to-Energy
B7: 2 | C7: Does your country have a specific target for renewable energy? | D7: Yes | E7: Yes | F7: Yes
C8: If yes, what is the target and target year? | E8: 30% by 2033 | F8: 30MW by 2030
C9: What is the current breakdown of your country's energy mix? | E9: <1% renewable (solar PV), >99% fossil fuel | F9: 98% fossil fuel based generation, 2% PV generation
B10: 3 | C10: Does your country have an Integrated Resource Plan (IRP) that was produced within the last three years? | D10: No | E10: No | F10: Yes
C11: Utilities | E11: Y/N | F11: Y/N
B12: 1 | C12: When planning generation expansion, does the utility consider RE options? | D12: =IF(B12<>0,IF(ISBLANK(E12),"NA",E12)," ") -> Yes | E12: Yes | F12: Yes
B13: 2 | C13: Can the utility safely recover RE investments through tariffs like it can recover fossil fuel costs? | D13: =IF(B13<>0,IF(ISBLANK(E13),"NA",E13)," ") -> No | E13: No | F13: No
B14: 3 | C14: Are there clear, specific planning and permitting processes and rules in place for developing RE? | D14: =IF(B14<>0,IF(ISBLANK(E14),"NA",E14)," ") -> Yes | E14: Yes | F14: Yes
C15: On average, how long does it take for the power utility to get investments in RE projects approved by the regulatory authority (or relevant entity) for recovery through tariffs? | D15: =IF(B15<>0,IF(ISBLANK(E15),"NA",E15)," ") ->  | E15: N/A | F15: N/A
C16: IPPs | E16: Y/N | F16: Y/N
B17: 1 | C17: Can the utility safely recover purchases of RE from third parties, just as it recovers fossil fuel costs? | D17: =IF(B17<>0,IF(ISBLANK(F17),"NA",F17)," ") -> No | E17: Yes | F17: No
B18: 2 | C18: Are there workable precedents or rules for PPA terms and grid operation rules? | D18: =IF(B18<>0,IF(ISBLANK(E18),"NA",E18)," ") -> Yes | E18: Yes | F18: Yes
B19: 3 | C19: Are there clear and effective licensing processes and requirements in place for IPPs? | D19: =IF(B19<>0,IF(ISBLANK(E19),"NA",E19)," ") -> Yes | E19: Yes | F19: Yes
B20: 4 | C20: Does the utility have an obligation to purchase from IPPs when it is cheaper than generating the power itself? | D20: =IF(B20<>0,IF(ISBLANK(E20),"NA",E20)," ") -> Yes | E20: Yes | F20: Yes
B21: 5 | C21: Does the PPA have any take-or-pay arrangements? | D21: =IF(B21<>0,IF(ISBLANK(F21),"NA",F21)," ") -> No | E21: Yes | F21: No
C22: Distributed generation | E22: Y/N | F22: Y/N
B23: 1 | C23: Do you have a registry or database of distributed generation? | D23: =IF(B23<>0,IF(ISBLANK(E23),"NA",E23)," ") -> Yes | E23: Yes | F23: Yes
C24: What was the number of existing distributed scale RE systems in 2019? | E24: Total 192 approved installations (2KW to 750KW system size range) | F24: There are just over 200 RE systems online
C25: Is there an aggregate maximum capacity for distributed generation? | E25: Yes | F25: Yes
C26: What is the total installed capacity from renewable distributed generation in your country? | E26: 4.3MW | F26: 4.3MW
C27: What was the total generation from existing distributed scale RE systems in 2019? | E27: Unknown | F27: Unknown
B28: 2 | C28: Is there a standard arrangement in place for customers to sell electricity to the utility at a reasonable price, for a reasonable timeframe, and with a clear interconnection agreement? | D28: Yes | E28: Yes | F28: Yes
A30: 2 | C30: Existing renewable generation
C31: What is the number of existing Utility-Scale RE projects? | D31: =IF(B31<>0,IF(ISBLANK(E31),"NA",E31)," ") ->  | E31: 1 | F31: 2
B32: 1 | C32: What was the total electricity generated in 2019? (MWh) | D32: =IF(B32<>0,IF(ISBLANK(E32),"NA",E32)," ") -> 207547.3 | E32: 207547.3 | F32: Use BPL figures
B33: 1 | C33: What was the total electricity generated from Utility Scale RE projects in 2019? (MWh) | D33: =IF(B33<>0,IF(ISBLANK(E33),"NA",E33)," ") -> 0 | E33: 0 | F33: Use BPL figure of Ragged Island. The other is a private installation which we don't have access to at the moment.
C34: Please provide as much information as possible for existing RE projects in the box below as: - Project Name - Developer - Offtaker - Renewable Energy Technology Type - Start of Commercial Operation (Year) - Estimated Capacity Factor (in %) OR Estimated Annual Production (in MWh) - Installed Capacity (MW) - Length of PPA | D34: =IF(B34<>0,IF(ISBLANK(E34),"NA",E34)," ") ->  | E34: – Project Name - Ragged Island Microgrid – Developer - BPL – Offtaker - BPL – RE technology type - Solar + BESS – Start of commercial operation (year) – Estimated capacity factor (in %) OR estimated annual production (in MWh) – Installed capacity (MW) 0.4MW solar – Length of PPA - EPC | F34: The Ragged Island project is a BPL RMI initiative. There is a private 750kW wind + solar installation on Over Yonder Cay in the Exumas. There is a private 4MW PV project under development in Chub Cay off Bimini.
A36: 3 | C36: Planned Utility-Scale Renewable Energy Projects
B37: 1 | C37: Does your country have an estimate of planned installed capacity expected to come online from-utility scale RE projects? | D37: =IF(B37<>0,IF(ISBLANK(E37),"NA",E37)," ") -> Yes | E37: Yes | F37: Yes
C38: How much installed capacity from RE is expected to come online in the next 3 years? (MW) | D38: =IF(B38<>0,IF(ISBLANK(E38),"NA",E38)," ") ->  | E38: 20 | F38: 40
B39: 2 | C39: How much renewable energy generation is expected to come online in the next 3 years? (MWh) | D39: =AVERAGE(E39,F39) -> 141192 | E39: 117384 | F39: =165*1000 -> 165000
B40: 3 | C40: Is climate resilience incorporated in your IRP or national policy? | D40: =IF(B40<>0,IF(ISBLANK(E40),"NA",E40)," ") -> Yes | E40: Yes | F40: Yes
C41: Please provide as much information as possible for RE projects currently under development in the box below as: - Project Name - Developer - Offtaker - Renewable Energy Technology Type - Start of Commercial Operation (Year) - Estimated Capacity Factor (in %) OR Estimated Annual Production (in MWh) - Installed Capacity (MW) - Length of PPA | D41: =IF(B41<>0,IF(ISBLANK(E41),"NA",E41)," ") ->  | E41: Info not yet available | F41: The majority of projects are commercial (under 500kW) and residential (under 100kW). For utility scale see response above
D42: =IF(B42<>0,IF(ISBLANK(E42),"NA",E42)," ") -> 
A43: 4 | C43: Electric Mobility
B44: 1 | C44: Does your country have policies in place or draft legislation to promote the uptake of electric mobility? | D44: Yes | E44: Yes | F44: No
B45: 2 | C45: Does your country have specific targets for the uptake of electric vehicles? | D45: No | E45: No | F45: No
C46: What is the target and target year? | E46: N/A | F46: N/A
C47: How many electric cars are currently in your country? | E47: N/A | F47: Don't know.
C48: How many charging stations are in your country? | E48: N/A | F48: Don't know.
C50: Descriptive CREF Index Survey
C51: Enabling Environment for Renewable Energy (RE) Investments
C52: Renewable energy strategy
C53: Which of the following renewable generation options is included in your country's strategic plan to develop renewable energy? - Solar PV - Offshore wind - Biomass - Waste to energy - Hydro -Geothermal - Other | D53: =E53 -> Solar PV | E53: =E6 -> Solar PV | F53: =F6 -> Solar PV, Onshore Wind, Waste-to-Energy
C54: What is the target and target year? | D54: =E54 -> 30% by 2033 | E54: =E8 -> 30% by 2033 | F54: =F8 -> 30MW by 2030
C55: What is the current breakdown of your country's energy mix? | D55: <1% renewable (solar PV), >99% fossil fuel | E55: =E9 -> <1% renewable (solar PV), >99% fossil fuel | F55: =F9 -> 98% fossil fuel based generation, 2% PV generation
C56: Utilities
C57: On average, how long does it take for the power utility to get investments in RE projects approved by the regulatory authority or the relevant entity) for recovery through tariffs? | D57: =E57 -> N/A | E57: =E15 -> N/A | F57: =F15 -> N/A
C58: Distributed Generation
C59: What is the number of existing distributed scale RE systems in 2019? | D59: =E59 -> Total 192 approved installations (2KW to 750KW system size range) | E59: =E24 -> Total 192 approved installations (2KW to 750KW system size range) | F59: =F24 -> There are just over 200 RE systems online
C60: What is the total installed capacity from renewable distributed generation in your country? | D60: =E60 -> 4.3MW | E60: =E26 -> 4.3MW | F60: =F26 -> 4.3MW
C61: What was the total generation from existing distributed scale RE systems in 2019? | D61: =E61 -> Unknown | E61: =E27 -> Unknown | F61: =F27 -> Unknown
C62: Existing renewable generation
C63: Existing Utility-Scale Renewable Energy Projects
C64: What is the number of existing utility-scale RE projects? | D64: =E64 -> 1 | E64: =E31 -> 1 | F64: 2
C65: What was the total electricity generated in 2018 (MWh)? | D65: =E65 -> 207547.3 | E65: 207547.3 | F65: Use BPL figures
C66: What was the total electricity generated from utility-scale RE projects in 2019 (MWh)? | D66: 0 | E66: 0 | F66: Use BPL figure of Ragged Island. The other is a private installation which we don't have access to at the moment.
C67: Please provide as much information as possible for existing RE projects in the box below as: - Project Name - Developer - Offtaker - Renewable Energy Technology Type - Start of Commercial Operation (Year) - Estimated Capacity Factor (in %) OR Estimated Annual Production (in MWh) - Installed Capacity (MW) - Length of PPA | D67: – Project Name - Ragged Island Microgrid – Developer - BPL – Offtaker - BPL – RE technology type - Solar + BESS – Start of commercial operation (year) – Estimated capacity factor (in %) OR estimated annual production (in MWh) – Installed capacity (MW) 0.4MW solar – Length of PPA - EPC | E67: =E34 -> – Project Name - Ragged Island Microgrid – Developer - BPL – Offtaker - BPL – RE technology type - Solar + BESS – Start of commercial operation (year) – Estimated capacity factor (in %) OR estimated annual production (in MWh) – Installed capacity (MW) 0.4MW solar – Length of PPA - EPC
C68: Planned renewable generation
C69: Potential Utility-Scale Renewable Energy Projects
C70: How much installed capacity from RE is expected to come online in the next 3 years? | D70: =E70 -> 20 | E70: =E38 -> 20 | F70: =F38 -> 40
C71: How much renewable energy generation is expected to come online in the next 3 years? | D71: =E71 -> 117384 | E71: =E39 -> 117384 | F71: =F39 -> 165000
C72: Please provide as much information as possible for RE projects currently under development in the box below as: - Project Name - Developer - Offtaker - Renewable Energy Technology Type - Start of Commercial Operation (Year) - Estimated Capacity Factor (in %) OR Estimated Annual Production (in MWh) - Installed Capacity (MW) - Length of PPA | D72: Info not yet available | E72: =E41 -> Info not yet available | F72: =F41 -> The majority of projects are commercial (under 500kW) and residential (under 100kW). For utility scale see response above
C73: Electric Mobility
C74: What is the target and target year? | D74: =E74 -> N/A | E74: =E46 -> N/A | F74: =F46 -> N/A
C75: How many electric cars are currently in your country? | D75: =E75 -> N/A | E75: =E47 -> N/A | F75: Don't know.
C76: How many charging stations are in your country? | D76: N/A | E76: N/A | F76: Don't know.
C77: Covid
C78: Has any measure been implemented to respond to disruptions in revenue collections from electricity services (particularly given the current circumstances during the COVID pandemic)? | D78: =E78 -> Yes | E78: Yes | F78: Yes
C79: If yes, to get a score on this kindly describe how the measure works and who is responsible for implementing it | D79: =E79 -> If a customer can provide proof that they were medically impacted by COVID or were laid off directly due to COVID they were allowed to enter into a payment arrangement with respect to outstanding balances on their electricity bill. This program was implemented by the BPL, on the recommendation of the GOB. | E79: If a customer can provide proof that they were medically impacted by COVID or were laid off directly due to COVID they were allowed to enter into a payment arrangement with respect to outstanding balances on their electricity bill. This program was implemented by the BPL, on the recommendation of the GOB. | F79: BPL would be the best to respond to this. But the two main approaches are payment deferral and "Budget Billing".
C80: Outlook sentiment
C81: How enthusiastic are you about the investment prospects in renewables, electric mobility, and resilience compared to this time last year, and why? | D81: =E81 -> Same | E81: Same | F81: Less
C82: Please elaborate on your reasoning for the previous response. | D82: =E82 -> The interest remains the same and external funding options still seem available. Provide the COVID epidemic does not start to impact these elements projects should still be possible. | E82: The interest remains the same and external funding options still seem available. Provide the COVID epidemic does not start to impact these elements projects should still be possible. | F82: Lack of funding due to decrease in private business and government revenue as a result of Covid.

Sheet Barbados
B1: Barbados
C2: Overall Indicator | E2: Charmaine Gill-Evans, Barbados Light & Power Company Ltd | F2: Marsha Atherley-Ikechi, Fair Trading Commission
A3: 1 | C3: Enabling Environment for Renewable Energy (RE) Investments | D3: Consolidated Survey Response | E3: Respondent #7 | F3: Respondent #20
C4: Government - Renewable Energy Strategy | D4: Y/N | E4: Y/N
B5: 1 | C5: Does your country have a strategic plan to develop renewable energy? | D5: =IF(B5<>0,IF(ISBLANK(E5),"NA",E5)," ") -> NA
C6: Which of the following renewable generation options is included in you country's strategic plan to develop renewable energy? | D6: =IF(B6<>0,IF(ISBLANK(E6),"NA",E6)," ") ->  | E6: Solar PV, Onshore Wind, Biomass, Waste-to-Energy | F6: Solar PV, Onshore Wind, Offshore Wind, Biomass, Waste-to-Energy
B7: 2 | C7: Does your country have a specific target for renewable energy? | D7: Yes | E7: Yes | F7: Yes
C8: If yes, what is the target and target year? | E8: This Barbados National Energy Policy (BNEP) 2019-2030 document is designed to achieve the 100% renewable energy and carbon neutral island- state transformational goals by 2030. These include: • Provision of reliable, safe, affordable, sustainable, modern and climate friendly energy services to all residents and visitors. • Zero domestic consumption of fossil fuels economy wide. • Export of all hydrocarbons produced both on land and offshore. • Maximizing local participation (individual and corporate) in distributed renewable energy (RE) generation and storage (democratization of energy). • Minimize the outflow of foreign exchange. • Creating a regional center of excellence in RE research and development. | F8: 100% RE by 2030
C9: What is the current breakdown of your country's energy mix? | E9: 96.4% fossil fuel, rest renewables | F9: 95% FF, 5% solar PV
B10: 3 | C10: Does your country have an Integrated Resource Plan (IRP) that was produced within the last three years? | D10: No | E10: No | F10: No
C11: Utilities | D11: Y/N | E11: Y/N
B12: 1 | C12: When planning generation expansion, does the utility consider RE options? | D12: =IF(B12<>0,IF(ISBLANK(E12),"NA",E12)," ") -> Yes | E12: Yes | F12: Yes
B13: 2 | C13: Can the utility safely recover RE investments through tariffs like it can recover fossil fuel costs? | D13: =IF(B13<>0,IF(ISBLANK(E13),"NA",E13)," ") -> Yes | E13: Yes | F13: Yes
B14: 3 | C14: Are there clear, specific planning and permitting processes and rules in place for developing RE? | D14: Yes | E14: Yes | F14: No
C15: On average, how long does it take for the power utility to get investments in RE projects approved by the regulatory authority (or relevant entity) for recovery through tariffs? | E15: The length of time is variable. | F15: 9-12 months
C16: IPPs
B17: 1 | C17: Can the utility safely recover purchases of RE from third parties, just as it recovers fossil fuel costs? | D17: Yes | E17: Yes | F17: Yes
B18: 2 | C18: Are there workable precedents or rules for PPA terms and grid operation rules? | D18: No | E18: No | F18: Yes
B19: 3 | C19: Are there clear and effective licensing processes and requirements in place for IPPs? | D19: No | E19: No | F19: Yes
B20: 4 | C20: Does the utility have an obligation to purchase from IPPs when it is cheaper than generating the power itself? | D20: Yes | E20: Yes | F20: Yes
B21: 5 | C21: Does the PPA have any take-or-pay arrangements? | D21: Unknown | E21: Unknown
C22: Distributed generation
B23: 1 | C23: Do you have a registry or database of distributed generation? | D23: Yes | E23: Yes | F23: Yes
C24: What was the number of existing distributed scale RE systems in 2019? | E24: There were 1928 existing distributed scale RE systems as at end 2019. | F24: 1800
C25: Is there an aggregate maximum capacity for distributed generation? | E25: Yes | F25: No
C26: What is the total installed capacity from renewable distributed generation in your country? | E26: 26MW as at end of 2019. 34MW as at end June of 2020. | F26: 22MW
C27: What was the total generation from existing distributed scale RE systems in 2019? | E27: Purchased power in 2019 - 33,673,346kWh
B28: 2 | C28: Is there a standard arrangement in place for customers to sell electricity to the utility at a reasonable price, for a reasonable timeframe, and with a clear interconnection agreement? | D28: Yes | E28: Yes | F28: Yes
A30: 2 | C30: Existing renewable generation
C31: What is the number of existing Utility-Scale RE projects? | E31: One. The Trents 10 MW solar PV solar plant, a BLPC facility was commissioned in 2016. | F31: 1
B32: 1 | C32: What was the total electricity generated in 2019? (MWh) | D32: 980072.162 | E32: =980072162/1000 -> 980072.162
B33: 1 | C33: What was the total electricity generated from Utility Scale RE projects in 2019? (MWh) | D33: 18780.685 | E33: =18780685/1000 -> 18780.685
C34: Please provide as much information as possible for existing RE projects in the box below as: - Project Name - Developer - Offtaker - Renewable Energy Technology Type - Start of Commercial Operation (Year) - Estimated Capacity Factor (in %) OR Estimated Annual Production (in MWh) - Installed Capacity (MW) - Length of PPA | D34: =IF(B34<>0,IF(ISBLANK(E34),"NA",E34)," ") ->  | E34: Existing BLPC RE projects – Project Name – Trents Solar PV – Developer - Barbados Light & Power – Offtaker - Barbados Light & Power – RE technology type – Solar PV – Start of commercial operation (year) - 2016 – Estimated capacity factor (in %) OR estimated annual production (in MWh) – est. 18, 000 MWh p.a. – Installed capacity (MW) – 10MW – Length of PPA – N/A
D35: =IF(B35<>0,IF(ISBLANK(E35),"NA",E35)," ") -> 
A36: 3 | C36: Planned Utility-Scale Renewable Energy Projects
B37: 1 | C37: Does your country have an estimate of planned installed capacity expected to come online from-utility scale RE projects? | D37: Yes | E37: Yes | F37: No
C38: How much installed capacity from RE is expected to come online in the next 3 years? (MW) | E38: 295
B39: 2 | C39: How much renewable energy generation is expected to come online in the next 3 years? (MWh) | D39: 687650 | E39: =687.65*1000 -> 687650
B40: 3 | C40: Is climate resilience incorporated in your IRP or national policy? | D40: Yes | E40: Yes | F40: No
C41: Please provide as much information as possible for RE projects currently under development in the box below as: - Project Name - Developer - Offtaker - Renewable Energy Technology Type - Start of Commercial Operation (Year) - Estimated Capacity Factor (in %) OR Estimated Annual Production (in MWh) - Installed Capacity (MW) - Length of PPA | E41: BLPC RE projects currently under development: – Project Name – Lamberts Wind Farm – Developer - Barbados Light & Power – Offtaker - Barbados Light & Power – RE technology type – Wind Energy Conversion – Start of commercial operation (year) – COD Jan 2022 – Estimated capacity factor (in %) OR estimated annual production (in MWh) – 29,100 MWh p.a. est. – Installed capacity (MW) – 10MW – Length of PPA - Currently undefined. 20 year terms anticipated. – Project Name – Lower Estate Solar PV – Developer - Barbados Light & Power – Offtaker - Barbados Light & Power – RE technology type – Solar PV – Start of commercial operation (year) – COD Oct 2021 – Estimated capacity factor (in %) OR estimated annual production (in MWh) – 15, 579 MWh p.a. est. – Installed capacity (MW) – 7MW – Length of PPA - Currently undefined. 20 year terms anticipated. While there is much IPP interest, many of the larger projects are under development and awaiting the relevant licensing regime and PPA process to be completed. Also, there are NDA's etc. in force with those entities currently being negotiated with and as such we cannot share detailed or specific information in the interest of confidentiality.
A43: 4 | C43: Electric Mobility
B44: 1 | C44: Does your country have policies in place or draft legislation to promote the uptake of electric mobility? | D44: Yes | E44: Yes | F44: No
B45: 2 | C45: Does your country have specific targets for the uptake of electric vehicles? | D45: No | E45: No | F45: No
C46: What is the target and target year? | E46: No specific target was identified but increased use was to be promoted through the relevant policies and incentive mechanisms to be developed. There are 16 specific objectives and 24 policy measures outlined for Transportation Sector in the Government policy document and implementation plan. Please see attached files Barbados National Energy Policy and Implementation Plan Link: https://www.energy.gov.bb/web/national-energy-policy-for-barbados-2019-2030
C47: How many electric cars are currently in your country? | E47: Approximately 550 cars and vans, and 33 buses to date. (hybrids are not included, only all electric vehicles) | F47: >350
C48: How many charging stations are in your country? | E48: 39 public charging locations Over 400 hundred private and home chargers Go to www.plugshare.com and search Barbados for a visual representation. | F48: >40
C50: Descriptive CREF Index Survey
C51: Enabling Environment for Renewable Energy (RE) Investments
C52: Renewable energy strategy
C53: Which of the following renewable generation options is included in your country's strategic plan to develop renewable energy? - Solar PV - Offshore wind - Biomass - Waste to energy - Hydro -Geothermal - Other | D53: =E53 -> Solar PV, Onshore Wind, Biomass, Waste-to-Energy | E53: =E6 -> Solar PV, Onshore Wind, Biomass, Waste-to-Energy | F53: =F6 -> Solar PV, Onshore Wind, Offshore Wind, Biomass, Waste-to-Energy
C54: What is the target and target year? | D54: =E54 -> This Barbados National Energy Policy (BNEP) 2019-2030 document is designed to achieve the 100% renewable energy and carbon neutral island- state transformational goals by 2030. These include: • Provision of reliable, safe, affordable, sustainable, modern and climate friendly energy services to all residents and visitors. • Zero domestic consumption of fossil fuels economy wide. • Export of all hydrocarbons produced both on land and offshore. • Maximizing local participation (individual and corporate) in distributed renewable energy (RE) generation and storage (democratization of energy). • Minimize the outflow of foreign exchange. • Creating a regional center of excellence in RE research and development. | E54: =E8 -> This Barbados National Energy Policy (BNEP) 2019-2030 document is designed to achieve the 100% renewable energy and carbon neutral island- state transformational goals by 2030. These include: • Provision of reliable, safe, affordable, sustainable, modern and climate friendly energy services to all residents and visitors. • Zero domestic consumption of fossil fuels economy wide. • Export of all hydrocarbons produced both on land and offshore. • Maximizing local participation (individual and corporate) in distributed renewable energy (RE) generation and storage (democratization of energy). • Minimize the outflow of foreign exchange. • Creating a regional center of excellence in RE research and development. | F54: =F8 -> 100% RE by 2030
C55: What is the current breakdown of your country's energy mix? | D55: =E55 -> 96.4% fossil fuel, rest renewables | E55: =E9 -> 96.4% fossil fuel, rest renewables | F55: =F9 -> 95% FF, 5% solar PV
C56: Utilities
C57: On average, how long does it take for the power utility to get investments in RE projects approved by the regulatory authority 9or the relevant entity) for recovery through tariffs? | D57: =E57 -> The length of time is variable. | E57: =E15 -> The length of time is variable. | F57: =F15 -> 9-12 months
C58: Distributed Generation
C59: What is the number of existing distributed scale RE systems in 2019? | D59: =E59 -> There were 1928 existing distributed scale RE systems as at end 2019. | E59: =E24 -> There were 1928 existing distributed scale RE systems as at end 2019. | F59: 1800
C60: What is the total installed capacity from renewable distributed generation in your country? | D60: =E60 -> 26MW as at end of 2019. 34MW as at end June of 2020. | E60: =E26 -> 26MW as at end of 2019. 34MW as at end June of 2020. | F60: 22MW
C61: What was the total generation from existing distributed scale RE systems in 2019? | D61: =E61 -> Purchased power in 2019 - 33,673,346kWh | E61: =E27 -> Purchased power in 2019 - 33,673,346kWh | F61: 0
C62: Existing renewable generation
C63: Existing Utility-Scale Renewable Energy Projects
C64: What is the number of existing utility-scale RE projects? | D64: =E64 -> One. The Trents 10 MW solar PV solar plant, a BLPC facility was commissioned in 2016. | E64: =E31 -> One. The Trents 10 MW solar PV solar plant, a BLPC facility was commissioned in 2016. | F64: 1
C65: What was the total electricity generated in 2019 (MWh)? | D65: =E65 -> 980072.162 | E65: 980072.162 | F65: 0
C66: What was the total electricity generated from utility-scale RE projects in 2019 (MWh)? | D66: 18780.685 | E66: 18780.685 | F66: 0
C67: Please provide as much information as possible for existing RE projects in the box below as: - Project Name - Developer - Offtaker - Renewable Energy Technology Type - Start of Commercial Operation (Year) - Estimated Capacity Factor (in %) OR Estimated Annual Production (in MWh) - Installed Capacity (MW) - Length of PPA | D67: Existing BLPC RE projects – Project Name – Trents Solar PV – Developer - Barbados Light & Power – Offtaker - Barbados Light & Power – RE technology type – Solar PV – Start of commercial operation (year) - 2016 – Estimated capacity factor (in %) OR estimated annual production (in MWh) – est. 18, 000 MWh p.a. – Installed capacity (MW) – 10MW – Length of PPA – N/A | E67: Existing BLPC RE projects – Project Name – Trents Solar PV – Developer - Barbados Light & Power – Offtaker - Barbados Light & Power – RE technology type – Solar PV – Start of commercial operation (year) - 2016 – Estimated capacity factor (in %) OR estimated annual production (in MWh) – est. 18, 000 MWh p.a. – Installed capacity (MW) – 10MW – Length of PPA – N/A | F67: 0
C68: Planned renewable generation
C69: Potential Utility-Scale Renewable Energy Projects
C70: How much installed capacity from RE is expected to come online in the next 3 years? | D70: =E70 -> 295 | E70: =E38 -> 295 | F70: 0
C71: How much renewable energy generation is expected to come online in the next 3 years? | D71: =E71 -> 687650 | E71: =E39 -> 687650 | F71: 0
C72: Please provide as much information as possible for RE projects currently under development in the box below as: - Project Name - Developer - Offtaker - Renewable Energy Technology Type - Start of Commercial Operation (Year) - Estimated Capacity Factor (in %) OR Estimated Annual Production (in MWh) - Installed Capacity (MW) - Length of PPA | D72: BLPC RE projects currently under development: – Project Name – Lamberts Wind Farm – Developer - Barbados Light & Power – Offtaker - Barbados Light & Power – RE technology type – Wind Energy Conversion – Start of commercial operation (year) – COD Jan 2022 – Estimated capacity factor (in %) OR estimated annual production (in MWh) – 29,100 MWh p.a. est. – Installed capacity (MW) – 10MW – Length of PPA - Currently undefined. 20 year terms anticipated. – Project Name – Lower Estate Solar PV – Developer - Barbados Light & Power – Offtaker - Barbados Light & Power – RE technology type – Solar PV – Start of commercial operation (year) – COD Oct 2021 – Estimated capacity factor (in %) OR estimated annual production (in MWh) – 15, 579 MWh p.a. est. – Installed capacity (MW) – 7MW – Length of PPA - Currently undefined. 20 year terms anticipated. While there is much IPP interest, many of the larger projects are under development and awaiting the relevant licensing regime and PPA process to be completed. Also, there are NDA's etc. in force with those entities currently being negotiated with and as such we cannot share detailed or specific information in the interest of confidentiality. | E72: =E41 -> BLPC RE projects currently under development: – Project Name – Lamberts Wind Farm – Developer - Barbados Light & Power – Offtaker - Barbados Light & Power – RE technology type – Wind Energy Conversion – Start of commercial operation (year) – COD Jan 2022 – Estimated capacity factor (in %) OR estimated annual production (in MWh) – 29,100 MWh p.a. est. – Installed capacity (MW) – 10MW – Length of PPA - Currently undefined. 20 year terms anticipated. – Project Name – Lower Estate Solar PV – Developer - Barbados Light & Power – Offtaker - Barbados Light & Power – RE technology type – Solar PV – Start of commercial operation (year) – COD Oct 2021 – Estimated capacity factor (in %) OR estimated annual production (in MWh) – 15, 579 MWh p.a. est. – Installed capacity (MW) – 7MW – Length of PPA - Currently undefined. 20 year terms anticipated. While there is much IPP interest, many of the larger projects are under development and awaiting the relevant licensing regime and PPA process to be completed. Also, there are NDA's etc. in force with those entities currently being negotiated with and as such we cannot share detailed or specific information in the interest of confidentiality. | F72: 0
C73: Electric Mobility
C74: What is the target and target year? | D74: =E74 -> No specific target was identified but increased use was to be promoted through the relevant policies and incentive mechanisms to be developed. There are 16 specific objectives and 24 policy measures outlined for Transportation Sector in the Government policy document and implementation plan. Please see attached files Barbados National Energy Policy and Implementation Plan Link: https://www.energy.gov.bb/web/national-energy-policy-for-barbados-2019-2030 | E74: =E46 -> No specific target was identified but increased use was to be promoted through the relevant policies and incentive mechanisms to be developed. There are 16 specific objectives and 24 policy measures outlined for Transportation Sector in the Government policy document and implementation plan. Please see attached files Barbados National Energy Policy and Implementation Plan Link: https://www.energy.gov.bb/web/national-energy-policy-for-barbados-2019-2030 | F74: 0
C75: How many electric cars are currently in your country? | D75: =E75 -> Approximately 550 cars and vans, and 33 buses to date. (hybrids are not included, only all electric vehicles) | E75: =E47 -> Approximately 550 cars and vans, and 33 buses to date. (hybrids are not included, only all electric vehicles) | F75: >350
C76: How many charging stations are in your country? | D76: 39 public charging locations Over 400 hundred private and home chargers Go to www.plugshare.com and search Barbados for a visual representation. | E76: 39 public charging locations Over 400 hundred private and home chargers Go to www.plugshare.com and search Barbados for a visual representation. | F76: >40
C77: Covid
C78: Has any measure been implemented to respond to disruptions in revenue collections from electricity services (particularly given the current circumstances during the COVID pandemic)? | D78: Yes | E78: Yes | F78: Yes
C79: If yes, to get a score on this kindly describe how the measure works and who is responsible for implementing it | D79: The utility has made additional arrangements to facilitate alternate revenue collection means (e.g. online payments, payment by credit cards and payment plans) to allow customers to transact business while observing the public health protocols. | E79: The utility has made additional arrangements to facilitate alternate revenue collection means (e.g. online payments, payment by credit cards and payment plans) to allow customers to transact business while observing the public health protocols.
C80: Outlook sentiment
C81: How enthusiastic are you about the investment prospects in renewables, electric mobility, and resilience compared to this time last year, and why? | D81: More | E81: More | F81: Same
C82: Please elaborate on your reasoning for the previous response. | D82: The prevailing Government policies support the implementation of renewables, the growth of electric mobility and increased awareness of the need for climate resilience. The Integrated Resource and Resilience Plan (IRRP) exercise currently being undertaken by the Government of Barbados, with the assistance of the IADB, has resilience as a necessary objective or component identified in the plan. | E82: The prevailing Government policies support the implementation of renewables, the growth of electric mobility and increased awareness of the need for climate resilience. The Integrated Resource and Resilience Plan (IRRP) exercise currently being undertaken by the Government of Barbados, with the assistance of the IADB, has resilience as a necessary objective or component identified in the plan.

Sheet Belize
B1: Belize
C2: Overall Indicator | E2: Danielle Jones, Belize Electricity Limited | F2: Geon Hansen, Ministry of Public Service, Energy and Public Utilities
A3: 1 | C3: Enabling Environment for Renewable Energy (RE) Investments | D3: Consolidated Survey Response | E3: Respondent #8 | F3: Respondent #21
C4: Government - Renewable Energy Strategy | E4: Y/N
B5: 1 | C5: Does your country have a strategic plan to develop renewable energy? | D5: =IF(B5<>0,IF(ISBLANK(E5),"NA",E5)," ") -> NA
C6: Which of the following renewable generation options is included in you country's strategic plan to develop renewable energy? | E6: Solar PV, Biomass, Hydro | F6: Solar PV, Onshore Wind, Biomass, Hydro
B7: 2 | C7: Does your country have a specific target for renewable energy? | D7: Yes | E7: Yes | F7: Yes
C8: If yes, what is the target and target year? | E8: Ministry of Energy, Science & Technology and Public Utilities Strategic Plan 2012-2017: Strategic Element #1: Improve energy efficiency and conservation 11 by at least 30 per cent by 2033, using energy utilization and GDP generated in 2011 as the baseline. Strategic Element #2: Reduce the country’s dependence on fossil fuels 12 consumption by 50 per cent by 2020, from one million barrels to one-half million barrels by increasing the provision of modern energy carriers utilizing domestic energy resources, coupled with improving energy efficiency and conservation Strategic Element #3: To triple the amount of modern energy carriers 14 derived from Agricultural, Forestry and Fisheries production and processing, including municipal solid waste (MSW) by 2020 | F8: 85% by 2030
C9: What is the current breakdown of your country's energy mix? | E9: Hydro 11.1% Co-generation 13.7% Mexican Imports (CFE) 57.3% Fossil Fuel 17.7% Solar 0.1% Total 100.0% | F9: Diesel - 23.02% Gasoline - 22.70% Biomass (Bagasse and Firewood) - 21.74% Imported Electricity - 8.36% LPG - 7.99% Kerosene - 5.52% Fuel Oil - 5.34% Crude Oil - 3.44% Hydro - 1.63% Petroleum Gas - 0.25% Solar PV - 0.01%
B10: 3 | C10: Does your country have an Integrated Resource Plan (IRP) that was produced within the last three years? | D10: Yes | E10: Yes | F10: No
C11: Utilities | E11: Y/N
B12: 1 | C12: When planning generation expansion, does the utility consider RE options? | D12: =IF(B12<>0,IF(ISBLANK(E12),"NA",E12)," ") -> Yes | E12: Yes | F12: Yes
B13: 2 | C13: Can the utility safely recover RE investments through tariffs like it can recover fossil fuel costs? | D13: =IF(B13<>0,IF(ISBLANK(E13),"NA",E13)," ") -> Yes | E13: Yes | F13: Yes
B14: 3 | C14: Are there clear, specific planning and permitting processes and rules in place for developing RE? | D14: =IF(B14<>0,IF(ISBLANK(E14),"NA",E14)," ") -> Yes | E14: Yes | F14: No
C15: On average, how long does it take for the power utility to get investments in RE projects approved by the regulatory authority (or relevant entity) for recovery through tariffs? | D15: =IF(B15<>0,IF(ISBLANK(E15),"NA",E15)," ") ->  | E15: Rate applications which would include recovery for investments are done on a four year planning horizon in the first instance, a Full Tariff Review Proceeding, and revisited annually by means of Annual Review Proceedings. So in practice, a proposed investment can be reviewed and approved within the space of a year. | F15: 30 days
C16: IPPs | E16: Y/N
B17: 1 | C17: Can the utility safely recover purchases of RE from third parties, just as it recovers fossil fuel costs? | D17: =IF(B17<>0,IF(ISBLANK(E17),"NA",E17)," ") -> No | E17: No | F17: Yes
B18: 2 | C18: Are there workable precedents or rules for PPA terms and grid operation rules? | D18: =IF(B18<>0,IF(ISBLANK(E18),"NA",E18)," ") -> Yes | E18: Yes | F18: Yes
B19: 3 | C19: Are there clear and effective licensing processes and requirements in place for IPPs? | D19: =IF(B19<>0,IF(ISBLANK(E19),"NA",E19)," ") -> Yes | E19: Yes | F19: Yes
B20: 4 | C20: Does the utility have an obligation to purchase from IPPs when it is cheaper than generating the power itself? | D20: =IF(B20<>0,IF(ISBLANK(E20),"NA",E20)," ") -> Yes | E20: Yes | F20: No
B21: 5 | C21: Does the PPA have any take-or-pay arrangements? | D21: =IF(B21<>0,IF(ISBLANK(E21),"NA",E21)," ") -> Yes | E21: Yes | F21: Yes
C22: Distributed generation | E22: Y/N
B23: 1 | C23: Do you have a registry or database of distributed generation? | D23: =IF(B23<>0,IF(ISBLANK(E23),"NA",E23)," ") -> No | E23: No | F23: No
C24: What was the number of existing distributed scale RE systems in 2019? | E24: This number is unknown to the utility. | F24: Unknown
C25: Is there an aggregate maximum capacity for distributed generation? | E25: No | F25: Yes
C26: What is the total installed capacity from renewable distributed generation in your country? | E26: Unknown at this time. | F26: Unknown
C27: What was the total generation from existing distributed scale RE systems in 2019? | E27: Unknown at this time. | F27: Unknown
B28: 2 | C28: Is there a standard arrangement in place for customers to sell electricity to the utility at a reasonable price, for a reasonable timeframe, and with a clear interconnection agreement? | D28: No | E28: No | F28: No
A30: 2 | C30: Existing renewable generation
C31: What is the number of existing Utility-Scale RE projects? | D31: =IF(B31<>0,IF(ISBLANK(E31),"NA",E31)," ") ->  | E31: Seven 1. BECOL - Mollejon 2. BECOL - Chalillo 3. BECOL - Vaca 4. Hydro Maya 5. BELCOGEN 6. Santander 7. JICA (UB Solar) | F31: 7
B32: 1 | C32: What was the total electricity generated in 2018? (MWh) | D32: =IF(B32<>0,IF(ISBLANK(E32),"NA",E32)," ") -> 669185 | E32: 669185 | F32: 688728.4
B33: 1 | C33: What was the total electricity generated from Utility Scale RE projects in 2018? (MWh) | D33: =IF(B33<>0,IF(ISBLANK(E33),"NA",E33)," ") -> 167139 | E33: 167139 | F33: 167765
C34: Please provide as much information as possible for existing RE projects in the box below as: - Project Name - Developer - Offtaker - Renewable Energy Technology Type - Start of Commercial Operation (Year) - Estimated Capacity Factor (in %) OR Estimated Annual Production (in MWh) - Installed Capacity (MW) - Length of PPA | D34: =IF(B34<>0,IF(ISBLANK(E34),"NA",E34)," ") ->  | E34: – Project Name: BECOL - Mollejon, BECOL - Chalillo, BECOL - Vaca, Hydro Maya, BELCOGEN, Santander, JICA (UB Solar) – Developer: Belize Electric Company Limited, Belize Electric Company Limited, Belize Electric Company Limited, Hydro Maya Ltd, Belize Cogeneration Energy Ltd, Santander Sugar Energy Limited, Japan International Co – Offtaker: None, None, None, None, None, None, University Of Belize – RE technology type: Hydro, Hydro, Hydro, Hydro, Co-generation/ Biomass, Co-generation/ Biomass, Solar – Start of commercial operation (year) 19 April 1991, 31 October 2005, 15 March 2007, 15 September 2003, 02 February 2007, 13 December 2016, 27 August 2012, 2019 annual production (in MWh): 40,800; 23,815; 9,954; 68,533; 23,387; 650 Three year (2017-2019) average annual production (in MWh) 124,410; 63,838; 13,198; 68,123; 21,242; 605 – Installed capacity (MW): 25.2; 7.0; 19.0; 3.3; 13.5; 8.0; 0.3 – Length of PPA (Years) 29.4; 14.9; 13.5; 17.0; 13.6; 3.7; 8.0 | F34: 1.2 Inventory of Generating Plants in Belize (page 16): http://biblioteca.olade.org/opac-tmpl/Documentos/old0427.pdf
A36: 3 | C36: Planned Utility-Scale Renewable Energy Projects
B37: 1 | C37: Does your country have an estimate of planned installed capacity expected to come online from-utility scale RE projects? | D37: =IF(B37<>0,IF(ISBLANK(E37),"NA",E37)," ") -> Yes | E37: Yes | F37: Yes
C38: How much installed capacity from RE is expected to come online in the next 3 years? (MW) | D38: =IF(B38<>0,IF(ISBLANK(E38),"NA",E38)," ") ->  | E38: Business Plan RE Goals: 1. Increase BEL's firm capacity with in-country generation of 30 MW Solar energy from BECOL. 2. Increase BEL's firm capacity with in-country generation of 15 MW Solar energy from BAPCOL. 3. Increase BEL's firm capacity with in-country generation of Hydro energy from Southern Renewable Energy Ltd. | F38: 15 MW
B39: 2 | C39: How much renewable energy generation is expected to come online in the next 3 years? (MWh) | D39: =IF(B39<>0,IF(ISBLANK(E39),"NA",E39)," ") -> At least 45 MW of Utility Solar | E39: At least 45 MW of Utility Solar | F39: Unknown
B40: 3 | C40: Is climate resilience incorporated in your IRP or national policy? | D40: =IF(B40<>0,IF(ISBLANK(E40),"NA",E40)," ") -> Yes | E40: Yes | F40: Yes
C41: Please provide as much information as possible for RE projects currently under development in the box below as: - Project Name - Developer - Offtaker - Renewable Energy Technology Type - Start of Commercial Operation (Year) - Estimated Capacity Factor (in %) OR Estimated Annual Production (in MWh) - Installed Capacity (MW) - Length of PPA | D41: =IF(B41<>0,IF(ISBLANK(E41),"NA",E41)," ") ->  | E41: – Project Names: BECOL, BAPCOL , SREL – Developer: Belize Electric Company Limited, Belize Electric Company Limited, Southern Renewable Energy Ltd – Offtaker: None None None – RE technology type: Solar, Solar, Hydro – Start of commercial operation (year) In negotiations In negotiations In negotiations – Estimated capacity factor (in %) OR estimated annual production (in MWh) n/a n/a n/a – Installed capacity (MW) 30.0, 15.0, In negotiations | F41: Unknown
A43: 4 | C43: Electric Mobility
B44: 1 | C44: Does your country have policies in place or draft legislation to promote the uptake of electric mobility? | D44: =IF(B44<>0,IF(ISBLANK(E44),"NA",E44)," ") -> No | E44: No | F44: No
B45: 2 | C45: Does your country have specific targets for the uptake of electric vehicles? | D45: =IF(B45<>0,IF(ISBLANK(E45),"NA",E45)," ") -> No | E45: No | F45: No
C46: What is the target and target year? | D46: =IF(B46<>0,IF(ISBLANK(E46),"NA",E46)," ") ->  | E46: N/A | F46: While no draft legislation or specific targets have been determined for the uptake of electric vehicles, initial discussions and work have began with the aim to develop a E-Mobility/Sustainable Transport Strategy for Belize.
C47: How many electric cars are currently in your country? | D47: =IF(B47<>0,IF(ISBLANK(E47),"NA",E47)," ") ->  | E47: 5 - 10 vehicles | F47: Approx. <5.
C48: How many charging stations are in your country? | D48: =IF(B48<>0,IF(ISBLANK(E48),"NA",E48)," ") ->  | E48: There are currently no public charging stations; however, an upcoming pilot project will create charging stations across Belize by 2021. | F48: Approx. 1-5.
C50: Descriptive CREF Index Survey
C51: Enabling Environment for Renewable Energy (RE) Investments
C52: Renewable energy strategy
C53: Which of the following renewable generation options is included in your country's strategic plan to develop renewable energy? - Solar PV - Offshore wind - Biomass - Waste to energy - Hydro -Geothermal - Other | D53: =E53 -> Solar PV, Biomass, Hydro | E53: =E6 -> Solar PV, Biomass, Hydro | F53: =F6 -> Solar PV, Onshore Wind, Biomass, Hydro
C54: What is the target and target year? | D54: =E54 -> Ministry of Energy, Science & Technology and Public Utilities Strategic Plan 2012-2017: Strategic Element #1: Improve energy efficiency and conservation 11 by at least 30 per cent by 2033, using energy utilization and GDP generated in 2011 as the baseline. Strategic Element #2: Reduce the country’s dependence on fossil fuels 12 consumption by 50 per cent by 2020, from one million barrels to one-half million barrels by increasing the provision of modern energy carriers utilizing domestic energy resources, coupled with improving energy efficiency and conservation Strategic Element #3: To triple the amount of modern energy carriers 14 derived from Agricultural, Forestry and Fisheries production and processing, including municipal solid waste (MSW) by 2020 | E54: =E8 -> Ministry of Energy, Science & Technology and Public Utilities Strategic Plan 2012-2017: Strategic Element #1: Improve energy efficiency and conservation 11 by at least 30 per cent by 2033, using energy utilization and GDP generated in 2011 as the baseline. Strategic Element #2: Reduce the country’s dependence on fossil fuels 12 consumption by 50 per cent by 2020, from one million barrels to one-half million barrels by increasing the provision of modern energy carriers utilizing domestic energy resources, coupled with improving energy efficiency and conservation Strategic Element #3: To triple the amount of modern energy carriers 14 derived from Agricultural, Forestry and Fisheries production and processing, including municipal solid waste (MSW) by 2020 | F54: =F8 -> 85% by 2030
C55: What is the current breakdown of your country's energy mix? | D55: Hydro 11.1% Co-generation 13.7% Mexican Imports (CFE) 57.3% Fossil Fuel 17.7% Solar 0.1% Total 100.0% | E55: =E9 -> Hydro 11.1% Co-generation 13.7% Mexican Imports (CFE) 57.3% Fossil Fuel 17.7% Solar 0.1% Total 100.0% | F55: =F9 -> Diesel - 23.02% Gasoline - 22.70% Biomass (Bagasse and Firewood) - 21.74% Imported Electricity - 8.36% LPG - 7.99% Kerosene - 5.52% Fuel Oil - 5.34% Crude Oil - 3.44% Hydro - 1.63% Petroleum Gas - 0.25% Solar PV - 0.01%
C56: Utilities
C57: On average, how long does it take for the power utility to get investments in RE projects approved by the regulatory authority 9or the relevant entity) for recovery through tariffs? | D57: Rate applications which would include recovery for investments are done on a four year planning horizon in the first instance, a Full Tariff Review Proceeding, and revisited annually by means of Annual Review Proceedings. So in practice, a proposed investment can be reviewed and approved within the space of a year. | E57: =E15 -> Rate applications which would include recovery for investments are done on a four year planning horizon in the first instance, a Full Tariff Review Proceeding, and revisited annually by means of Annual Review Proceedings. So in practice, a proposed investment can be reviewed and approved within the space of a year. | F57: =F15 -> 30 days
C58: Distributed Generation
C59: What is the number of existing distributed scale RE systems in 2018? | D59: This number is unknown to the utility. | E59: =E24 -> This number is unknown to the utility. | F59: =F24 -> Unknown
C60: What is the total installed capacity from renewable distributed generation in your country? | D60: Unknown at this time. | E60: =E26 -> Unknown at this time. | F60: =F25 -> Yes
C61: What was the total generation from existing distributed scale RE systems in 2018? | D61: Unknown at this time. | E61: =E27 -> Unknown at this time. | F61: Unknown
C62: Existing renewable generation | F62: Unknown
C63: Existing Utility-Scale Renewable Energy Projects
C64: What is the number of existing utility-scale RE projects? | D64: Seven 1. BECOL - Mollejon 2. BECOL - Chalillo 3. BECOL - Vaca 4. Hydro Maya 5. BELCOGEN 6. Santander 7. JICA (UB Solar) | E64: =E31 -> Seven 1. BECOL - Mollejon 2. BECOL - Chalillo 3. BECOL - Vaca 4. Hydro Maya 5. BELCOGEN 6. Santander 7. JICA (UB Solar) | F64: =F31 -> 7
C65: What was the total electricity generated in 2018 (MWh)? | D65: 669185 | E65: =E32 -> 669185 | F65: =F32 -> 688728.4
C66: What was the total electricity generated from utility-scale RE projects in 2018 (MWh)? | D66: 167139 | E66: =E33 -> 167139 | F66: 167765
C67: Please provide as much information as possible for existing RE projects in the box below as: - Project Name - Developer - Offtaker - Renewable Energy Technology Type - Start of Commercial Operation (Year) - Estimated Capacity Factor (in %) OR Estimated Annual Production (in MWh) - Installed Capacity (MW) - Length of PPA | D67: – Project Name: BECOL - Mollejon, BECOL - Chalillo, BECOL - Vaca, Hydro Maya, BELCOGEN, Santander, JICA (UB Solar) – Developer: Belize Electric Company Limited, Belize Electric Company Limited, Belize Electric Company Limited, Hydro Maya Ltd, Belize Cogeneration Energy Ltd, Santander Sugar Energy Limited, Japan International Co – Offtaker: None, None, None, None, None, None, University Of Belize – RE technology type: Hydro, Hydro, Hydro, Hydro, Co-generation/ Biomass, Co-generation/ Biomass, Solar – Start of commercial operation (year) 19 April 1991, 31 October 2005, 15 March 2007, 15 September 2003, 02 February 2007, 13 December 2016, 27 August 2012, 2019 annual production (in MWh): 40,800; 23,815; 9,954; 68,533; 23,387; 650 Three year (2017-2019) average annual production (in MWh) 124,410; 63,838; 13,198; 68,123; 21,242; 605 – Installed capacity (MW): 25.2; 7.0; 19.0; 3.3; 13.5; 8.0; 0.3 – Length of PPA (Years) 29.4; 14.9; 13.5; 17.0; 13.6; 3.7; 8.0 | E67: =E34 -> – Project Name: BECOL - Mollejon, BECOL - Chalillo, BECOL - Vaca, Hydro Maya, BELCOGEN, Santander, JICA (UB Solar) – Developer: Belize Electric Company Limited, Belize Electric Company Limited, Belize Electric Company Limited, Hydro Maya Ltd, Belize Cogeneration Energy Ltd, Santander Sugar Energy Limited, Japan International Co – Offtaker: None, None, None, None, None, None, University Of Belize – RE technology type: Hydro, Hydro, Hydro, Hydro, Co-generation/ Biomass, Co-generation/ Biomass, Solar – Start of commercial operation (year) 19 April 1991, 31 October 2005, 15 March 2007, 15 September 2003, 02 February 2007, 13 December 2016, 27 August 2012, 2019 annual production (in MWh): 40,800; 23,815; 9,954; 68,533; 23,387; 650 Three year (2017-2019) average annual production (in MWh) 124,410; 63,838; 13,198; 68,123; 21,242; 605 – Installed capacity (MW): 25.2; 7.0; 19.0; 3.3; 13.5; 8.0; 0.3 – Length of PPA (Years) 29.4; 14.9; 13.5; 17.0; 13.6; 3.7; 8.0 | F67: 1.2 Inventory of Generating Plants in Belize (page 16): http://biblioteca.olade.org/opac-tmpl/Documentos/old0427.pdf
C68: Planned renewable generation
C69: Potential Utility-Scale Renewable Energy Projects
C70: How much installed capacity from RE is expected to come online in the next 3 years? | D70: Business Plan RE Goals: 1. Increase BEL's firm capacity with in-country generation of 30 MW Solar energy from BECOL. 2. Increase BEL's firm capacity with in-country generation of 15 MW Solar energy from BAPCOL. 3. Increase BEL's firm capacity with in-country generation of Hydro energy from Southern Renewable Energy Ltd. | E70: =E38 -> Business Plan RE Goals: 1. Increase BEL's firm capacity with in-country generation of 30 MW Solar energy from BECOL. 2. Increase BEL's firm capacity with in-country generation of 15 MW Solar energy from BAPCOL. 3. Increase BEL's firm capacity with in-country generation of Hydro energy from Southern Renewable Energy Ltd. | F70: =F38 -> 15 MW
C71: How much renewable energy generation is expected to come online in the next 3 years? | D71: At least 45 MW of Utility Solar | E71: =E39 -> At least 45 MW of Utility Solar | F71: =F39 -> Unknown
C72: Please provide as much information as possible for RE projects currently under development in the box below as: - Project Name - Developer - Offtaker - Renewable Energy Technology Type - Start of Commercial Operation (Year) - Estimated Capacity Factor (in %) OR Estimated Annual Production (in MWh) - Installed Capacity (MW) - Length of PPA | D72: – Project Names: BECOL, BAPCOL , SREL – Developer: Belize Electric Company Limited, Belize Electric Company Limited, Southern Renewable Energy Ltd – Offtaker: None None None – RE technology type: Solar, Solar, Hydro – Start of commercial operation (year) In negotiations In negotiations In negotiations – Estimated capacity factor (in %) OR estimated annual production (in MWh) n/a n/a n/a – Installed capacity (MW) 30.0, 15.0, In negotiations | E72: =E41 -> – Project Names: BECOL, BAPCOL , SREL – Developer: Belize Electric Company Limited, Belize Electric Company Limited, Southern Renewable Energy Ltd – Offtaker: None None None – RE technology type: Solar, Solar, Hydro – Start of commercial operation (year) In negotiations In negotiations In negotiations – Estimated capacity factor (in %) OR estimated annual production (in MWh) n/a n/a n/a – Installed capacity (MW) 30.0, 15.0, In negotiations | F72: =F41 -> Unknown
C73: Electric Mobility
C74: What is the target and target year? | D74: N/A | E74: =E46 -> N/A | F74: =F46 -> While no draft legislation or specific targets have been determined for the uptake of electric vehicles, initial discussions and work have began with the aim to develop a E-Mobility/Sustainable Transport Strategy for Belize.
C75: How many electric cars are currently in your country? | D75: 5 - 10 vehicles | E75: =E47 -> 5 - 10 vehicles | F75: =F47 -> Approx. <5.
C76: How many charging stations are in your country? | D76: There are currently no public charging stations; however, an upcoming pilot project will create charging stations across Belize by 2021. | E76: There are currently no public charging stations; however, an upcoming pilot project will create charging stations across Belize by 2021. | F76: =F48 -> Approx. 1-5.
C77: Covid
C78: Has any measure been implemented to respond to disruptions in revenue collections from electricity services (particularly given the current circumstances during the COVID pandemic)? | D78: =E78 -> Yes | E78: Yes | F78: Yes
C79: If yes, to get a score on this kindly describe how the measure works and who is responsible for implementing it | D79: =E79 -> Customer Service representatives are calling customers and encouraging them to make payments as a measure to reduce the likelihood of non-payment with COVID. Also, the Company is promoting digital means of payment through ad campaigns, and retaining cashiering services at Head Quarters in a newly constructed outdoor cashier booths to facilitate payments while keeping the staff safe. | E79: Customer Service representatives are calling customers and encouraging them to make payments as a measure to reduce the likelihood of non-payment with COVID. Also, the Company is promoting digital means of payment through ad campaigns, and retaining cashiering services at Head Quarters in a newly constructed outdoor cashier booths to facilitate payments while keeping the staff safe. | F79: Implementation of collection kiosks to allow for social distancing protocols.
C80: Outlook sentiment
C81: How enthusiastic are you about the investment prospects in renewables, electric mobility, and resilience compared to this time last year, and why? | D81: =E81 -> Same | E81: Same | F81: More
C82: Please elaborate on your reasoning for the previous response. | D82: =E82 -> Though the Pandemic has delayed the timeline for planned projects, the Company is still pursuing the projects to introduce electric vehicles and additional renewable energy capacity. | E82: Though the Pandemic has delayed the timeline for planned projects, the Company is still pursuing the projects to introduce electric vehicles and additional renewable energy capacity. | F82: Belize has numerous policy and strategic documents to support the development of the country’s renewable energy resources and improve energy efficiency and conservation in order to transform to a low carbon economy by 2033. To support the Ministry’s enthusiasm: work has begun on updating climatic targets and NDCs for the energy sector in Belize inclusive of RE targets and goals. In addition, the Ministry of Public Service, Energy and Public Utilities has begun leveraging on the experiences of technical partners and the Latin America and the Caribbean region in the uptake of E-mobility and has begun capacity development in the area of sustainable transport. The aim is to develop a sustainable transport/E-mobility strategy for Belize in the short to medium term. Lastly, Belize has become increasing aware of the importance of resilience planning for the energy sector. As a result, the Government of Belize is developing an Integrated Resource and Resilience Plan (IRRP) for Belize (on-going project). The IRRP is a planning tool that is being developed with the assistance and support of the Rocky Mountain Institute (RMI) and Caribbean Centre for Renewable Energy and Energy Efficiency (CCREEE). The IRRP is a plan for how a country can supply their need for electricity, in the future (demand forecasting). The plan will ensure reliable sources of power, minimize negative impacts on the environment and enhance the resilience of power systems to hazards and risks, while minimizing costs to consumers. Building resilience in this way guarantees energy security, as the Caribbean seeks to adapt to climate change and reduce greenhouse gas emissions. The IRRP aims to develop local capacity in the topic of energy planning and forecasting.

Sheet Bermuda
B1: Bermuda
C2: Overall Indicator | E2: Stephanie Simons, BELCO
A3: 1 | C3: Enabling Environment for Renewable Energy (RE) Investments | D3: Consolidated Survey Response | E3: Respondent #19
C4: Government - Renewable Energy Strategy | D4: Y/N
B5: 1 | C5: Does your country have a strategic plan to develop renewable energy? | D5: =IF(B5<>0,IF(ISBLANK(E5),"NA",E5)," ") -> NA
C6: Which of the following renewable generation options is included in you country's strategic plan to develop renewable energy? | D6: =IF(B6<>0,IF(ISBLANK(E6),"NA",E6)," ") ->  | E6: Solar PV, Offshore Wind, Other
B7: 2 | C7: Does your country have a specific target for renewable energy? | D7: Yes | E7: Yes
C8: If yes, what is the target and target year? | E8: 85% by 2030
C9: What is the current breakdown of your country's energy mix? | E9: 100MW peak power 10MW /5.5MWhr BESS 6MW utility scale PV 5MW distributed residential and commercial PV 7MW waste to energy
B10: 3 | C10: Does your country have an Integrated Resource Plan (IRP) that was produced within the last three years? | D10: Yes | E10: Yes
C11: Utilities | D11: Y/N
B12: 1 | C12: When planning generation expansion, does the utility consider RE options? | D12: =IF(B12<>0,IF(ISBLANK(E12),"NA",E12)," ") -> Yes | E12: Yes
B13: 2 | C13: Can the utility safely recover RE investments through tariffs like it can recover fossil fuel costs? | D13: =IF(B13<>0,IF(ISBLANK(E13),"NA",E13)," ") -> Yes | E13: Yes
B14: 3 | C14: Are there clear, specific planning and permitting processes and rules in place for developing RE? | D14: =IF(B14<>0,IF(ISBLANK(E14),"NA",E14)," ") -> Yes | E14: Yes
C15: On average, how long does it take for the power utility to get investments in RE projects approved by the regulatory authority (or relevant entity) for recovery through tariffs? | D15: =IF(B15<>0,IF(ISBLANK(E15),"NA",E15)," ") ->  | E15: Variable
C16: IPPs | D16: Y/N
B17: 1 | C17: Can the utility safely recover purchases of RE from third parties, just as it recovers fossil fuel costs? | D17: =IF(B17<>0,IF(ISBLANK(E17),"NA",E17)," ") -> Yes | E17: Yes
B18: 2 | C18: Are there workable precedents or rules for PPA terms and grid operation rules? | D18: =IF(B18<>0,IF(ISBLANK(E18),"NA",E18)," ") -> Yes | E18: Yes
B19: 3 | C19: Are there clear and effective licensing processes and requirements in place for IPPs? | D19: =IF(B19<>0,IF(ISBLANK(E19),"NA",E19)," ") -> Yes | E19: Yes
B20: 4 | C20: Does the utility have an obligation to purchase from IPPs when it is cheaper than generating the power itself? | D20: =IF(B20<>0,IF(ISBLANK(E20),"NA",E20)," ") -> Yes | E20: Yes
B21: 5 | C21: Does the PPA have any take-or-pay arrangements? | D21: =IF(B21<>0,IF(ISBLANK(E21),"NA",E21)," ") -> No | E21: No
C22: Distributed generation | D22: Y/N
B23: 1 | C23: Do you have a registry or database of distributed generation? | D23: =IF(B23<>0,IF(ISBLANK(E23),"NA",E23)," ") -> No | E23: No
C24: What was the number of existing distributed scale RE systems in 2019? | E24: 5 MW
C25: Is there an aggregate maximum capacity for distributed generation? | E25: No
C26: What is the total installed capacity from renewable distributed generation in your country? | E26: 11 MW
C27: What was the total generation from existing distributed scale RE systems in 2019? | E27: 5 MW
B28: 2 | C28: Is there a standard arrangement in place for customers to sell electricity to the utility at a reasonable price, for a reasonable timeframe, and with a clear interconnection agreement? | D28: Yes | E28: Yes
A30: 2 | C30: Existing renewable generation
C31: What is the number of existing Utility-Scale RE projects? | D31: =IF(B31<>0,IF(ISBLANK(E31),"NA",E31)," ") ->  | E31: 1
B32: 1 | C32: What was the total electricity generated in 2019? (MWh) | D32: =IF(B32<>0,IF(ISBLANK(E32),"NA",E32)," ") -> 550000 | E32: =550*1000 -> 550000
B33: 1 | C33: What was the total electricity generated from Utility Scale RE projects in 2019? (MWh) | D33: NA | E33: unknown
C34: Please provide as much information as possible for existing RE projects in the box below as: - Project Name - Developer - Offtaker - Renewable Energy Technology Type - Start of Commercial Operation (Year) - Estimated Capacity Factor (in %) OR Estimated Annual Production (in MWh) - Installed Capacity (MW) - Length of PPA | D34: =IF(B34<>0,IF(ISBLANK(E34),"NA",E34)," ") -> 
A36: 3 | C36: Planned Utility-Scale Renewable Energy Projects
B37: 1 | C37: Does your country have an estimate of planned installed capacity expected to come online from-utility scale RE projects? | D37: =IF(B37<>0,IF(ISBLANK(E37),"NA",E37)," ") -> Yes | E37: Yes
C38: How much installed capacity from RE is expected to come online in the next 3 years? (MW) | D38: =IF(B38<>0,IF(ISBLANK(E38),"NA",E38)," ") ->  | E38: 6 MW
B39: 2 | C39: How much renewable energy generation is expected to come online in the next 3 years? (MWh) | D39: unknown | E39: unknown
B40: 3 | C40: Is climate resilience incorporated in your IRP or national policy? | D40: Yes | E40: Yes
C41: Please provide as much information as possible for RE projects currently under development in the box below as: - Project Name - Developer - Offtaker - Renewable Energy Technology Type - Start of Commercial Operation (Year) - Estimated Capacity Factor (in %) OR Estimated Annual Production (in MWh) - Installed Capacity (MW) - Length of PPA | D41: =IF(B41<>0,IF(ISBLANK(E41),"NA",E41)," ") -> 
A43: 4 | C43: Electric Mobility
B44: 1 | C44: Does your country have policies in place or draft legislation to promote the uptake of electric mobility? | D44: =IF(B44<>0,IF(ISBLANK(E44),"NA",E44)," ") -> No | E44: No
B45: 2 | C45: Does your country have specific targets for the uptake of electric vehicles? | D45: =IF(B45<>0,IF(ISBLANK(E45),"NA",E45)," ") -> No | E45: No
C46: What is the target and target year? | D46: =IF(B46<>0,IF(ISBLANK(E46),"NA",E46)," ") -> 
C47: How many electric cars are currently in your country? | D47: =IF(B47<>0,IF(ISBLANK(E47),"NA",E47)," ") ->  | E47: 20 - 4 cars and 16 vans
C48: How many charging stations are in your country? | D48: =IF(B48<>0,IF(ISBLANK(E48),"NA",E48)," ") ->  | E48: unknown
C50: Descriptive CREF Index Survey
C51: Enabling Environment for Renewable Energy (RE) Investments
C52: Renewable energy strategy
C53: Which of the following renewable generation options is included in your country's strategic plan to develop renewable energy? - Solar PV - Offshore wind - Biomass - Waste to energy - Hydro -Geothermal - Other | D53: =E53 -> Solar PV, Offshore Wind, Other | E53: =E6 -> Solar PV, Offshore Wind, Other
C54: What is the target and target year? | D54: =E54 -> 85% by 2030 | E54: =E8 -> 85% by 2030
C55: What is the current breakdown of your country's energy mix? | D55: =E55 -> 100MW peak power 10MW /5.5MWhr BESS 6MW utility scale PV 5MW distributed residential and commercial PV 7MW waste to energy | E55: =E9 -> 100MW peak power 10MW /5.5MWhr BESS 6MW utility scale PV 5MW distributed residential and commercial PV 7MW waste to energy
C56: Utilities
C57: On average, how long does it take for the power utility to get investments in RE projects approved by the regulatory authority 9or the relevant entity) for recovery through tariffs? | D57: =E57 -> Variable | E57: =E15 -> Variable
C58: Distributed Generation
C59: What is the number of existing distributed scale RE systems in 2019? | D59: =E59 -> 5 MW | E59: =E24 -> 5 MW
C60: What is the total installed capacity from renewable distributed generation in your country? | D60: =E60 -> 11 MW | E60: =E26 -> 11 MW
C61: What was the total generation from existing distributed scale RE systems in 2019? | D61: 5 MW | E61: =E27 -> 5 MW
C62: Existing renewable generation
C63: Existing Utility-Scale Renewable Energy Projects
C64: What is the number of existing utility-scale RE projects? | D64: =E64 -> 1 | E64: =E31 -> 1
C65: What was the total electricity generated in 2019 (MWh)? | D65: =E65 -> 550000 | E65: =E32 -> 550000
C66: What was the total electricity generated from utility-scale RE projects in 2019 (MWh)? | D66: unknown | E66: =E33 -> unknown
C67: Please provide as much information as possible for existing RE projects in the box below as: - Project Name - Developer - Offtaker - Renewable Energy Technology Type - Start of Commercial Operation (Year) - Estimated Capacity Factor (in %) OR Estimated Annual Production (in MWh) - Installed Capacity (MW) - Length of PPA | D67: 0 | E67: =E34 -> 0
C68: Planned renewable generation
C69: Potential Utility-Scale Renewable Energy Projects
C70: How much installed capacity from RE is expected to come online in the next 3 years? | D70: =E70 -> 6 MW | E70: =E38 -> 6 MW
C71: How much renewable energy generation is expected to come online in the next 3 years? | D71: =E71 -> unknown | E71: =E39 -> unknown
C72: Please provide as much information as possible for RE projects currently under development in the box below as: - Project Name - Developer - Offtaker - Renewable Energy Technology Type - Start of Commercial Operation (Year) - Estimated Capacity Factor (in %) OR Estimated Annual Production (in MWh) - Installed Capacity (MW) - Length of PPA | D72: 0 | E72: =E41 -> 0
C73: Electric Mobility
C74: What is the target and target year? | D74: =E74 -> 0 | E74: =E46 -> 0
C75: How many electric cars are currently in your country? | D75: =E75 -> 20 - 4 cars and 16 vans | E75: =E47 -> 20 - 4 cars and 16 vans
C76: How many charging stations are in your country? | D76: unknown | E76: unknown
C77: Covid
C78: Has any measure been implemented to respond to disruptions in revenue collections from electricity services (particularly given the current circumstances during the COVID pandemic)? | D78: =E78 -> No | E78: No
C79: If yes, to get a score on this kindly describe how the measure works and who is responsible for implementing it
C80: Outlook sentiment
C81: How enthusiastic are you about the investment prospects in renewables, electric mobility, and resilience compared to this time last year, and why? | D81: =E81 -> Same | E81: Same
C82: Please elaborate on your reasoning for the previous response. | E82: EVs are not available from the OEM.

Sheet Bonaire (hidden)
B1: Bonaire
C2: Overall Indicator
A3: 1 | C3: Enabling Environment for Renewable Energy (RE) Investments | D3: Consolidated Survey Response
C4: Government - Renewable Energy Strategy | D4: Y/N | E4: Y/N
B5: 1 | C5: Does your country have a strategic plan to develop renewble energy?
C6: Which of the following renewable generation options is includd in you country's strategic plan to develop renewable energy? | D6: =IF(B6<>0,IF(ISBLANK(E6),"NA",E6)," ") -> 
B7: 2 | C7: Does your country have a specific target for renewable energy? | D7: =IF(B7<>0,IF(ISBLANK(E7),"NA",E7)," ") -> Yes | E7: Yes
C8: If yes, what is the target and target year? | D8: =IF(B8<>0,IF(ISBLANK(E8),"NA",E8)," ") -> 
C9: What is the current breakdown of your country's energy mix? | D9: =IF(B9<>0,IF(ISBLANK(E9),"NA",E9)," ") -> 
B10: 3 | C10: Does your country have an Integrated Resource Plan (IRP) that was produced within the last three years? | D10: =IF(B10<>0,IF(ISBLANK(E10),"NA",E10)," ") -> No | E10: No
C11: Utilities | E11: Y/N
B12: 1 | C12: When planning generation expansion, does the utility consider RE options? | D12: =IF(B12<>0,IF(ISBLANK(E12),"NA",E12)," ") -> NA
B13: 2 | C13: Can the utility safely recover RE investments through tariffs like it can recover fossil fuel costs? | D13: =IF(B13<>0,IF(ISBLANK(E13),"NA",E13)," ") -> NA
B14: 3 | C14: Are there clear, specific planning and permitting processes and rules in place for developing RE? | D14: =IF(B14<>0,IF(ISBLANK(E14),"NA",E14)," ") -> NA
C15: On average, how long does it take for the power utility to get investments in RE projects approved by the regulatory authority (or relevant entity) fror recovery through tariffs? | D15: =IF(B15<>0,IF(ISBLANK(E15),"NA",E15)," ") -> 
C16: IPPs | E16: Y/N
B17: 1 | C17: Can the utility safely recover purchases of RE from third parties, just as it recovers fossil fuel costs? | D17: =IF(B17<>0,IF(ISBLANK(E17),"NA",E17)," ") -> NA
B18: 2 | C18: Are there workable precedents or rules for PPA terms and grid operation rules? | D18: =IF(B18<>0,IF(ISBLANK(E18),"NA",E18)," ") -> NA
B19: 3 | C19: Are there clear and effective licensing processes and requirements in place for IPPs? | D19: =IF(B19<>0,IF(ISBLANK(E19),"NA",E19)," ") -> NA
B20: 4 | C20: Does the utility have an obligation to purchase from IPPs when it is cheaper than generating the power itself? | D20: =IF(B20<>0,IF(ISBLANK(E20),"NA",E20)," ") -> NA
B21: 5 | C21: Does the PPA have any take-or-pay arrangements? | D21: =IF(B21<>0,IF(ISBLANK(E21),"NA",E21)," ") -> NA
C22: Distributed generation | E22: Y/N
B23: 1 | C23: Do you have a registry or database of distributed generation? | D23: =IF(B23<>0,IF(ISBLANK(E23),"NA",E23)," ") -> NA
C24: What was the number of existing distributed scale RE systems in 2019?
C25: Is there an aggregate maximum capacity for distributed generation?
C26: What is the total installed capacity from renewable distributed generation in your country?
C27: What was the total generation from existing distributed scale RE systems in 2019?
B28: 2 | C28: Is there a standard arrangement in place for customers to sell electricity to the utility at a reasonable price, for a reasonable timeframe, and with a clear interconnection agreement? | D28: NA
A30: 2 | C30: Existing renewable generation
C31: What is the number of existing Utility-Scale RE projects? | D31: =IF(B31<>0,IF(ISBLANK(E31),"NA",E31)," ") -> 
B32: 1 | C32: What was the total electricity generated in 2019? (MWh) | D32: =IF(B32<>0,IF(ISBLANK(E32),"NA",E32)," ") -> NA
B33: 1 | C33: What was the total electricity generated from Utility Scale RE projects in 2019? (MWh) | D33: =IF(B33<>0,IF(ISBLANK(E33),"NA",E33)," ") -> NA
C34: Please provide as much information as possible for exisitng RE projects in the box below as: - Project Name - Developer - Offtaker - Renewable Energy Technology Type - Start of Commercial Operation (Year) - Estimated Capacity Factor (in %) OR Estimated Annual Production (in MWh) - Installed Capacity (MW) - Length of PPA | D34: =IF(B34<>0,IF(ISBLANK(E34),"NA",E34)," ") -> 
A36: 3 | C36: Planned Utility-Scale Renewable Energy Projects
B37: 1 | C37: Does your country have an estimate of planned installed capacity expected to come online from-utility scale RE projects? | D37: =IF(B37<>0,IF(ISBLANK(E37),"NA",E37)," ") -> NA
C38: How much installed capacity from RE is expected to come online in the next 3 years? (MW) | D38: =IF(B38<>0,IF(ISBLANK(E38),"NA",E38)," ") -> 
B39: 2 | C39: How much renewable energy generation is expected to come online in the next 3 years? (MWh) | D39: =IF(B39<>0,IF(ISBLANK(E39),"NA",E39)," ") -> NA
B40: 3 | C40: Is climate resilience incorporated in your IRP or national policy? | D40: =IF(B40<>0,IF(ISBLANK(E40),"NA",E40)," ") -> NA
C41: Please provide as much information as possible for RE projects currently under development in the box below as: - Project Name - Developer - Offtaker - Renewable Energy Technology Type - Start of Commercial Operation (Year) - Estimated Capacity Factor (in %) OR Estimated Annual Production (in MWh) - Installed Capacity (MW) - Length of PPA | D41: =IF(B41<>0,IF(ISBLANK(E41),"NA",E41)," ") -> 
A43: 4 | C43: Electric Mobility
B44: 1 | C44: Does your country have policies in place or draft legislation to promote the uptake of electric mobility? | D44: =IF(B44<>0,IF(ISBLANK(E44),"NA",E44)," ") -> No | E44: No
B45: 2 | C45: Does your country have specific targets for the uptake of electric vehicles? | D45: =IF(B45<>0,IF(ISBLANK(E45),"NA",E45)," ") -> No | E45: No
C46: What is the target and target year? | D46: =IF(B46<>0,IF(ISBLANK(E46),"NA",E46)," ") -> 
C47: How many electric cars are currently in your country? | D47: =IF(B47<>0,IF(ISBLANK(E47),"NA",E47)," ") -> 
C48: How many charging stations are in your country? | D48: =IF(B48<>0,IF(ISBLANK(E48),"NA",E48)," ") -> 
C50: Descriptive CREF Index Survey
C51: Enabling Environment for Renewable Energy (RE) Investments
C52: Renewable energy strategy
C53: Which of the rollowing renewable generation options is included in your country's strategic plan to develop renewable energy? - Solar PV - Offshore wind - Biomass - Waste to energy - Hydro -Geothermal - Other | D53: =E53 -> 0 | E53: =E6 -> 0
C54: What is the target and target year? | D54: =E54 -> 0 | E54: =E8 -> 0
C55: What is the current breakdown of your country's energy mix? | D55: 0 | E55: =E9 -> 0
C56: Utilities
C57: On average, how long does it take for the power utility to get investments in RE projects approved by the regulatory authority 9or the relevant entity) for recovery through tariffs? | D57: =E57 -> 0 | E57: =E15 -> 0
C58: Distributed Generation
C59: What is the number of exisiting distributed scale RE systems in 2019? | D59: =E59 -> 0 | E59: =E24 -> 0
C60: What is the total installed capacity from renewable distributed generation in your country? | D60: =E60 -> 0 | E60: =E26 -> 0
C61: What was the total generation from exisitng distributed scale RE systems in 2019? | D61: =E61 -> 0 | E61: =E27 -> 0
C62: Existing renewable generation
C63: Existing Utility-Scale Renewable Energy Projects
C64: What is the number of existing utility-scale RE projects? | D64: =E64 -> 0 | E64: =E31 -> 0
C65: What was the total electricity generated in 2019 (MWh)? | D65: =E65 -> 0 | E65: 0
C66: What was the total electricity generated from utility-scale RE projects in 2019 (MWh)? | D66: 0 | E66: 0
C67: Please provide as much information as possible for exisitng RE projects in the box below as: - Project Name - Developer - Offtaker - Renewable Energy Technology Type - Start of Commercial Operation (Year) - Estimated Capacity Factor (in %) OR Estimated Annual Production (in MWh) - Installed Capacity (MW) - Length of PPA | D67: 0 | E67: =E34 -> 0
C68: Planned renewable generation
C69: Potential Utility-Scale Renewable Energy Projects
C70: How much installed capacity from RE is expected to come online in the next 3 years? | D70: =E70 -> 0 | E70: =E38 -> 0
C71: How much renewable energy generation is expected to come online in the next 3 years? | D71: =E71 -> 0 | E71: =E39 -> 0
C72: Please provide as much information as possible for RE projects currently under development in the box below as: - Project Name - Developer - Offtaker - Renewable Energy Technology Type - Start of Commercial Operation (Year) - Estimated Capacity Factor (in %) OR Estimated Annual Production (in MWh) - Installed Capacity (MW) - Length of PPA | D72: 0 | E72: =E41 -> 0
C73: Electric Mobility
C74: What is the target and target year? | D74: 0 | E74: =E46 -> 0
C75: How many electric cars are currently in your country? | D75: 0 | E75: =E47 -> 0
C76: How many charging stations are in your country? | D76: 0 | E76: =E48 -> 0
C77: Covid
C78: Has any measure been implemented to respond to disruptions in revenue collections from electricity services (particularly given the current circumstances during the COVID pandemic)? | D78: =E78 -> 0
C79: If yes, to get a score on this kindly describe how the measure works and who is responsible for implementing it | D79: =E79 -> 0
C80: Outlook sentiment
C81: How enthusiastic are you about the investment prospects in renewables, electric mobility, and resilience compared to this time last year, and why? | D81: =E81 -> 0
C82: Please elaborate on your reasoning for the previous response. | D82: =E82 -> 0

Sheet British_Virgin_Islands
B1: British Virgin Islands
C2: Overall Indicator | E2: Symorne Penn, BVI Electricity Corporation | F2: Leroy A. E. Abraham, BVI Electricity Corporation
A3: 1 | C3: Enabling Environment for Renewable Energy (RE) Investments | D3: Consolidated Survey Response | E3: Respondent #4 | F3: Respondent #24
C4: Government - Renewable Energy Strategy | D4: Y/N | E4: Y/N
B5: 1 | C5: Does your country have a strategic plan to develop renewable energy?
C6: Which of the following renewable generation options is included in you country's strategic plan to develop renewable energy? | D6: =IF(B6<>0,IF(ISBLANK(E6),"NA",E6)," ") ->  | E6: Solar PV | F6: Solar PV, Onshore Wind
B7: 2 | C7: Does your country have a specific target for renewable energy? | D7: =IF(B7<>0,IF(ISBLANK(E7),"NA",E7)," ") -> Yes | E7: Yes | F7: Yes
C8: If yes, what is the target and target year? | D8: =IF(B8<>0,IF(ISBLANK(E8),"NA",E8)," ") ->  | E8: By 2023, supply 30% of the territory’s energy by renewables means; By 2021, fossil fuel imports decrease by 20%; By 2021, 50% of consumers will use energy conservation measures and/or renewable energy technology of some kind; By 2021, reduce fossil fuel inputs to electricity by 80% on Anegada; To have 100% renewable electricity by 2035 and 100% renewable energy for all uses by 2050 | F8: 30% of the territory’s energy by renewable means by 2023; and 100% renewable energy for all users by 2050.
C9: What is the current breakdown of your country's energy mix? | D9: =IF(B9<>0,IF(ISBLANK(E9),"NA",E9)," ") ->  | E9: 100% fossil fuel | F9: 100% fossil fuel generation
B10: 3 | C10: Does your country have an Integrated Resource Plan (IRP) that was produced within the last three years? | D10: =IF(B10<>0,IF(ISBLANK(E10),"NA",E10)," ") -> Yes | E10: Yes | F10: Yes
C11: Utilities | E11: Y/N
B12: 1 | C12: When planning generation expansion, does the utility consider RE options? | D12: =IF(B12<>0,IF(ISBLANK(E12),"NA",E12)," ") -> Yes | E12: Yes | F12: Yes
B13: 2 | C13: Can the utility safely recover RE investments through tariffs like it can recover fossil fuel costs? | D13: =IF(B13<>0,IF(ISBLANK(E13),"NA",E13)," ") -> No | E13: No | F13: No
B14: 3 | C14: Are there clear, specific planning and permitting processes and rules in place for developing RE? | D14: =IF(B14<>0,IF(ISBLANK(E14),"NA",E14)," ") -> Yes | E14: Yes | F14: Yes
C15: On average, how long does it take for the power utility to get investments in RE projects approved by the regulatory authority (or relevant entity) for recovery through tariffs? | D15: =IF(B15<>0,IF(ISBLANK(E15),"NA",E15)," ") ->  | E15: NA | F15: NA
C16: IPPs | E16: Y/N
B17: 1 | C17: Can the utility safely recover purchases of RE from third parties, just as it recovers fossil fuel costs? | D17: =IF(B17<>0,IF(ISBLANK(E17),"NA",E17)," ") -> No | E17: No | F17: No
B18: 2 | C18: Are there workable precedents or rules for PPA terms and grid operation rules? | D18: =IF(B18<>0,IF(ISBLANK(E18),"NA",E18)," ") -> Yes | E18: Yes | F18: Yes
B19: 3 | C19: Are there clear and effective licensing processes and requirements in place for IPPs? | D19: =IF(B19<>0,IF(ISBLANK(E19),"NA",E19)," ") -> Yes | E19: Yes | F19: Yes
B20: 4 | C20: Does the utility have an obligation to purchase from IPPs when it is cheaper than generating the power itself? | D20: =IF(B20<>0,IF(ISBLANK(E20),"NA",E20)," ") -> Yes | E20: Yes | F20: Yes
B21: 5 | C21: Does the PPA have any take-or-pay arrangements? | D21: =IF(B21<>0,IF(ISBLANK(E21),"NA",E21)," ") -> Yes | E21: Yes | F21: Yes
C22: Distributed generation | E22: Y/N
B23: 1 | C23: Do you have a registry or database of distributed generation? | D23: =IF(B23<>0,IF(ISBLANK(E23),"NA",E23)," ") -> No | E23: No | F23: Yes
C24: What was the number of existing distributed scale RE systems in 2019? | E24: 0 | F24: 15
C25: Is there an aggregate maximum capacity for distributed generation? | E25: Yes | F25: Yes
C26: What is the total installed capacity from renewable distributed generation in your country? | E26: 0 | F26: Approximately 0.3 MW
C27: What was the total generation from existing distributed scale RE systems in 2019? | E27: 0 | F27: Unknown
B28: 2 | C28: Is there a standard arrangement in place for customers to sell electricity to the utility at a reasonable price, for a reasonable timeframe, and with a clear interconnection agreement? | D28: Yes | E28: Yes | F28: Yes
A30: 2 | C30: Existing renewable generation
C31: What is the number of existing Utility-Scale RE projects? | D31: =IF(B31<>0,IF(ISBLANK(E31),"NA",E31)," ") ->  | E31: 0 | F31: 0
B32: 1 | C32: What was the total electricity generated in 2019? (MWh) | D32: =IF(B32<>0,IF(ISBLANK(E32),"NA",E32)," ") -> 191629.28 | E32: 191629.28 | F32: 196266
B33: 1 | C33: What was the total electricity generated from Utility Scale RE projects in 2019? (MWh) | D33: =IF(B33<>0,IF(ISBLANK(E33),"NA",E33)," ") -> 0 | E33: 0 | F33: 0
C34: Please provide as much information as possible for existing RE projects in the box below as: - Project Name - Developer - Offtaker - Renewable Energy Technology Type - Start of Commercial Operation (Year) - Estimated Capacity Factor (in %) OR Estimated Annual Production (in MWh) - Installed Capacity (MW) - Length of PPA | D34: =IF(B34<>0,IF(ISBLANK(E34),"NA",E34)," ") ->  | E34: NA | F34: NA
A36: 3 | C36: Planned Utility-Scale Renewable Energy Projects
B37: 1 | C37: Does your country have an estimate of planned installed capacity expected to come online from-utility scale RE projects? | D37: =IF(B37<>0,IF(ISBLANK(E37),"NA",E37)," ") -> Yes | E37: Yes | F37: Yes
C38: How much installed capacity from RE is expected to come online in the next 3 years? (MW) | D38: =IF(B38<>0,IF(ISBLANK(E38),"NA",E38)," ") ->  | E38: 7 MW | F38: 7 MW
B39: 2 | C39: How much renewable energy generation is expected to come online in the next 3 years? (MWh) | D39: =IF(B39<>0,IF(ISBLANK(F39),"NA",F39)," ") -> 10,000 MWh | E39: 7 MW | F39: 10,000 MWh
B40: 3 | C40: Is climate resilience incorporated in your IRP or national policy? | D40: =IF(B40<>0,IF(ISBLANK(E40),"NA",E40)," ") -> No | E40: No | F40: No
C41: Please provide as much information as possible for RE projects currently under development in the box below as: - Project Name - Developer - Offtaker - Renewable Energy Technology Type - Start of Commercial Operation (Year) - Estimated Capacity Factor (in %) OR Estimated Annual Production (in MWh) - Installed Capacity (MW) - Length of PPA | D41: =IF(B41<>0,IF(ISBLANK(E41),"NA",E41)," ") ->  | E41: NA | F41: Anegada Hybrid Renewable Energy and Battery Energy Storage Project Power52 Clean Energy Solutions BVI Electricity Corporation Solar PV + Battery 2021 2,856.0 MWh 2.1 MW EPC
A43: 4 | C43: Electric Mobility
B44: 1 | C44: Does your country have policies in place or draft legislation to promote the uptake of electric mobility? | D44: =IF(B44<>0,IF(ISBLANK(E44),"NA",E44)," ") -> No | E44: No | F44: No
B45: 2 | C45: Does your country have specific targets for the uptake of electric vehicles? | D45: =IF(B45<>0,IF(ISBLANK(E45),"NA",E45)," ") -> No | E45: No | F45: No
C46: What is the target and target year? | D46: =IF(B46<>0,IF(ISBLANK(E46),"NA",E46)," ") ->  | E46: NA | F46: NA
C47: How many electric cars are currently in your country? | D47: =IF(B47<>0,IF(ISBLANK(E47),"NA",E47)," ") ->  | E47: 10 | F47: 10
C48: How many charging stations are in your country? | D48: =IF(B48<>0,IF(ISBLANK(E48),"NA",E48)," ") ->  | E48: 0 | F48: None
C50: Descriptive CREF Index Survey
C51: Enabling Environment for Renewable Energy (RE) Investments
C52: Renewable energy strategy
C53: Which of the following renewable generation options is included in your country's strategic plan to develop renewable energy? - Solar PV - Offshore wind - Biomass - Waste to energy - Hydro -Geothermal - Other | D53: =E53 -> Solar PV | E53: =E6 -> Solar PV | F53: =F6 -> Solar PV, Onshore Wind
C54: What is the target and target year? | D54: =E54 -> By 2023, supply 30% of the territory’s energy by renewables means; By 2021, fossil fuel imports decrease by 20%; By 2021, 50% of consumers will use energy conservation measures and/or renewable energy technology of some kind; By 2021, reduce fossil fuel inputs to electricity by 80% on Anegada; To have 100% renewable electricity by 2035 and 100% renewable energy for all uses by 2050 | E54: =E8 -> By 2023, supply 30% of the territory’s energy by renewables means; By 2021, fossil fuel imports decrease by 20%; By 2021, 50% of consumers will use energy conservation measures and/or renewable energy technology of some kind; By 2021, reduce fossil fuel inputs to electricity by 80% on Anegada; To have 100% renewable electricity by 2035 and 100% renewable energy for all uses by 2050 | F54: =F8 -> 30% of the territory’s energy by renewable means by 2023; and 100% renewable energy for all users by 2050.
C55: What is the current breakdown of your country's energy mix? | D55: 100% fossil fuel | E55: =E9 -> 100% fossil fuel | F55: =F9 -> 100% fossil fuel generation
C56: Utilities
C57: On average, how long does it take for the power utility to get investments in RE projects approved by the regulatory authority 9or the relevant entity) for recovery through tariffs? | D57: =E57 -> NA | E57: =E15 -> NA | F57: =F15 -> NA
C58: Distributed Generation
C59: What is the number of existing distributed scale RE systems in 2019? | D59: =E59 -> 0 | E59: =E24 -> 0 | F59: =F24 -> 15
C60: What is the total installed capacity from renewable distributed generation in your country? | D60: =E60 -> 0 | E60: =E26 -> 0 | F60: =F26 -> Approximately 0.3 MW
C61: What was the total generation from existing distributed scale RE systems in 2019? | D61: 0 | E61: =E27 -> 0 | F61: =F27 -> Unknown
C62: Existing renewable generation
C63: Existing Utility-Scale Renewable Energy Projects
C64: What is the number of existing utility-scale RE projects? | D64: =E64 -> 0 | E64: =E31 -> 0 | F64: 0
C65: What was the total electricity generated in 2019 (MWh)? | D65: =E65 -> 191629.28 | E65: 191629.28 | F65: 196266
C66: What was the total electricity generated from utility-scale RE projects in 2019 (MWh)? | D66: 0 | E66: 0 | F66: 0
C67: Please provide as much information as possible for existing RE projects in the box below as: - Project Name - Developer - Offtaker - Renewable Energy Technology Type - Start of Commercial Operation (Year) - Estimated Capacity Factor (in %) OR Estimated Annual Production (in MWh) - Installed Capacity (MW) - Length of PPA | D67: NA | E67: NA | F67: NA
C68: Planned renewable generation
C69: Potential Utility-Scale Renewable Energy Projects
C70: How much installed capacity from RE is expected to come online in the next 3 years? | D70: =E70 -> 7 MW | E70: =E38 -> 7 MW | F70: =F38 -> 7 MW
C71: How much renewable energy generation is expected to come online in the next 3 years? | D71: =E71 -> 7 MW | E71: =E39 -> 7 MW | F71: =F39 -> 10,000 MWh
C72: Please provide as much information as possible for RE projects currently under development in the box below as: - Project Name - Developer - Offtaker - Renewable Energy Technology Type - Start of Commercial Operation (Year) - Estimated Capacity Factor (in %) OR Estimated Annual Production (in MWh) - Installed Capacity (MW) - Length of PPA | D72: NA | E72: =E41 -> NA | F72: =F41 -> Anegada Hybrid Renewable Energy and Battery Energy Storage Project Power52 Clean Energy Solutions BVI Electricity Corporation Solar PV + Battery 2021 2,856.0 MWh 2.1 MW EPC
C73: Electric Mobility
C74: What is the target and target year? | D74: =E74 -> NA | E74: =E46 -> NA | F74: =F46 -> NA
C75: How many electric cars are currently in your country? | D75: =E75 -> 10 | E75: =E47 -> 10 | F75: 10
C76: How many charging stations are in your country? | D76: 0 | E76: 0 | F76: None
C77: Covid
C78: Has any measure been implemented to respond to disruptions in revenue collections from electricity services (particularly given the current circumstances during the COVID pandemic)? | D78: =E78 -> Yes | E78: Yes | F78: Yes
C79: If yes, to get a score on this kindly describe how the measure works and who is responsible for implementing it | D79: =E79 -> Online Payment Promotion, Management Team | E79: Online Payment Promotion, Management Team | F79: Online Payment Promotion - Management Team
C80: Outlook sentiment
C81: How enthusiastic are you about the investment prospects in renewables, electric mobility, and resilience compared to this time last year, and why? | D81: =E81 -> Less | E81: Less | F81: Same
C82: Please elaborate on your reasoning for the previous response. | D82: =E82 -> Most of the money that was allocated for renewables are now being repurposed to fight the COVID-19 Pandemic. | E82: Most of the money that was allocated for renewables are now being repurposed to fight the COVID-19 Pandemic. | F82: The process with regards to receiving funding has been lengthy and the pandemic has further introduced further delays in the process of attaining grant funds. In addition, most of the grant funds that were allocated for renewables have been repurposed to fight the COVID-19 pandemic.

Sheet Cayman_Islands (hidden)
B1: Cayman Islands
C2: Overall Indicator
A3: 1 | C3: Enabling Environment for Renewable Energy (RE) Investments | D3: Consolidated Survey Response
C4: Government - Renewable Energy Strategy | D4: Y/N | E4: Y/N
B5: 1 | C5: Does your country have a strategic plan to develop renewble energy?
C6: Which of the following renewable generation options is includd in you country's strategic plan to develop renewable energy? | D6: =IF(B6<>0,IF(ISBLANK(E6),"NA",E6)," ") -> 
B7: 2 | C7: Does your country have a specific target for renewable energy? | D7: =IF(B7<>0,IF(ISBLANK(E7),"NA",E7)," ") -> Yes | E7: Yes
C8: If yes, what is the target and target year? | D8: =IF(B8<>0,IF(ISBLANK(E8),"NA",E8)," ") -> 
C9: What is the current breakdown of your country's energy mix? | D9: =IF(B9<>0,IF(ISBLANK(E9),"NA",E9)," ") -> 
B10: 3 | C10: Does your country have an Integrated Resource Plan (IRP) that was produced within the last three years? | D10: =IF(B10<>0,IF(ISBLANK(E10),"NA",E10)," ") -> Yes | E10: Yes
C11: Utilities | E11: Y/N
B12: 1 | C12: When planning generation expansion, does the utility consider RE options? | D12: =IF(B12<>0,IF(ISBLANK(E12),"NA",E12)," ") -> NA
B13: 2 | C13: Can the utility safely recover RE investments through tariffs like it can recover fossil fuel costs? | D13: =IF(B13<>0,IF(ISBLANK(E13),"NA",E13)," ") -> NA
B14: 3 | C14: Are there clear, specific planning and permitting processes and rules in place for developing RE? | D14: =IF(B14<>0,IF(ISBLANK(E14),"NA",E14)," ") -> NA
C15: On average, how long does it take for the power utility to get investments in RE projects approved by the regulatory authority (or relevant entity) fror recovery through tariffs? | D15: =IF(B15<>0,IF(ISBLANK(E15),"NA",E15)," ") -> 
C16: IPPs | E16: Y/N
B17: 1 | C17: Can the utility safely recover purchases of RE from third parties, just as it recovers fossil fuel costs? | D17: =IF(B17<>0,IF(ISBLANK(E17),"NA",E17)," ") -> NA
B18: 2 | C18: Are there workable precedents or rules for PPA terms and grid operation rules? | D18: =IF(B18<>0,IF(ISBLANK(E18),"NA",E18)," ") -> NA
B19: 3 | C19: Are there clear and effective licensing processes and requirements in place for IPPs? | D19: =IF(B19<>0,IF(ISBLANK(E19),"NA",E19)," ") -> NA
B20: 4 | C20: Does the utility have an obligation to purchase from IPPs when it is cheaper than generating the power itself? | D20: =IF(B20<>0,IF(ISBLANK(E20),"NA",E20)," ") -> NA
